December ,Organisation Code,Unique Ref No,Effective Date,Directorate  where expenditure incurred,Supplier name ,Payment Date,Net Amount,Purpose of Spend,Procurement Classification (Higher Level),Procurement Classification (Lower Level),Capital/Revenue
Walsall Council,http://opendatacommunities.org/id/metropolitan-district-council/walsall,WC63-1,31/12/2015,Childrens,247 CARS (WILLENHALL) LIMITED,22/12/2015,336.00,52000-WITH DRIVER-HIRE OF VEHICLES,SCHOOL TRANSPORT,Transport,Revenue
Walsall Council,http://opendatacommunities.org/id/metropolitan-district-council/walsall,WC63-2,31/12/2015,Childrens,247 CARS (WILLENHALL) LIMITED,22/12/2015,336.00,52000-WITH DRIVER-HIRE OF VEHICLES,SCHOOL TRANSPORT,Transport,Revenue
Walsall Council,http://opendatacommunities.org/id/metropolitan-district-council/walsall,WC63-3,31/12/2015,Childrens,247 CARS (WILLENHALL) LIMITED,22/12/2015,336.00,52000-WITH DRIVER-HIRE OF VEHICLES,SCHOOL TRANSPORT,Transport,Revenue
Walsall Council,http://opendatacommunities.org/id/metropolitan-district-council/walsall,WC63-4,31/12/2015,Childrens,247 CARS (WILLENHALL) LIMITED,22/12/2015,420.00,52000-WITH DRIVER-HIRE OF VEHICLES,SCHOOL TRANSPORT,Transport,Revenue
Walsall Council,http://opendatacommunities.org/id/metropolitan-district-council/walsall,WC63-5,31/12/2015,Childrens,247 CARS (WILLENHALL) LIMITED,22/12/2015,420.00,52000-WITH DRIVER-HIRE OF VEHICLES,SCHOOL TRANSPORT,Transport,Revenue
Walsall Council,http://opendatacommunities.org/id/metropolitan-district-council/walsall,WC63-6,31/12/2015,Childrens,247 CARS (WILLENHALL) LIMITED,22/12/2015,468.00,52000-WITH DRIVER-HIRE OF VEHICLES,SCHOOL TRANSPORT,Transport,Revenue
Walsall Council,http://opendatacommunities.org/id/metropolitan-district-council/walsall,WC63-7,31/12/2015,Childrens,247 CARS (WILLENHALL) LIMITED,22/12/2015,588.00,52000-WITH DRIVER-HIRE OF VEHICLES,SCHOOL TRANSPORT,Transport,Revenue
Walsall Council,http://opendatacommunities.org/id/metropolitan-district-council/walsall,WC63-8,31/12/2015,Childrens,247 CARS (WILLENHALL) LIMITED,22/12/2015,714.00,52000-WITH DRIVER-HIRE OF VEHICLES,SCHOOL TRANSPORT,Transport,Revenue
Walsall Council,http://opendatacommunities.org/id/metropolitan-district-council/walsall,WC63-9,31/12/2015,Childrens,247 CARS (WILLENHALL) LIMITED,22/12/2015,756.00,52000-WITH DRIVER-HIRE OF VEHICLES,SCHOOL TRANSPORT,Transport,Revenue
Walsall Council,http://opendatacommunities.org/id/metropolitan-district-council/walsall,WC63-10,31/12/2015,Childrens,247 CARS (WILLENHALL) LIMITED,04/12/2015,958.80,52000-WITH DRIVER-HIRE OF VEHICLES,SCHOOL TRANSPORT,Transport,Revenue
Walsall Council,http://opendatacommunities.org/id/metropolitan-district-council/walsall,WC63-11,31/12/2015,Childrens,247 CARS (WILLENHALL) LIMITED,04/12/2015,"1,015.20",52000-WITH DRIVER-HIRE OF VEHICLES,SCHOOL TRANSPORT,Transport,Revenue
Walsall Council,http://opendatacommunities.org/id/metropolitan-district-council/walsall,WC63-12,31/12/2015,Childrens,247 CARS (WILLENHALL) LIMITED,22/12/2015,"1,050.00",52000-WITH DRIVER-HIRE OF VEHICLES,SCHOOL TRANSPORT,Transport,Revenue
Walsall Council,http://opendatacommunities.org/id/metropolitan-district-council/walsall,WC63-13,31/12/2015,Childrens,247 CARS (WILLENHALL) LIMITED,22/12/2015,"1,167.60",52000-WITH DRIVER-HIRE OF VEHICLES,SCHOOL TRANSPORT,Transport,Revenue
Walsall Council,http://opendatacommunities.org/id/metropolitan-district-council/walsall,WC63-14,31/12/2015,Childrens,247 CARS (WILLENHALL) LIMITED,22/12/2015,"1,184.40",52000-WITH DRIVER-HIRE OF VEHICLES,SCHOOL TRANSPORT,Transport,Revenue
Walsall Council,http://opendatacommunities.org/id/metropolitan-district-council/walsall,WC63-15,31/12/2015,Childrens,247 CARS (WILLENHALL) LIMITED,22/12/2015,"1,625.00",52000-WITH DRIVER-HIRE OF VEHICLES,SCHOOL TRANSPORT,Transport,Revenue
Walsall Council,http://opendatacommunities.org/id/metropolitan-district-council/walsall,WC63-16,31/12/2015,Childrens,2SIMPLE SOFTWARE LTD,09/12/2015,"1,500.00",63800-COMPUTER EQUIPMENT AND SUPPLIES,INFORMATION SERVICES,Supplies & Services,Revenue
Walsall Council,http://opendatacommunities.org/id/metropolitan-district-council/walsall,WC63-17,31/12/2015,Change and Governance,39 ESSEX STREET LLP PFA,15/12/2015,"4,849.00",63000-PROFESSIONAL FEES AND SERVICES,CORPORATE EXPENSES,Supplies & Services,Revenue
Walsall Council,http://opendatacommunities.org/id/metropolitan-district-council/walsall,WC63-18,31/12/2015,Change and Governance,39 ESSEX STREET LLP PFA,01/12/2015,"10,324.55",63000-PROFESSIONAL FEES AND SERVICES,CORPORATE EXPENSES,Supplies & Services,Revenue
Walsall Council,http://opendatacommunities.org/id/metropolitan-district-council/walsall,WC63-19,31/12/2015,Childrens,5 CARE SERVICES LTD,03/12/2015,954.50,63000-PROFESSIONAL FEES AND SERVICES,DIRECTLY COMMISSIONED NURSING SERVICES,Supplies & Services,Revenue
Walsall Council,http://opendatacommunities.org/id/metropolitan-district-council/walsall,WC63-20,31/12/2015,Childrens,5 CARE SERVICES LTD,03/12/2015,"1,344.00",63000-PROFESSIONAL FEES AND SERVICES,DIRECTLY COMMISSIONED NURSING SERVICES,Supplies & Services,Revenue
Walsall Council,http://opendatacommunities.org/id/metropolitan-district-council/walsall,WC63-21,31/12/2015,Childrens,5 CARE SERVICES LTD,03/12/2015,"1,581.25",63000-PROFESSIONAL FEES AND SERVICES,DIRECTLY COMMISSIONED NURSING SERVICES,Supplies & Services,Revenue
Walsall Council,http://opendatacommunities.org/id/metropolitan-district-council/walsall,WC63-22,31/12/2015,Social Care & Inclusion,5 CARE SERVICES LTD,09/12/2015,"30,345.15",73372-DOMICILIARY CARE,OP COMMISSIONING,Third Party Payments,Revenue
Walsall Council,http://opendatacommunities.org/id/metropolitan-district-council/walsall,WC63-23,31/12/2015,Economy & Environment,A ASHTON,02/12/2015,653.00,60500-GENERAL MATERIALS,COMMUNITY LIAISON,Supplies & Services,Revenue
Walsall Council,http://opendatacommunities.org/id/metropolitan-district-council/walsall,WC63-24,31/12/2015,Change and Governance,A D T FIRE AND SECURITY PLC,02/12/2015,219.00,"40000-REPAIRS,ALTERATIONS & MAINTENANCE-PREM",CHALLENGE BUILDING,Premises,Revenue
Walsall Council,http://opendatacommunities.org/id/metropolitan-district-council/walsall,WC63-25,31/12/2015,Change and Governance,A D T FIRE AND SECURITY PLC,01/12/2015,416.00,60008-MAINTENANCE-FURNITURE & EQUIPMENT,ACCOMMODATION SERVICES MANAGEMENT,Supplies & Services,Revenue
Walsall Council,http://opendatacommunities.org/id/metropolitan-district-council/walsall,WC63-26,31/12/2015,Economy & Environment,A D T FIRE AND SECURITY PLC,09/12/2015,577.31,"40000-REPAIRS,ALTERATIONS & MAINTENANCE-PREM",ARBORETUM,Premises,Revenue
Walsall Council,http://opendatacommunities.org/id/metropolitan-district-council/walsall,WC63-27,31/12/2015,Economy & Environment,A D T FIRE AND SECURITY PLC,08/12/2015,752.65,"40000-REPAIRS,ALTERATIONS & MAINTENANCE-PREM",ARBORETUM,Premises,Revenue
Walsall Council,http://opendatacommunities.org/id/metropolitan-district-council/walsall,WC63-28,31/12/2015,Change and Governance,A D T FIRE AND SECURITY PLC,11/12/2015,"1,012.66","40000-REPAIRS,ALTERATIONS & MAINTENANCE-PREM",CENTRALISED MAINTENANCE,Premises,Revenue
Walsall Council,http://opendatacommunities.org/id/metropolitan-district-council/walsall,WC63-29,31/12/2015,Change and Governance,A D T FIRE AND SECURITY PLC,11/12/2015,"2,541.73",60008-MAINTENANCE-FURNITURE & EQUIPMENT,ACCOMMODATION SERVICES MANAGEMENT,Supplies & Services,Revenue
Walsall Council,http://opendatacommunities.org/id/metropolitan-district-council/walsall,WC63-30,31/12/2015,Social Care & Inclusion,A F BLAKEMORE & SON LTD,17/12/2015,241.38,60500-GENERAL MATERIALS,GOSCOTE,Supplies & Services,Revenue
Walsall Council,http://opendatacommunities.org/id/metropolitan-district-council/walsall,WC63-31,31/12/2015,Social Care & Inclusion,A F BLAKEMORE & SON LTD,11/12/2015,280.65,61016-FOOD AND BEVERAGES-PROVISIONS,FALLINGS HEATH,Supplies & Services,Revenue
Walsall Council,http://opendatacommunities.org/id/metropolitan-district-council/walsall,WC63-32,31/12/2015,Social Care & Inclusion,A F BLAKEMORE & SON LTD,17/12/2015,359.20,60500-GENERAL MATERIALS,GOSCOTE,Supplies & Services,Revenue
Walsall Council,http://opendatacommunities.org/id/metropolitan-district-council/walsall,WC63-33,31/12/2015,Economy & Environment,A F BLAKEMORE & SON LTD,21/12/2015,377.61,61002-DRY FOODS-PROVISIONS,BLOXWICH LEISURE CENTRE,Supplies & Services,Revenue
Walsall Council,http://opendatacommunities.org/id/metropolitan-district-council/walsall,WC63-34,31/12/2015,Social Care & Inclusion,A F BLAKEMORE & SON LTD,03/12/2015,504.00,61016-FOOD AND BEVERAGES-PROVISIONS,REABLEMENT TEAM - HOLLY BANK,Supplies & Services,Revenue
Walsall Council,http://opendatacommunities.org/id/metropolitan-district-council/walsall,WC63-35,31/12/2015,Economy & Environment,A F BLAKEMORE & SON LTD,04/12/2015,523.20,61008-CONFECTIONERY/SNACKS-PROVISIONS,OAK PARK,Supplies & Services,Revenue
Walsall Council,http://opendatacommunities.org/id/metropolitan-district-council/walsall,WC63-36,31/12/2015,Social Care & Inclusion,A F BLAKEMORE & SON LTD,07/12/2015,549.11,61016-FOOD AND BEVERAGES-PROVISIONS,REABLEMENT TEAM - HOLLY BANK,Supplies & Services,Revenue
Walsall Council,http://opendatacommunities.org/id/metropolitan-district-council/walsall,WC63-37,31/12/2015,Social Care & Inclusion,A F BLAKEMORE & SON LTD,17/12/2015,563.03,61016-FOOD AND BEVERAGES-PROVISIONS,REABLEMENT TEAM - HOLLY BANK,Supplies & Services,Revenue
Walsall Council,http://opendatacommunities.org/id/metropolitan-district-council/walsall,WC63-38,31/12/2015,Childrens,REDACTED,21/12/2015,349.76,74006-HOLIDAY/CHRISTMAS ALLOWANCE-FOSTER CARERS-OTH AGENCY PROVISION,INTERNAL FOSTER CARE PROVISION,Third Party Payments,Revenue
Walsall Council,http://opendatacommunities.org/id/metropolitan-district-council/walsall,WC63-39,31/12/2015,Economy & Environment,A KARIMS CHUCKERY PHARMACY,01/12/2015,17.70,63000-PROFESSIONAL FEES AND SERVICES,SEXUAL HEALTH,Supplies & Services,Revenue
Walsall Council,http://opendatacommunities.org/id/metropolitan-district-council/walsall,WC63-40,31/12/2015,Economy & Environment,A KARIMS CHUCKERY PHARMACY,01/12/2015,"1,046.04",71007-CONTRIBUTION TO PCT,PUBLIC HEALTH BUSINESS SUPPORT,Third Party Payments,Revenue
Walsall Council,http://opendatacommunities.org/id/metropolitan-district-council/walsall,WC63-41,31/12/2015,Economy & Environment,A KARIMS CHUCKERY PHARMACY,01/12/2015,"1,057.47",71007-CONTRIBUTION TO PCT,PUBLIC HEALTH BUSINESS SUPPORT,Third Party Payments,Revenue
Walsall Council,http://opendatacommunities.org/id/metropolitan-district-council/walsall,WC63-42,31/12/2015,Childrens,REDACTED,09/12/2015,430.86,76000-TRANSFER PAYMENTS - SOCIAL SERVICES CLIENTS,TRANSITION AND LEAVING CARE,Transfer Payments,Revenue
Walsall Council,http://opendatacommunities.org/id/metropolitan-district-council/walsall,WC63-43,31/12/2015,Childrens,REDACTED,18/12/2015,464.00,76000-TRANSFER PAYMENTS - SOCIAL SERVICES CLIENTS,TRANSITION AND LEAVING CARE,Transfer Payments,Revenue
Walsall Council,http://opendatacommunities.org/id/metropolitan-district-council/walsall,WC63-44,31/12/2015,Childrens,REDACTED,07/12/2015,485.76,62515-MISCELLANEOUS SUPPLIES,INTERNAL FOSTER CARE PROVISION,Supplies & Services,Revenue
Walsall Council,http://opendatacommunities.org/id/metropolitan-district-council/walsall,WC63-45,31/12/2015,Childrens,REDACTED,07/12/2015,528.09,74006-HOLIDAY/CHRISTMAS ALLOWANCE-FOSTER CARERS-OTH AGENCY PROVISION,INTERNAL FOSTER CARE PROVISION,Third Party Payments,Revenue
Walsall Council,http://opendatacommunities.org/id/metropolitan-district-council/walsall,WC63-46,31/12/2015,Holding Accounts,A&R VEHICLE SERVICES LIMITED,22/12/2015,420.98,67001-MISC INSURANCES - PAYMENT OF CLAIMS,PUBLIC LIABILITY,Supplies & Services,Revenue
Walsall Council,http://opendatacommunities.org/id/metropolitan-district-council/walsall,WC63-47,31/12/2015,Holding Accounts,A&R VEHICLE SERVICES LIMITED,22/12/2015,"2,787.75",67001-MISC INSURANCES - PAYMENT OF CLAIMS,PUBLIC LIABILITY,Supplies & Services,Revenue
Walsall Council,http://opendatacommunities.org/id/metropolitan-district-council/walsall,WC63-48,31/12/2015,Childrens,REDACTED,08/12/2015,431.55,76422-DIRECT PAYMENTS TO SOCIAL SERVICES CLIENTS,FAMILY SUPPORT - DIRECT PAYMENTS,Transfer Payments,Revenue
Walsall Council,http://opendatacommunities.org/id/metropolitan-district-council/walsall,WC63-49,31/12/2015,Childrens,ABACUS FOSTERING LTD,04/12/2015,"4,071.43",74037-INDEPENDENT FOSTER CARE-OTH AGENCY PROVISION,EXTERNAL FOSTER CARE PROVISION,Third Party Payments,Revenue
Walsall Council,http://opendatacommunities.org/id/metropolitan-district-council/walsall,WC63-50,31/12/2015,Childrens,REDACTED,21/12/2015,650.92,74006-HOLIDAY/CHRISTMAS ALLOWANCE-FOSTER CARERS-OTH AGENCY PROVISION,INTERNAL FOSTER CARE PROVISION,Third Party Payments,Revenue
Walsall Council,http://opendatacommunities.org/id/metropolitan-district-council/walsall,WC63-51,31/12/2015,Social Care & Inclusion,ABBEY COURT NURSING & RESIDEN,01/12/2015,"1,600.71",73373-RESIDENTIAL & NURSING CARE PLACEMENTS,OP COMMISSIONING,Third Party Payments,Revenue
Walsall Council,http://opendatacommunities.org/id/metropolitan-district-council/walsall,WC63-52,31/12/2015,Social Care & Inclusion,ABBEY COURT NURSING & RESIDEN,01/12/2015,"1,600.72",73373-RESIDENTIAL & NURSING CARE PLACEMENTS,OP COMMISSIONING,Third Party Payments,Revenue
Walsall Council,http://opendatacommunities.org/id/metropolitan-district-council/walsall,WC63-53,31/12/2015,Social Care & Inclusion,ABBEY COURT NURSING & RESIDEN,01/12/2015,"1,654.07",73373-RESIDENTIAL & NURSING CARE PLACEMENTS,OP COMMISSIONING,Third Party Payments,Revenue
Walsall Council,http://opendatacommunities.org/id/metropolitan-district-council/walsall,WC63-54,31/12/2015,Social Care & Inclusion,ABBEY COURT NURSING & RESIDEN,01/12/2015,"1,654.07",73373-RESIDENTIAL & NURSING CARE PLACEMENTS,OP COMMISSIONING,Third Party Payments,Revenue
Walsall Council,http://opendatacommunities.org/id/metropolitan-district-council/walsall,WC63-55,31/12/2015,Social Care & Inclusion,ABBEY COURT NURSING & RESIDEN,15/12/2015,"1,654.07",73373-RESIDENTIAL & NURSING CARE PLACEMENTS,OP COMMISSIONING,Third Party Payments,Revenue
Walsall Council,http://opendatacommunities.org/id/metropolitan-district-council/walsall,WC63-56,31/12/2015,Social Care & Inclusion,ABBEY COURT NURSING & RESIDEN,15/12/2015,"1,654.07",73373-RESIDENTIAL & NURSING CARE PLACEMENTS,OP COMMISSIONING,Third Party Payments,Revenue
Walsall Council,http://opendatacommunities.org/id/metropolitan-district-council/walsall,WC63-57,31/12/2015,Social Care & Inclusion,ABBEY HEALTHCARE HOMES LTD,15/12/2015,"1,699.28",73373-RESIDENTIAL & NURSING CARE PLACEMENTS,YADS COMMISSIONING,Third Party Payments,Revenue
Walsall Council,http://opendatacommunities.org/id/metropolitan-district-council/walsall,WC63-58,31/12/2015,Social Care & Inclusion,ABBEY HEALTHCARE HOMES LTD,15/12/2015,"2,294.08",73373-RESIDENTIAL & NURSING CARE PLACEMENTS,YADS COMMISSIONING,Third Party Payments,Revenue
Walsall Council,http://opendatacommunities.org/id/metropolitan-district-council/walsall,WC63-59,31/12/2015,Childrens,ABC CHILDRENS HOME,02/12/2015,"12,857.14",74036-EXTERNAL RESIDENTIAL CARE-OTH AGENCY PROVISION,INDEPENDENT RESIDENTIAL HOMES,Third Party Payments,Revenue
Walsall Council,http://opendatacommunities.org/id/metropolitan-district-council/walsall,WC63-60,31/12/2015,Childrens,ABC DAY NURSERY (WILLENHALL) LIMITED,04/12/2015,"6,990.10",66505-OTHER-GRANTS TO OTHER ORGS,EARLY YEARS - 3 YR OLDS,Third Party Payments,Revenue
Walsall Council,http://opendatacommunities.org/id/metropolitan-district-council/walsall,WC63-61,31/12/2015,Childrens,ABC DAY NURSERY (WILLENHALL) LIMITED,14/12/2015,"22,181.04",66505-OTHER-GRANTS TO OTHER ORGS,EARLY YEARS - 2 YR OLDS,Third Party Payments,Revenue
Walsall Council,http://opendatacommunities.org/id/metropolitan-district-council/walsall,WC63-62,31/12/2015,Childrens,ABC FOSTERING,18/12/2015,"3,036.00",74037-INDEPENDENT FOSTER CARE-OTH AGENCY PROVISION,EXTERNAL FOSTER CARE PROVISION,Third Party Payments,Revenue
Walsall Council,http://opendatacommunities.org/id/metropolitan-district-council/walsall,WC63-63,31/12/2015,Childrens,ABC TEACHERS LIMITED,07/12/2015,692.97,34305-AGENCY STAFF-EMPLOYEES,ACCESS TEAM,Employees,Revenue
Walsall Council,http://opendatacommunities.org/id/metropolitan-district-council/walsall,WC63-64,31/12/2015,Social Care & Inclusion,REDACTED,08/12/2015,"2,947.49",76422-DIRECT PAYMENTS TO SOCIAL SERVICES CLIENTS,LD COMMISSIONING,Transfer Payments,Revenue
Walsall Council,http://opendatacommunities.org/id/metropolitan-district-council/walsall,WC63-65,31/12/2015,Childrens,ABLEWELL CARS,01/12/2015,530.00,52000-WITH DRIVER-HIRE OF VEHICLES,SCHOOL TRANSPORT,Transport,Revenue
Walsall Council,http://opendatacommunities.org/id/metropolitan-district-council/walsall,WC63-66,31/12/2015,Childrens,ABLEWELL CARS,21/12/2015,530.00,52000-WITH DRIVER-HIRE OF VEHICLES,SCHOOL TRANSPORT,Transport,Revenue
Walsall Council,http://opendatacommunities.org/id/metropolitan-district-council/walsall,WC63-67,31/12/2015,Childrens,ABU BAKR NURSERY,03/12/2015,"12,440.16",66505-OTHER-GRANTS TO OTHER ORGS,EARLY YEARS - 2 YR OLDS,Third Party Payments,Revenue
Walsall Council,http://opendatacommunities.org/id/metropolitan-district-council/walsall,WC63-68,31/12/2015,Childrens,ABU BAKR NURSERY,04/12/2015,"28,588.60",66505-OTHER-GRANTS TO OTHER ORGS,EARLY YEARS - 3 YR OLDS,Third Party Payments,Revenue
Walsall Council,http://opendatacommunities.org/id/metropolitan-district-council/walsall,WC63-69,31/12/2015,Social Care & Inclusion,ACCORD HOUSING ASSOCIATION LTD#135,09/12/2015,270.48,73372-DOMICILIARY CARE,MH COMMISSIONING,Third Party Payments,Revenue
Walsall Council,http://opendatacommunities.org/id/metropolitan-district-council/walsall,WC63-70,31/12/2015,Childrens,ACCORD HOUSING ASSOCIATION LTD#135,18/12/2015,936.20,76422-DIRECT PAYMENTS TO SOCIAL SERVICES CLIENTS,SAFEGUARDING & FAMILY SUPPORT,Transfer Payments,Revenue
Walsall Council,http://opendatacommunities.org/id/metropolitan-district-council/walsall,WC63-71,31/12/2015,Social Care & Inclusion,ACCORD HOUSING ASSOCIATION LTD#135,09/12/2015,"1,345.96",73372-DOMICILIARY CARE,OP COMMISSIONING,Third Party Payments,Revenue
Walsall Council,http://opendatacommunities.org/id/metropolitan-district-council/walsall,WC63-72,31/12/2015,Social Care & Inclusion,ACCORD HOUSING ASSOCIATION LTD#135,01/12/2015,"2,691.92",73372-DOMICILIARY CARE,OP COMMISSIONING,Third Party Payments,Revenue
Walsall Council,http://opendatacommunities.org/id/metropolitan-district-council/walsall,WC63-73,31/12/2015,Social Care & Inclusion,ACCORD HOUSING ASSOCIATION LTD#135,01/12/2015,"2,691.92",73372-DOMICILIARY CARE,OP COMMISSIONING,Third Party Payments,Revenue
Walsall Council,http://opendatacommunities.org/id/metropolitan-district-council/walsall,WC63-74,31/12/2015,Social Care & Inclusion,ACCORD HOUSING ASSOCIATION LTD#135,01/12/2015,"2,691.92",73372-DOMICILIARY CARE,OP COMMISSIONING,Third Party Payments,Revenue
Walsall Council,http://opendatacommunities.org/id/metropolitan-district-council/walsall,WC63-75,31/12/2015,Social Care & Inclusion,ACCORD HOUSING ASSOCIATION LTD#135,01/12/2015,"2,691.92",73372-DOMICILIARY CARE,OP COMMISSIONING,Third Party Payments,Revenue
Walsall Council,http://opendatacommunities.org/id/metropolitan-district-council/walsall,WC63-76,31/12/2015,Social Care & Inclusion,ACCORD HOUSING ASSOCIATION LTD#135,01/12/2015,"2,691.92",73372-DOMICILIARY CARE,OP COMMISSIONING,Third Party Payments,Revenue
Walsall Council,http://opendatacommunities.org/id/metropolitan-district-council/walsall,WC63-77,31/12/2015,Social Care & Inclusion,ACCORD HOUSING ASSOCIATION LTD#135,01/12/2015,"2,691.92",73372-DOMICILIARY CARE,OP COMMISSIONING,Third Party Payments,Revenue
Walsall Council,http://opendatacommunities.org/id/metropolitan-district-council/walsall,WC63-78,31/12/2015,Social Care & Inclusion,ACCORD HOUSING ASSOCIATION LTD#135,09/12/2015,"2,691.92",73372-DOMICILIARY CARE,OP COMMISSIONING,Third Party Payments,Revenue
Walsall Council,http://opendatacommunities.org/id/metropolitan-district-council/walsall,WC63-79,31/12/2015,Change and Governance,ACCORD HOUSING ASSOCIATION LTD#135,04/12/2015,"4,270.00",01046-OTHER GRANTS,CFR 774 WALSALL HEALTH THROUGH WARMTH PROGRAMME,Capital,Capital
Walsall Council,http://opendatacommunities.org/id/metropolitan-district-council/walsall,WC63-80,31/12/2015,Social Care & Inclusion,ACCORD HOUSING ASSOCIATION LTD#135,08/12/2015,"4,591.84",73373-RESIDENTIAL & NURSING CARE PLACEMENTS,LD COMMISSIONING,Third Party Payments,Revenue
Walsall Council,http://opendatacommunities.org/id/metropolitan-district-council/walsall,WC63-81,31/12/2015,Social Care & Inclusion,ACCORD HOUSING ASSOCIATION LTD#135,08/12/2015,"4,591.84",73373-RESIDENTIAL & NURSING CARE PLACEMENTS,LD COMMISSIONING,Third Party Payments,Revenue
Walsall Council,http://opendatacommunities.org/id/metropolitan-district-council/walsall,WC63-82,31/12/2015,Social Care & Inclusion,ACCORD HOUSING ASSOCIATION LTD#135,08/12/2015,"4,591.84",73373-RESIDENTIAL & NURSING CARE PLACEMENTS,LD COMMISSIONING,Third Party Payments,Revenue
Walsall Council,http://opendatacommunities.org/id/metropolitan-district-council/walsall,WC63-83,31/12/2015,Social Care & Inclusion,ACCORD HOUSING ASSOCIATION LTD#135,15/12/2015,"4,591.84",73373-RESIDENTIAL & NURSING CARE PLACEMENTS,LD COMMISSIONING,Third Party Payments,Revenue
Walsall Council,http://opendatacommunities.org/id/metropolitan-district-council/walsall,WC63-84,31/12/2015,Social Care & Inclusion,ACCORD HOUSING ASSOCIATION LTD#135,08/12/2015,"6,408.73",73373-RESIDENTIAL & NURSING CARE PLACEMENTS,LD COMMISSIONING,Third Party Payments,Revenue
Walsall Council,http://opendatacommunities.org/id/metropolitan-district-council/walsall,WC63-85,31/12/2015,Social Care & Inclusion,ACCORD HOUSING ASSOCIATION LTD#135,08/12/2015,"6,408.73",73373-RESIDENTIAL & NURSING CARE PLACEMENTS,LD COMMISSIONING,Third Party Payments,Revenue
Walsall Council,http://opendatacommunities.org/id/metropolitan-district-council/walsall,WC63-86,31/12/2015,Social Care & Inclusion,ACCORD HOUSING ASSOCIATION LTD#135,08/12/2015,"6,408.73",73373-RESIDENTIAL & NURSING CARE PLACEMENTS,LD COMMISSIONING,Third Party Payments,Revenue
Walsall Council,http://opendatacommunities.org/id/metropolitan-district-council/walsall,WC63-87,31/12/2015,Social Care & Inclusion,ACCORD HOUSING ASSOCIATION LTD#135,09/12/2015,"8,463.65",73372-DOMICILIARY CARE,OP COMMISSIONING,Third Party Payments,Revenue
Walsall Council,http://opendatacommunities.org/id/metropolitan-district-council/walsall,WC63-88,31/12/2015,Social Care & Inclusion,ACCORD HOUSING ASSOCIATION LTD#135,09/12/2015,"29,025.08",73372-DOMICILIARY CARE,OP COMMISSIONING,Third Party Payments,Revenue
Walsall Council,http://opendatacommunities.org/id/metropolitan-district-council/walsall,WC63-89,31/12/2015,Economy & Environment,ACCORD HOUSING ASSOCIATION LTD#135,09/12/2015,"286,130.53",66500-GRANTS TO OTHER ORGS,CITY DEAL WELFARE PILOT,Third Party Payments,Revenue
Walsall Council,http://opendatacommunities.org/id/metropolitan-district-council/walsall,WC63-90,31/12/2015,Change and Governance,ACE PA HIRE,11/12/2015,300.00,83900-CIVIC EVENTS-OTHER DEMOCRACY COSTS,MAYORS SECRETARIAT,Supplies & Services,Revenue
Walsall Council,http://opendatacommunities.org/id/metropolitan-district-council/walsall,WC63-91,31/12/2015,Change and Governance,ACE PA HIRE,11/12/2015,600.00,83900-CIVIC EVENTS-OTHER DEMOCRACY COSTS,MAYORS SECRETARIAT,Supplies & Services,Revenue
Walsall Council,http://opendatacommunities.org/id/metropolitan-district-council/walsall,WC63-92,31/12/2015,Childrens,ACE RADIO CARS,01/12/2015,"1,366.68",52000-WITH DRIVER-HIRE OF VEHICLES,SCHOOL TRANSPORT,Transport,Revenue
Walsall Council,http://opendatacommunities.org/id/metropolitan-district-council/walsall,WC63-93,31/12/2015,Change and Governance,ACE REMOVALS,01/12/2015,450.00,60104-REMOVAL OF FURNITURE,ADVICE & GUIDANCE SERVICE,Supplies & Services,Revenue
Walsall Council,http://opendatacommunities.org/id/metropolitan-district-council/walsall,WC63-94,31/12/2015,Social Care & Inclusion,ACEPAY LTD (COTTAGE NUR HOME),18/12/2015,"1,975.60",73373-RESIDENTIAL & NURSING CARE PLACEMENTS,OP COMMISSIONING,Third Party Payments,Revenue
Walsall Council,http://opendatacommunities.org/id/metropolitan-district-council/walsall,WC63-95,31/12/2015,Social Care & Inclusion,ACEPAY LTD (COTTAGE NUR HOME),18/12/2015,"1,975.60",73373-RESIDENTIAL & NURSING CARE PLACEMENTS,OP COMMISSIONING,Third Party Payments,Revenue
Walsall Council,http://opendatacommunities.org/id/metropolitan-district-council/walsall,WC63-96,31/12/2015,Social Care & Inclusion,ACEPAY LTD (COTTAGE NUR HOME),18/12/2015,"1,975.60",73373-RESIDENTIAL & NURSING CARE PLACEMENTS,OP COMMISSIONING,Third Party Payments,Revenue
Walsall Council,http://opendatacommunities.org/id/metropolitan-district-council/walsall,WC63-97,31/12/2015,Social Care & Inclusion,ACEPAY LTD (COTTAGE NUR HOME),01/12/2015,"2,018.20",73373-RESIDENTIAL & NURSING CARE PLACEMENTS,OP COMMISSIONING,Third Party Payments,Revenue
Walsall Council,http://opendatacommunities.org/id/metropolitan-district-council/walsall,WC63-98,31/12/2015,Social Care & Inclusion,ACEPAY LTD (COTTAGE NUR HOME),18/12/2015,"2,018.20",73373-RESIDENTIAL & NURSING CARE PLACEMENTS,OP COMMISSIONING,Third Party Payments,Revenue
Walsall Council,http://opendatacommunities.org/id/metropolitan-district-council/walsall,WC63-99,31/12/2015,Social Care & Inclusion,ACEPAY LTD (COTTAGE NUR HOME),18/12/2015,"2,018.20",73373-RESIDENTIAL & NURSING CARE PLACEMENTS,OP COMMISSIONING,Third Party Payments,Revenue
Walsall Council,http://opendatacommunities.org/id/metropolitan-district-council/walsall,WC63-100,31/12/2015,Social Care & Inclusion,ACEPAY LTD (COTTAGE NUR HOME),18/12/2015,"2,018.20",73373-RESIDENTIAL & NURSING CARE PLACEMENTS,OP COMMISSIONING,Third Party Payments,Revenue
Walsall Council,http://opendatacommunities.org/id/metropolitan-district-council/walsall,WC63-101,31/12/2015,Social Care & Inclusion,ACEPAY LTD (COTTAGE NUR HOME),01/12/2015,"3,810.09",73373-RESIDENTIAL & NURSING CARE PLACEMENTS,OP COMMISSIONING,Third Party Payments,Revenue
Walsall Council,http://opendatacommunities.org/id/metropolitan-district-council/walsall,WC63-102,31/12/2015,Social Care & Inclusion,ACORN CARE LTD,08/12/2015,"14,684.70",73373-RESIDENTIAL & NURSING CARE PLACEMENTS,LD COMMISSIONING,Third Party Payments,Revenue
Walsall Council,http://opendatacommunities.org/id/metropolitan-district-council/walsall,WC63-103,31/12/2015,Social Care & Inclusion,ACORN CARE LTD,08/12/2015,"15,174.19",73373-RESIDENTIAL & NURSING CARE PLACEMENTS,LD COMMISSIONING,Third Party Payments,Revenue
Walsall Council,http://opendatacommunities.org/id/metropolitan-district-council/walsall,WC63-104,31/12/2015,Social Care & Inclusion,ACORN CARE LTD,15/12/2015,"15,174.19",73373-RESIDENTIAL & NURSING CARE PLACEMENTS,LD COMMISSIONING,Third Party Payments,Revenue
Walsall Council,http://opendatacommunities.org/id/metropolitan-district-council/walsall,WC63-105,31/12/2015,Childrens,ACORN FOSTERING SERVICES LTD,11/12/2015,"3,318.22",74037-INDEPENDENT FOSTER CARE-OTH AGENCY PROVISION,EXTERNAL FOSTER CARE PROVISION,Third Party Payments,Revenue
Walsall Council,http://opendatacommunities.org/id/metropolitan-district-council/walsall,WC63-106,31/12/2015,Childrens,ACORN FOSTERING SERVICES LTD,17/12/2015,"3,318.22",74037-INDEPENDENT FOSTER CARE-OTH AGENCY PROVISION,EXTERNAL FOSTER CARE PROVISION,Third Party Payments,Revenue
Walsall Council,http://opendatacommunities.org/id/metropolitan-district-council/walsall,WC63-107,31/12/2015,Social Care & Inclusion,ACORN REST HOME,18/12/2015,"1,493.24",73373-RESIDENTIAL & NURSING CARE PLACEMENTS,OP COMMISSIONING,Third Party Payments,Revenue
Walsall Council,http://opendatacommunities.org/id/metropolitan-district-council/walsall,WC63-108,31/12/2015,Childrens,ACORNS CHILDRENS HOSPICE TRUST,10/12/2015,750.00,63000-PROFESSIONAL FEES AND SERVICES,DIRECTLY COMMISSIONED NURSING SERVICES,Supplies & Services,Revenue
Walsall Council,http://opendatacommunities.org/id/metropolitan-district-council/walsall,WC63-109,31/12/2015,Childrens,REDACTED,08/12/2015,609.50,76422-DIRECT PAYMENTS TO SOCIAL SERVICES CLIENTS,FAMILY SUPPORT - DIRECT PAYMENTS,Transfer Payments,Revenue
Walsall Council,http://opendatacommunities.org/id/metropolitan-district-council/walsall,WC63-110,31/12/2015,Social Care & Inclusion,REDACTED,08/12/2015,521.85,76422-DIRECT PAYMENTS TO SOCIAL SERVICES CLIENTS,LD COMMISSIONING,Transfer Payments,Revenue
Walsall Council,http://opendatacommunities.org/id/metropolitan-district-council/walsall,WC63-111,31/12/2015,Social Care & Inclusion,REDACTED,08/12/2015,"1,075.00",76422-DIRECT PAYMENTS TO SOCIAL SERVICES CLIENTS,OP COMMISSIONING,Transfer Payments,Revenue
Walsall Council,http://opendatacommunities.org/id/metropolitan-district-council/walsall,WC63-112,31/12/2015,Change and Governance,ADMIRAL SELF STORAGE LTD,21/12/2015,419.32,63000-PROFESSIONAL FEES AND SERVICES,FINANCE ADMIN,Supplies & Services,Revenue
Walsall Council,http://opendatacommunities.org/id/metropolitan-district-council/walsall,WC63-113,31/12/2015,Social Care & Inclusion,ADMIRAL SELF STORAGE LTD,10/12/2015,783.90,60514-MATERIALS TO STORES,INTEGRATED BUSINESS PROCESSES & SERVICES,Supplies & Services,Revenue
Walsall Council,http://opendatacommunities.org/id/metropolitan-district-council/walsall,WC63-114,31/12/2015,Economy & Environment,REDACTED,07/12/2015,300.00,63000-PROFESSIONAL FEES AND SERVICES,FOREST ARTS CENTRE,Supplies & Services,Revenue
Walsall Council,http://opendatacommunities.org/id/metropolitan-district-council/walsall,WC63-115,31/12/2015,Childrens,REDACTED,21/12/2015,728.32,74006-HOLIDAY/CHRISTMAS ALLOWANCE-FOSTER CARERS-OTH AGENCY PROVISION,INTERNAL FOSTER CARE PROVISION,Third Party Payments,Revenue
Walsall Council,http://opendatacommunities.org/id/metropolitan-district-council/walsall,WC63-116,31/12/2015,Economy & Environment,ADS ELECTRICAL & HIGHWAY SERVICES LTD,02/12/2015,385.00,60534-VEHICLE TESTING STATION-MATERIALS,GROUNDS,Supplies & Services,Revenue
Walsall Council,http://opendatacommunities.org/id/metropolitan-district-council/walsall,WC63-117,31/12/2015,Economy & Environment,ADS ELECTRICAL & HIGHWAY SERVICES LTD,01/12/2015,395.00,60534-VEHICLE TESTING STATION-MATERIALS,GROUNDS,Supplies & Services,Revenue
Walsall Council,http://opendatacommunities.org/id/metropolitan-district-council/walsall,WC63-118,31/12/2015,Social Care & Inclusion,ADVANCE HEALTH CARE (UK) LTD,09/12/2015,643.44,73372-DOMICILIARY CARE,OP COMMISSIONING,Third Party Payments,Revenue
Walsall Council,http://opendatacommunities.org/id/metropolitan-district-council/walsall,WC63-119,31/12/2015,Social Care & Inclusion,ADVANCE HEALTH CARE (UK) LTD,09/12/2015,"42,208.37",73372-DOMICILIARY CARE,OP COMMISSIONING,Third Party Payments,Revenue
Walsall Council,http://opendatacommunities.org/id/metropolitan-district-council/walsall,WC63-120,31/12/2015,Change and Governance,ADVANCED DIGITAL IMAGING,10/12/2015,368.00,62008-OUTWORK-PRINT ROOM,PRINTING SERVICES,Supplies & Services,Revenue
Walsall Council,http://opendatacommunities.org/id/metropolitan-district-council/walsall,WC63-121,31/12/2015,Economy & Environment,ADVANTAGE RESTORATION LTD,18/12/2015,"1,860.00",60008-MAINTENANCE-FURNITURE & EQUIPMENT,PARKING SERVICES,Supplies & Services,Revenue
Walsall Council,http://opendatacommunities.org/id/metropolitan-district-council/walsall,WC63-122,31/12/2015,Childrens,ADVENTURELAND DAY NURSERY,03/12/2015,"3,927.00",66505-OTHER-GRANTS TO OTHER ORGS,EARLY YEARS - 3 YR OLDS,Third Party Payments,Revenue
Walsall Council,http://opendatacommunities.org/id/metropolitan-district-council/walsall,WC63-123,31/12/2015,Childrens,ADVENTURELAND DAY NURSERY,03/12/2015,"14,537.97",66505-OTHER-GRANTS TO OTHER ORGS,EARLY YEARS - 2 YR OLDS,Third Party Payments,Revenue
Walsall Council,http://opendatacommunities.org/id/metropolitan-district-council/walsall,WC63-124,31/12/2015,Economy & Environment,AECOM LIMITED,04/12/2015,686.22,01001-OTHER CONSULTANTS FEES,CFR 876 DARLASTON STRUCTURES,Capital,Capital
Walsall Council,http://opendatacommunities.org/id/metropolitan-district-council/walsall,WC63-125,31/12/2015,Economy & Environment,AECOM LIMITED,02/12/2015,"3,755.83",01001-OTHER CONSULTANTS FEES,CFR 876 DARLASTON DSDA,Capital,Capital
Walsall Council,http://opendatacommunities.org/id/metropolitan-district-council/walsall,WC63-126,31/12/2015,Economy & Environment,AECOM LIMITED,02/12/2015,"5,649.82",01002-PROJECT FEES,CFR 1072 M6 JUNCTION 10,Capital,Capital
Walsall Council,http://opendatacommunities.org/id/metropolitan-district-council/walsall,WC63-127,31/12/2015,Economy & Environment,AECOM LIMITED,04/12/2015,"8,762.25",73025-PROFESSIONAL SERVICES-PRIV CONTRACTOR & OTHER AGENCIES,POLLUTION DIVISION,Third Party Payments,Revenue
Walsall Council,http://opendatacommunities.org/id/metropolitan-district-council/walsall,WC63-128,31/12/2015,Economy & Environment,AECOM LIMITED,21/12/2015,"9,166.45",73025-PROFESSIONAL SERVICES-PRIV CONTRACTOR & OTHER AGENCIES,POLLUTION DIVISION,Third Party Payments,Revenue
Walsall Council,http://opendatacommunities.org/id/metropolitan-district-council/walsall,WC63-129,31/12/2015,Change and Governance,AGE UK WALSALL,01/12/2015,"20,000.00",70004-GRANTS TO VOLUNTARY BODIES,STRATEGIC RESOURCE,Third Party Payments,Revenue
Walsall Council,http://opendatacommunities.org/id/metropolitan-district-council/walsall,WC63-130,31/12/2015,Social Care & Inclusion,REDACTED,08/12/2015,"2,352.50",76422-DIRECT PAYMENTS TO SOCIAL SERVICES CLIENTS,LD COMMISSIONING,Transfer Payments,Revenue
Walsall Council,http://opendatacommunities.org/id/metropolitan-district-council/walsall,WC63-131,31/12/2015,Economy & Environment,AIR PLANTS DUST EXTRACTION LTD,08/12/2015,34.50,60500-GENERAL MATERIALS,NAG - MAINTENANCE,Supplies & Services,Revenue
Walsall Council,http://opendatacommunities.org/id/metropolitan-district-council/walsall,WC63-132,31/12/2015,Economy & Environment,AIR PLANTS DUST EXTRACTION LTD,08/12/2015,360.00,60008-MAINTENANCE-FURNITURE & EQUIPMENT,NAG - MAINTENANCE,Supplies & Services,Revenue
Walsall Council,http://opendatacommunities.org/id/metropolitan-district-council/walsall,WC63-133,31/12/2015,Social Care & Inclusion,REDACTED,08/12/2015,"1,170.65",76422-DIRECT PAYMENTS TO SOCIAL SERVICES CLIENTS,OP COMMISSIONING,Transfer Payments,Revenue
Walsall Council,http://opendatacommunities.org/id/metropolitan-district-council/walsall,WC63-134,31/12/2015,Childrens,AJK TRAVEL,01/12/2015,938.70,52000-WITH DRIVER-HIRE OF VEHICLES,SCHOOL TRANSPORT,Transport,Revenue
Walsall Council,http://opendatacommunities.org/id/metropolitan-district-council/walsall,WC63-135,31/12/2015,Childrens,AJK TRAVEL,07/12/2015,938.70,52000-WITH DRIVER-HIRE OF VEHICLES,SCHOOL TRANSPORT,Transport,Revenue
Walsall Council,http://opendatacommunities.org/id/metropolitan-district-council/walsall,WC63-136,31/12/2015,Childrens,AJK TRAVEL,15/12/2015,938.70,52000-WITH DRIVER-HIRE OF VEHICLES,SCHOOL TRANSPORT,Transport,Revenue
Walsall Council,http://opendatacommunities.org/id/metropolitan-district-council/walsall,WC63-137,31/12/2015,Childrens,AJK TRAVEL,21/12/2015,938.70,52000-WITH DRIVER-HIRE OF VEHICLES,SCHOOL TRANSPORT,Transport,Revenue
Walsall Council,http://opendatacommunities.org/id/metropolitan-district-council/walsall,WC63-138,31/12/2015,Childrens,AJK TRAVEL,21/12/2015,938.70,52000-WITH DRIVER-HIRE OF VEHICLES,SCHOOL TRANSPORT,Transport,Revenue
Walsall Council,http://opendatacommunities.org/id/metropolitan-district-council/walsall,WC63-139,31/12/2015,Childrens,ALAN CRITCHLEY ASSOCIATES,11/12/2015,"1,800.00",63000-PROFESSIONAL FEES AND SERVICES,SAFEGUARDING BOARD,Supplies & Services,Revenue
Walsall Council,http://opendatacommunities.org/id/metropolitan-district-council/walsall,WC63-140,31/12/2015,Social Care & Inclusion,ALAN CRITCHLEY ASSOCIATES,22/12/2015,"1,800.00",32000-MISC FEES AND EXPENSES,SENIOR MANAGEMENT TEAM,Employees,Revenue
Walsall Council,http://opendatacommunities.org/id/metropolitan-district-council/walsall,WC63-141,31/12/2015,Economy & Environment,ALANA ECOLOGY LTD,08/12/2015,276.59,62523-EVENTS,COMMUNITY LIAISON,Supplies & Services,Revenue
Walsall Council,http://opendatacommunities.org/id/metropolitan-district-council/walsall,WC63-142,31/12/2015,Economy & Environment,ALBEMARLE,07/12/2015,"2,000.00",63000-PROFESSIONAL FEES AND SERVICES,FOREST ARTS CENTRE,Supplies & Services,Revenue
Walsall Council,http://opendatacommunities.org/id/metropolitan-district-council/walsall,WC63-143,31/12/2015,Social Care & Inclusion,REDACTED,08/12/2015,834.75,76422-DIRECT PAYMENTS TO SOCIAL SERVICES CLIENTS,OP COMMISSIONING,Transfer Payments,Revenue
Walsall Council,http://opendatacommunities.org/id/metropolitan-district-council/walsall,WC63-144,31/12/2015,Social Care & Inclusion,ALDERGROVE MANOR CARE HOME,08/12/2015,"1,839.68",73373-RESIDENTIAL & NURSING CARE PLACEMENTS,MH COMMISSIONING,Third Party Payments,Revenue
Walsall Council,http://opendatacommunities.org/id/metropolitan-district-council/walsall,WC63-145,31/12/2015,Childrens,ALDRIDGE & BARONS LIMITED,08/12/2015,340.00,52001-HIRE OF VEHICLES,CHILDRENS TAXI BUDGET,Transport,Revenue
Walsall Council,http://opendatacommunities.org/id/metropolitan-district-council/walsall,WC63-146,31/12/2015,Childrens,ALDRIDGE & BARONS LIMITED,04/12/2015,"11,277.95",52000-WITH DRIVER-HIRE OF VEHICLES,SCHOOL TRANSPORT,Transport,Revenue
Walsall Council,http://opendatacommunities.org/id/metropolitan-district-council/walsall,WC63-147,31/12/2015,Childrens,ALDRIDGE & BARONS LIMITED,02/12/2015,"22,053.90",52000-WITH DRIVER-HIRE OF VEHICLES,SCHOOL TRANSPORT,Transport,Revenue
Walsall Council,http://opendatacommunities.org/id/metropolitan-district-council/walsall,WC63-148,31/12/2015,Change and Governance,ALDRIDGE METHODIST CHURCH 001,16/12/2015,250.00,62515-MISCELLANEOUS SUPPLIES,AREA 2 - ALDRIDGE/STREETLY/PHEASEY,Supplies & Services,Revenue
Walsall Council,http://opendatacommunities.org/id/metropolitan-district-council/walsall,WC63-149,31/12/2015,Social Care & Inclusion,REDACTED,08/12/2015,"1,505.00",76422-DIRECT PAYMENTS TO SOCIAL SERVICES CLIENTS,YADS COMMISSIONING,Transfer Payments,Revenue
Walsall Council,http://opendatacommunities.org/id/metropolitan-district-council/walsall,WC63-150,31/12/2015,Social Care & Inclusion,ALEXANDRA HOUSE CARE SERVICES LTD T/A STONEBRIDGE NURSING HOME,01/12/2015,"7,117.44",73373-RESIDENTIAL & NURSING CARE PLACEMENTS,OP COMMISSIONING,Third Party Payments,Revenue
Walsall Council,http://opendatacommunities.org/id/metropolitan-district-council/walsall,WC63-151,31/12/2015,Social Care & Inclusion,ALEXANDRA HOUSE CARE SERVICES LTD T/A STONEBRIDGE NURSING HOME,18/12/2015,"7,117.44",73373-RESIDENTIAL & NURSING CARE PLACEMENTS,OP COMMISSIONING,Third Party Payments,Revenue
Walsall Council,http://opendatacommunities.org/id/metropolitan-district-council/walsall,WC63-152,31/12/2015,Childrens,REDACTED,08/12/2015,728.33,76422-DIRECT PAYMENTS TO SOCIAL SERVICES CLIENTS,FAMILY SUPPORT - DIRECT PAYMENTS,Transfer Payments,Revenue
Walsall Council,http://opendatacommunities.org/id/metropolitan-district-council/walsall,WC63-153,31/12/2015,Social Care & Inclusion,REDACTED,08/12/2015,"1,067.50",76422-DIRECT PAYMENTS TO SOCIAL SERVICES CLIENTS,YADS COMMISSIONING,Transfer Payments,Revenue
Walsall Council,http://opendatacommunities.org/id/metropolitan-district-council/walsall,WC63-154,31/12/2015,Social Care & Inclusion,REDACTED,08/12/2015,722.50,76422-DIRECT PAYMENTS TO SOCIAL SERVICES CLIENTS,OP COMMISSIONING,Transfer Payments,Revenue
Walsall Council,http://opendatacommunities.org/id/metropolitan-district-council/walsall,WC63-155,31/12/2015,Childrens,REDACTED,07/12/2015,-423.15,74508-INTERNAL FOSTER CARERS-CARER FEES,INTERNAL FOSTER CARE PROVISION,Transfer Payments,Revenue
Walsall Council,http://opendatacommunities.org/id/metropolitan-district-council/walsall,WC63-156,31/12/2015,Childrens,REDACTED,07/12/2015,619.42,62515-MISCELLANEOUS SUPPLIES,INTERNAL FOSTER CARE PROVISION,Supplies & Services,Revenue
Walsall Council,http://opendatacommunities.org/id/metropolitan-district-council/walsall,WC63-157,31/12/2015,Childrens,REDACTED,07/12/2015,"1,161.79",74006-HOLIDAY/CHRISTMAS ALLOWANCE-FOSTER CARERS-OTH AGENCY PROVISION,INTERNAL FOSTER CARE PROVISION,Third Party Payments,Revenue
Walsall Council,http://opendatacommunities.org/id/metropolitan-district-council/walsall,WC63-158,31/12/2015,Childrens,REDACTED,03/12/2015,359.42,66505-OTHER-GRANTS TO OTHER ORGS,EARLY YEARS - 2 YR OLDS,Third Party Payments,Revenue
Walsall Council,http://opendatacommunities.org/id/metropolitan-district-council/walsall,WC63-159,31/12/2015,Childrens,REDACTED,21/12/2015,552.96,74006-HOLIDAY/CHRISTMAS ALLOWANCE-FOSTER CARERS-OTH AGENCY PROVISION,INTERNAL FOSTER CARE PROVISION,Third Party Payments,Revenue
Walsall Council,http://opendatacommunities.org/id/metropolitan-district-council/walsall,WC63-160,31/12/2015,Change and Governance,ALLSORTS OFFICE SUPPLIES LTD,18/12/2015,"1,226.00",60000-FURNITURE & EQUIPMENT,PRIVATE SECTOR HOUSING,Supplies & Services,Revenue
Walsall Council,http://opendatacommunities.org/id/metropolitan-district-council/walsall,WC63-161,31/12/2015,Childrens,ALMOZENE NURSERY & CHILDRENS CENTRE,04/12/2015,"2,120.60",66505-OTHER-GRANTS TO OTHER ORGS,EARLY YEARS - 3 YR OLDS,Third Party Payments,Revenue
Walsall Council,http://opendatacommunities.org/id/metropolitan-district-council/walsall,WC63-162,31/12/2015,Childrens,ALMOZENE NURSERY & CHILDRENS CENTRE,03/12/2015,"10,232.33",66505-OTHER-GRANTS TO OTHER ORGS,EARLY YEARS - 2 YR OLDS,Third Party Payments,Revenue
Walsall Council,http://opendatacommunities.org/id/metropolitan-district-council/walsall,WC63-163,31/12/2015,Childrens,ALPHA HAIR DESIGN ACADEMY,17/12/2015,"2,206.00",63000-PROFESSIONAL FEES AND SERVICES,INDEPENDENT PROVIDERS - SPECIAL & AP,Supplies & Services,Revenue
Walsall Council,http://opendatacommunities.org/id/metropolitan-district-council/walsall,WC63-164,31/12/2015,Childrens,ALPHA HAIR DESIGN ACADEMY,17/12/2015,"2,206.00",63000-PROFESSIONAL FEES AND SERVICES,INDEPENDENT PROVIDERS - SPECIAL & AP,Supplies & Services,Revenue
Walsall Council,http://opendatacommunities.org/id/metropolitan-district-council/walsall,WC63-165,31/12/2015,Social Care & Inclusion,ALPHA HEALTH CARE LTD,08/12/2015,-928.00,73373-RESIDENTIAL & NURSING CARE PLACEMENTS,MH COMMISSIONING,Third Party Payments,Revenue
Walsall Council,http://opendatacommunities.org/id/metropolitan-district-council/walsall,WC63-166,31/12/2015,Social Care & Inclusion,ALPHA HEALTH CARE LTD,18/12/2015,-896.00,73373-RESIDENTIAL & NURSING CARE PLACEMENTS,OP COMMISSIONING,Third Party Payments,Revenue
Walsall Council,http://opendatacommunities.org/id/metropolitan-district-council/walsall,WC63-167,31/12/2015,Social Care & Inclusion,ALPHA HEALTH CARE LTD,18/12/2015,-661.46,73373-RESIDENTIAL & NURSING CARE PLACEMENTS,OP COMMISSIONING,Third Party Payments,Revenue
Walsall Council,http://opendatacommunities.org/id/metropolitan-district-council/walsall,WC63-168,31/12/2015,Social Care & Inclusion,ALPHA HEALTH CARE LTD,01/12/2015,448.18,73373-RESIDENTIAL & NURSING CARE PLACEMENTS,OP COMMISSIONING,Third Party Payments,Revenue
Walsall Council,http://opendatacommunities.org/id/metropolitan-district-council/walsall,WC63-169,31/12/2015,Social Care & Inclusion,ALPHA HEALTH CARE LTD,08/12/2015,799.95,73373-RESIDENTIAL & NURSING CARE PLACEMENTS,OP COMMISSIONING,Third Party Payments,Revenue
Walsall Council,http://opendatacommunities.org/id/metropolitan-district-council/walsall,WC63-170,31/12/2015,Social Care & Inclusion,ALPHA HEALTH CARE LTD,01/12/2015,"1,013.85",73373-RESIDENTIAL & NURSING CARE PLACEMENTS,MH COMMISSIONING,Third Party Payments,Revenue
Walsall Council,http://opendatacommunities.org/id/metropolitan-district-council/walsall,WC63-171,31/12/2015,Social Care & Inclusion,ALPHA HEALTH CARE LTD,08/12/2015,"1,270.03",73373-RESIDENTIAL & NURSING CARE PLACEMENTS,MH COMMISSIONING,Third Party Payments,Revenue
Walsall Council,http://opendatacommunities.org/id/metropolitan-district-council/walsall,WC63-172,31/12/2015,Social Care & Inclusion,ALPHA HEALTH CARE LTD,15/12/2015,"1,406.56",73373-RESIDENTIAL & NURSING CARE PLACEMENTS,OP COMMISSIONING,Third Party Payments,Revenue
Walsall Council,http://opendatacommunities.org/id/metropolitan-district-council/walsall,WC63-173,31/12/2015,Social Care & Inclusion,ALPHA HEALTH CARE LTD,15/12/2015,"1,413.08",73373-RESIDENTIAL & NURSING CARE PLACEMENTS,OP COMMISSIONING,Third Party Payments,Revenue
Walsall Council,http://opendatacommunities.org/id/metropolitan-district-council/walsall,WC63-174,31/12/2015,Social Care & Inclusion,ALPHA HEALTH CARE LTD,01/12/2015,"1,441.56",73373-RESIDENTIAL & NURSING CARE PLACEMENTS,OP COMMISSIONING,Third Party Payments,Revenue
Walsall Council,http://opendatacommunities.org/id/metropolitan-district-council/walsall,WC63-175,31/12/2015,Social Care & Inclusion,ALPHA HEALTH CARE LTD,15/12/2015,"1,493.24",73373-RESIDENTIAL & NURSING CARE PLACEMENTS,OP COMMISSIONING,Third Party Payments,Revenue
Walsall Council,http://opendatacommunities.org/id/metropolitan-district-council/walsall,WC63-176,31/12/2015,Social Care & Inclusion,ALPHA HEALTH CARE LTD,15/12/2015,"1,493.24",73373-RESIDENTIAL & NURSING CARE PLACEMENTS,OP COMMISSIONING,Third Party Payments,Revenue
Walsall Council,http://opendatacommunities.org/id/metropolitan-district-council/walsall,WC63-177,31/12/2015,Social Care & Inclusion,ALPHA HEALTH CARE LTD,15/12/2015,"1,510.08",73373-RESIDENTIAL & NURSING CARE PLACEMENTS,OP COMMISSIONING,Third Party Payments,Revenue
Walsall Council,http://opendatacommunities.org/id/metropolitan-district-council/walsall,WC63-178,31/12/2015,Social Care & Inclusion,ALPHA HEALTH CARE LTD,15/12/2015,"1,510.08",73373-RESIDENTIAL & NURSING CARE PLACEMENTS,OP COMMISSIONING,Third Party Payments,Revenue
Walsall Council,http://opendatacommunities.org/id/metropolitan-district-council/walsall,WC63-179,31/12/2015,Social Care & Inclusion,ALPHA HEALTH CARE LTD,01/12/2015,"1,527.60",73373-RESIDENTIAL & NURSING CARE PLACEMENTS,OP COMMISSIONING,Third Party Payments,Revenue
Walsall Council,http://opendatacommunities.org/id/metropolitan-district-council/walsall,WC63-180,31/12/2015,Social Care & Inclusion,ALPHA HEALTH CARE LTD,01/12/2015,"1,527.60",73373-RESIDENTIAL & NURSING CARE PLACEMENTS,OP COMMISSIONING,Third Party Payments,Revenue
Walsall Council,http://opendatacommunities.org/id/metropolitan-district-council/walsall,WC63-181,31/12/2015,Social Care & Inclusion,ALPHA HEALTH CARE LTD,01/12/2015,"1,527.60",73373-RESIDENTIAL & NURSING CARE PLACEMENTS,OP COMMISSIONING,Third Party Payments,Revenue
Walsall Council,http://opendatacommunities.org/id/metropolitan-district-council/walsall,WC63-182,31/12/2015,Social Care & Inclusion,ALPHA HEALTH CARE LTD,08/12/2015,"1,527.60",73373-RESIDENTIAL & NURSING CARE PLACEMENTS,MH COMMISSIONING,Third Party Payments,Revenue
Walsall Council,http://opendatacommunities.org/id/metropolitan-district-council/walsall,WC63-183,31/12/2015,Social Care & Inclusion,ALPHA HEALTH CARE LTD,15/12/2015,"1,527.60",73373-RESIDENTIAL & NURSING CARE PLACEMENTS,OP COMMISSIONING,Third Party Payments,Revenue
Walsall Council,http://opendatacommunities.org/id/metropolitan-district-council/walsall,WC63-184,31/12/2015,Social Care & Inclusion,ALPHA HEALTH CARE LTD,15/12/2015,"1,527.60",73373-RESIDENTIAL & NURSING CARE PLACEMENTS,OP COMMISSIONING,Third Party Payments,Revenue
Walsall Council,http://opendatacommunities.org/id/metropolitan-district-council/walsall,WC63-185,31/12/2015,Social Care & Inclusion,ALPHA HEALTH CARE LTD,15/12/2015,"1,527.60",73373-RESIDENTIAL & NURSING CARE PLACEMENTS,OP COMMISSIONING,Third Party Payments,Revenue
Walsall Council,http://opendatacommunities.org/id/metropolitan-district-council/walsall,WC63-186,31/12/2015,Social Care & Inclusion,ALPHA HEALTH CARE LTD,15/12/2015,"1,527.60",73373-RESIDENTIAL & NURSING CARE PLACEMENTS,OP COMMISSIONING,Third Party Payments,Revenue
Walsall Council,http://opendatacommunities.org/id/metropolitan-district-council/walsall,WC63-187,31/12/2015,Social Care & Inclusion,ALPHA HEALTH CARE LTD,15/12/2015,"1,527.60",73373-RESIDENTIAL & NURSING CARE PLACEMENTS,OP COMMISSIONING,Third Party Payments,Revenue
Walsall Council,http://opendatacommunities.org/id/metropolitan-district-council/walsall,WC63-188,31/12/2015,Social Care & Inclusion,ALPHA HEALTH CARE LTD,15/12/2015,"1,527.60",73373-RESIDENTIAL & NURSING CARE PLACEMENTS,OP COMMISSIONING,Third Party Payments,Revenue
Walsall Council,http://opendatacommunities.org/id/metropolitan-district-council/walsall,WC63-189,31/12/2015,Social Care & Inclusion,ALPHA HEALTH CARE LTD,15/12/2015,"1,527.60",73373-RESIDENTIAL & NURSING CARE PLACEMENTS,OP COMMISSIONING,Third Party Payments,Revenue
Walsall Council,http://opendatacommunities.org/id/metropolitan-district-council/walsall,WC63-190,31/12/2015,Social Care & Inclusion,ALPHA HEALTH CARE LTD,15/12/2015,"1,527.60",73373-RESIDENTIAL & NURSING CARE PLACEMENTS,MH COMMISSIONING,Third Party Payments,Revenue
Walsall Council,http://opendatacommunities.org/id/metropolitan-district-council/walsall,WC63-191,31/12/2015,Social Care & Inclusion,ALPHA HEALTH CARE LTD,15/12/2015,"1,527.60",73373-RESIDENTIAL & NURSING CARE PLACEMENTS,OP COMMISSIONING,Third Party Payments,Revenue
Walsall Council,http://opendatacommunities.org/id/metropolitan-district-council/walsall,WC63-192,31/12/2015,Social Care & Inclusion,ALPHA HEALTH CARE LTD,15/12/2015,"1,527.60",73373-RESIDENTIAL & NURSING CARE PLACEMENTS,OP COMMISSIONING,Third Party Payments,Revenue
Walsall Council,http://opendatacommunities.org/id/metropolitan-district-council/walsall,WC63-193,31/12/2015,Social Care & Inclusion,ALPHA HEALTH CARE LTD,15/12/2015,"1,527.60",73373-RESIDENTIAL & NURSING CARE PLACEMENTS,OP COMMISSIONING,Third Party Payments,Revenue
Walsall Council,http://opendatacommunities.org/id/metropolitan-district-council/walsall,WC63-194,31/12/2015,Social Care & Inclusion,ALPHA HEALTH CARE LTD,15/12/2015,"1,527.60",73373-RESIDENTIAL & NURSING CARE PLACEMENTS,OP COMMISSIONING,Third Party Payments,Revenue
Walsall Council,http://opendatacommunities.org/id/metropolitan-district-council/walsall,WC63-195,31/12/2015,Social Care & Inclusion,ALPHA HEALTH CARE LTD,15/12/2015,"1,527.60",73373-RESIDENTIAL & NURSING CARE PLACEMENTS,OP COMMISSIONING,Third Party Payments,Revenue
Walsall Council,http://opendatacommunities.org/id/metropolitan-district-council/walsall,WC63-196,31/12/2015,Social Care & Inclusion,ALPHA HEALTH CARE LTD,15/12/2015,"1,527.60",73373-RESIDENTIAL & NURSING CARE PLACEMENTS,MH COMMISSIONING,Third Party Payments,Revenue
Walsall Council,http://opendatacommunities.org/id/metropolitan-district-council/walsall,WC63-197,31/12/2015,Social Care & Inclusion,ALPHA HEALTH CARE LTD,18/12/2015,"1,527.60",73373-RESIDENTIAL & NURSING CARE PLACEMENTS,OP COMMISSIONING,Third Party Payments,Revenue
Walsall Council,http://opendatacommunities.org/id/metropolitan-district-council/walsall,WC63-198,31/12/2015,Social Care & Inclusion,ALPHA HEALTH CARE LTD,15/12/2015,"1,527.64",73373-RESIDENTIAL & NURSING CARE PLACEMENTS,OP COMMISSIONING,Third Party Payments,Revenue
Walsall Council,http://opendatacommunities.org/id/metropolitan-district-council/walsall,WC63-199,31/12/2015,Social Care & Inclusion,ALPHA HEALTH CARE LTD,15/12/2015,"1,568.64",73373-RESIDENTIAL & NURSING CARE PLACEMENTS,OP COMMISSIONING,Third Party Payments,Revenue
Walsall Council,http://opendatacommunities.org/id/metropolitan-district-council/walsall,WC63-200,31/12/2015,Social Care & Inclusion,ALPHA HEALTH CARE LTD,15/12/2015,"1,568.64",73373-RESIDENTIAL & NURSING CARE PLACEMENTS,OP COMMISSIONING,Third Party Payments,Revenue
Walsall Council,http://opendatacommunities.org/id/metropolitan-district-council/walsall,WC63-201,31/12/2015,Social Care & Inclusion,ALPHA HEALTH CARE LTD,15/12/2015,"1,568.64",73373-RESIDENTIAL & NURSING CARE PLACEMENTS,OP COMMISSIONING,Third Party Payments,Revenue
Walsall Council,http://opendatacommunities.org/id/metropolitan-district-council/walsall,WC63-202,31/12/2015,Social Care & Inclusion,ALPHA HEALTH CARE LTD,18/12/2015,"1,568.64",73373-RESIDENTIAL & NURSING CARE PLACEMENTS,OP COMMISSIONING,Third Party Payments,Revenue
Walsall Council,http://opendatacommunities.org/id/metropolitan-district-council/walsall,WC63-203,31/12/2015,Social Care & Inclusion,ALPHA HEALTH CARE LTD,15/12/2015,"1,568.80",73373-RESIDENTIAL & NURSING CARE PLACEMENTS,OP COMMISSIONING,Third Party Payments,Revenue
Walsall Council,http://opendatacommunities.org/id/metropolitan-district-council/walsall,WC63-204,31/12/2015,Social Care & Inclusion,ALPHA HEALTH CARE LTD,15/12/2015,"1,630.60",73373-RESIDENTIAL & NURSING CARE PLACEMENTS,OP COMMISSIONING,Third Party Payments,Revenue
Walsall Council,http://opendatacommunities.org/id/metropolitan-district-council/walsall,WC63-205,31/12/2015,Social Care & Inclusion,ALPHA HEALTH CARE LTD,08/12/2015,"1,975.60",73373-RESIDENTIAL & NURSING CARE PLACEMENTS,MH COMMISSIONING,Third Party Payments,Revenue
Walsall Council,http://opendatacommunities.org/id/metropolitan-district-council/walsall,WC63-206,31/12/2015,Social Care & Inclusion,ALPHA HEALTH CARE LTD,08/12/2015,"1,975.60",73373-RESIDENTIAL & NURSING CARE PLACEMENTS,MH COMMISSIONING,Third Party Payments,Revenue
Walsall Council,http://opendatacommunities.org/id/metropolitan-district-council/walsall,WC63-207,31/12/2015,Social Care & Inclusion,ALPHA HEALTH CARE LTD,08/12/2015,"1,975.60",73373-RESIDENTIAL & NURSING CARE PLACEMENTS,MH COMMISSIONING,Third Party Payments,Revenue
Walsall Council,http://opendatacommunities.org/id/metropolitan-district-council/walsall,WC63-208,31/12/2015,Social Care & Inclusion,ALPHA HEALTH CARE LTD,15/12/2015,"2,161.40",73373-RESIDENTIAL & NURSING CARE PLACEMENTS,MH COMMISSIONING,Third Party Payments,Revenue
Walsall Council,http://opendatacommunities.org/id/metropolitan-district-council/walsall,WC63-209,31/12/2015,Social Care & Inclusion,ALPHA HEALTH CARE LTD,08/12/2015,"2,399.85",73373-RESIDENTIAL & NURSING CARE PLACEMENTS,OP COMMISSIONING,Third Party Payments,Revenue
Walsall Council,http://opendatacommunities.org/id/metropolitan-district-council/walsall,WC63-210,31/12/2015,Social Care & Inclusion,ALPHA HEALTH CARE LTD,15/12/2015,"2,521.44",73373-RESIDENTIAL & NURSING CARE PLACEMENTS,MH COMMISSIONING,Third Party Payments,Revenue
Walsall Council,http://opendatacommunities.org/id/metropolitan-district-council/walsall,WC63-211,31/12/2015,Social Care & Inclusion,ALPHA HEALTH CARE LTD,15/12/2015,"3,011.43",73373-RESIDENTIAL & NURSING CARE PLACEMENTS,OP COMMISSIONING,Third Party Payments,Revenue
Walsall Council,http://opendatacommunities.org/id/metropolitan-district-council/walsall,WC63-212,31/12/2015,Social Care & Inclusion,ALPHA HEALTH CARE LTD,15/12/2015,"5,413.72",73373-RESIDENTIAL & NURSING CARE PLACEMENTS,MH COMMISSIONING,Third Party Payments,Revenue
Walsall Council,http://opendatacommunities.org/id/metropolitan-district-council/walsall,WC63-213,31/12/2015,Social Care & Inclusion,ALPHA HEALTH CARE LTD,15/12/2015,"5,553.32",73373-RESIDENTIAL & NURSING CARE PLACEMENTS,MH COMMISSIONING,Third Party Payments,Revenue
Walsall Council,http://opendatacommunities.org/id/metropolitan-district-council/walsall,WC63-214,31/12/2015,Childrens,ALTODIGITAL NETWORKS LTD,10/12/2015,-300.00,60009-LEASING/HIRE/RENTAL-EQUIPMENT,CLUSTER 2 STREETLY & LEIGHSWOOD,Supplies & Services,Revenue
Walsall Council,http://opendatacommunities.org/id/metropolitan-district-council/walsall,WC63-215,31/12/2015,Childrens,ALTODIGITAL NETWORKS LTD,21/12/2015,217.43,60009-LEASING/HIRE/RENTAL-EQUIPMENT,CHILD PROTECTION & REVIEW SERVICES,Supplies & Services,Revenue
Walsall Council,http://opendatacommunities.org/id/metropolitan-district-council/walsall,WC63-216,31/12/2015,Change and Governance,ALTODIGITAL NETWORKS LTD,18/12/2015,280.18,60009-LEASING/HIRE/RENTAL-EQUIPMENT,PHOTOCOPIERS - CENTRAL BUDGET,Supplies & Services,Revenue
Walsall Council,http://opendatacommunities.org/id/metropolitan-district-council/walsall,WC63-217,31/12/2015,Childrens,ALTODIGITAL NETWORKS LTD,10/12/2015,801.16,60005-PHOTOGRAPHIC CONSUMABLES-EQUIPMENT,CLUSTER 2 STREETLY & LEIGHSWOOD,Supplies & Services,Revenue
Walsall Council,http://opendatacommunities.org/id/metropolitan-district-council/walsall,WC63-218,31/12/2015,Childrens,ALUMWELLIES NURSERY,15/12/2015,479.90,66505-OTHER-GRANTS TO OTHER ORGS,EARLY YEARS - 3 YR OLDS,Third Party Payments,Revenue
Walsall Council,http://opendatacommunities.org/id/metropolitan-district-council/walsall,WC63-219,31/12/2015,Childrens,REDACTED,21/12/2015,"1,500.88",74006-HOLIDAY/CHRISTMAS ALLOWANCE-FOSTER CARERS-OTH AGENCY PROVISION,INTERNAL FOSTER CARE PROVISION,Third Party Payments,Revenue
Walsall Council,http://opendatacommunities.org/id/metropolitan-district-council/walsall,WC63-220,31/12/2015,Childrens,REDACTED,07/12/2015,540.20,62515-MISCELLANEOUS SUPPLIES,INTERNAL FOSTER CARE PROVISION,Supplies & Services,Revenue
Walsall Council,http://opendatacommunities.org/id/metropolitan-district-council/walsall,WC63-221,31/12/2015,Childrens,REDACTED,07/12/2015,813.65,74006-HOLIDAY/CHRISTMAS ALLOWANCE-FOSTER CARERS-OTH AGENCY PROVISION,INTERNAL FOSTER CARE PROVISION,Third Party Payments,Revenue
Walsall Council,http://opendatacommunities.org/id/metropolitan-district-council/walsall,WC63-222,31/12/2015,Social Care & Inclusion,REDACTED,08/12/2015,"2,328.75",76422-DIRECT PAYMENTS TO SOCIAL SERVICES CLIENTS,LD COMMISSIONING,Transfer Payments,Revenue
Walsall Council,http://opendatacommunities.org/id/metropolitan-district-council/walsall,WC63-223,31/12/2015,Childrens,REDACTED,08/12/2015,391.15,76422-DIRECT PAYMENTS TO SOCIAL SERVICES CLIENTS,FAMILY SUPPORT - DIRECT PAYMENTS,Transfer Payments,Revenue
Walsall Council,http://opendatacommunities.org/id/metropolitan-district-council/walsall,WC63-224,31/12/2015,Social Care & Inclusion,REDACTED,08/12/2015,600.00,76422-DIRECT PAYMENTS TO SOCIAL SERVICES CLIENTS,CARERS SERVICES,Transfer Payments,Revenue
Walsall Council,http://opendatacommunities.org/id/metropolitan-district-council/walsall,WC63-225,31/12/2015,Economy & Environment,AMEY LG LIMITED,09/12/2015,697.70,73002-SECURITY-PRIV CONTRACTOR FEES,TRAFFIC CONTROL,Third Party Payments,Revenue
Walsall Council,http://opendatacommunities.org/id/metropolitan-district-council/walsall,WC63-226,31/12/2015,Economy & Environment,AMEY LG LIMITED,01/12/2015,"7,044.00",62515-MISCELLANEOUS SUPPLIES,VASS IMPLEMENTATION,Supplies & Services,Revenue
Walsall Council,http://opendatacommunities.org/id/metropolitan-district-council/walsall,WC63-227,31/12/2015,Economy & Environment,AMEY LG LIMITED,11/12/2015,"11,657.03",73025-PROFESSIONAL SERVICES-PRIV CONTRACTOR & OTHER AGENCIES,TRAFFIC MANAGEMENT,Third Party Payments,Revenue
Walsall Council,http://opendatacommunities.org/id/metropolitan-district-council/walsall,WC63-228,31/12/2015,Economy & Environment,AMEY LG LIMITED,01/12/2015,"12,708.70",73025-PROFESSIONAL SERVICES-PRIV CONTRACTOR & OTHER AGENCIES,TRAFFIC MANAGEMENT,Third Party Payments,Revenue
Walsall Council,http://opendatacommunities.org/id/metropolitan-district-council/walsall,WC63-229,31/12/2015,Economy & Environment,AMEY LG LIMITED,03/12/2015,"27,127.98",01032-ELECTRICAL PAYMENTS / INSTALLATIONS,CFR 703 WALSALL MARKET RELOCATION PHASE 4,Capital,Capital
Walsall Council,http://opendatacommunities.org/id/metropolitan-district-council/walsall,WC63-230,31/12/2015,Childrens,AMG NURSING CARE SERVICES,08/12/2015,"1,476.84",74036-EXTERNAL RESIDENTIAL CARE-OTH AGENCY PROVISION,INDEPENDENT RESIDENTIAL HOMES,Third Party Payments,Revenue
Walsall Council,http://opendatacommunities.org/id/metropolitan-district-council/walsall,WC63-231,31/12/2015,Childrens,AMG NURSING CARE SERVICES,04/12/2015,"2,214.80",74036-EXTERNAL RESIDENTIAL CARE-OTH AGENCY PROVISION,INDEPENDENT RESIDENTIAL HOMES,Third Party Payments,Revenue
Walsall Council,http://opendatacommunities.org/id/metropolitan-district-council/walsall,WC63-232,31/12/2015,Social Care & Inclusion,AMG NURSING CARE SERVICES,01/12/2015,"6,917.26",73372-DOMICILIARY CARE,YADS COMMISSIONING,Third Party Payments,Revenue
Walsall Council,http://opendatacommunities.org/id/metropolitan-district-council/walsall,WC63-233,31/12/2015,Social Care & Inclusion,AMG NURSING CARE SERVICES,01/12/2015,"7,024.55",73372-DOMICILIARY CARE,YADS COMMISSIONING,Third Party Payments,Revenue
Walsall Council,http://opendatacommunities.org/id/metropolitan-district-council/walsall,WC63-234,31/12/2015,Social Care & Inclusion,AMG NURSING CARE SERVICES,03/12/2015,"7,072.50",73372-DOMICILIARY CARE,YADS COMMISSIONING,Third Party Payments,Revenue
Walsall Council,http://opendatacommunities.org/id/metropolitan-district-council/walsall,WC63-235,31/12/2015,Social Care & Inclusion,AMG NURSING CARE SERVICES,01/12/2015,"7,498.00",73372-DOMICILIARY CARE,YADS COMMISSIONING,Third Party Payments,Revenue
Walsall Council,http://opendatacommunities.org/id/metropolitan-district-council/walsall,WC63-236,31/12/2015,Social Care & Inclusion,REDACTED,08/12/2015,"1,416.80",76422-DIRECT PAYMENTS TO SOCIAL SERVICES CLIENTS,OP COMMISSIONING,Transfer Payments,Revenue
Walsall Council,http://opendatacommunities.org/id/metropolitan-district-council/walsall,WC63-237,31/12/2015,Social Care & Inclusion,REDACTED,08/12/2015,"1,181.25",76422-DIRECT PAYMENTS TO SOCIAL SERVICES CLIENTS,OP COMMISSIONING,Transfer Payments,Revenue
Walsall Council,http://opendatacommunities.org/id/metropolitan-district-council/walsall,WC63-238,31/12/2015,Childrens,REDACTED,21/12/2015,425.08,74006-HOLIDAY/CHRISTMAS ALLOWANCE-FOSTER CARERS-OTH AGENCY PROVISION,INTERNAL FOSTER CARE PROVISION,Third Party Payments,Revenue
Walsall Council,http://opendatacommunities.org/id/metropolitan-district-council/walsall,WC63-239,31/12/2015,Social Care & Inclusion,REDACTED,08/12/2015,680.00,76422-DIRECT PAYMENTS TO SOCIAL SERVICES CLIENTS,OP COMMISSIONING,Transfer Payments,Revenue
Walsall Council,http://opendatacommunities.org/id/metropolitan-district-council/walsall,WC63-240,31/12/2015,Social Care & Inclusion,REDACTED,08/12/2015,892.50,76422-DIRECT PAYMENTS TO SOCIAL SERVICES CLIENTS,OP COMMISSIONING,Transfer Payments,Revenue
Walsall Council,http://opendatacommunities.org/id/metropolitan-district-council/walsall,WC63-241,31/12/2015,Social Care & Inclusion,ANCHOR,01/12/2015,"1,064.43",73373-RESIDENTIAL & NURSING CARE PLACEMENTS,OP COMMISSIONING,Third Party Payments,Revenue
Walsall Council,http://opendatacommunities.org/id/metropolitan-district-council/walsall,WC63-242,31/12/2015,Social Care & Inclusion,ANCHOR,01/12/2015,"1,493.24",73373-RESIDENTIAL & NURSING CARE PLACEMENTS,OP COMMISSIONING,Third Party Payments,Revenue
Walsall Council,http://opendatacommunities.org/id/metropolitan-district-council/walsall,WC63-243,31/12/2015,Social Care & Inclusion,ANCHOR,01/12/2015,"1,493.24",73373-RESIDENTIAL & NURSING CARE PLACEMENTS,OP COMMISSIONING,Third Party Payments,Revenue
Walsall Council,http://opendatacommunities.org/id/metropolitan-district-council/walsall,WC63-244,31/12/2015,Social Care & Inclusion,ANCHOR,18/12/2015,"1,493.24",73373-RESIDENTIAL & NURSING CARE PLACEMENTS,OP COMMISSIONING,Third Party Payments,Revenue
Walsall Council,http://opendatacommunities.org/id/metropolitan-district-council/walsall,WC63-245,31/12/2015,Social Care & Inclusion,ANCHOR,18/12/2015,"1,493.24",73373-RESIDENTIAL & NURSING CARE PLACEMENTS,OP COMMISSIONING,Third Party Payments,Revenue
Walsall Council,http://opendatacommunities.org/id/metropolitan-district-council/walsall,WC63-246,31/12/2015,Social Care & Inclusion,ANCHOR,08/12/2015,"1,568.63",73373-RESIDENTIAL & NURSING CARE PLACEMENTS,OP COMMISSIONING,Third Party Payments,Revenue
Walsall Council,http://opendatacommunities.org/id/metropolitan-district-council/walsall,WC63-247,31/12/2015,Social Care & Inclusion,ANCHOR,01/12/2015,"1,568.64",73373-RESIDENTIAL & NURSING CARE PLACEMENTS,OP COMMISSIONING,Third Party Payments,Revenue
Walsall Council,http://opendatacommunities.org/id/metropolitan-district-council/walsall,WC63-248,31/12/2015,Social Care & Inclusion,ANCHOR,01/12/2015,"1,568.64",73373-RESIDENTIAL & NURSING CARE PLACEMENTS,OP COMMISSIONING,Third Party Payments,Revenue
Walsall Council,http://opendatacommunities.org/id/metropolitan-district-council/walsall,WC63-249,31/12/2015,Social Care & Inclusion,ANCHOR,01/12/2015,"1,568.64",73373-RESIDENTIAL & NURSING CARE PLACEMENTS,OP COMMISSIONING,Third Party Payments,Revenue
Walsall Council,http://opendatacommunities.org/id/metropolitan-district-council/walsall,WC63-250,31/12/2015,Social Care & Inclusion,ANCHOR,01/12/2015,"1,568.64",73373-RESIDENTIAL & NURSING CARE PLACEMENTS,OP COMMISSIONING,Third Party Payments,Revenue
Walsall Council,http://opendatacommunities.org/id/metropolitan-district-council/walsall,WC63-251,31/12/2015,Social Care & Inclusion,ANCHOR,01/12/2015,"1,568.64",73373-RESIDENTIAL & NURSING CARE PLACEMENTS,OP COMMISSIONING,Third Party Payments,Revenue
Walsall Council,http://opendatacommunities.org/id/metropolitan-district-council/walsall,WC63-252,31/12/2015,Social Care & Inclusion,ANCHOR,01/12/2015,"1,568.64",73373-RESIDENTIAL & NURSING CARE PLACEMENTS,OP COMMISSIONING,Third Party Payments,Revenue
Walsall Council,http://opendatacommunities.org/id/metropolitan-district-council/walsall,WC63-253,31/12/2015,Social Care & Inclusion,ANCHOR,01/12/2015,"1,568.64",73373-RESIDENTIAL & NURSING CARE PLACEMENTS,MH COMMISSIONING,Third Party Payments,Revenue
Walsall Council,http://opendatacommunities.org/id/metropolitan-district-council/walsall,WC63-254,31/12/2015,Social Care & Inclusion,ANCHOR,01/12/2015,"1,568.64",73373-RESIDENTIAL & NURSING CARE PLACEMENTS,OP COMMISSIONING,Third Party Payments,Revenue
Walsall Council,http://opendatacommunities.org/id/metropolitan-district-council/walsall,WC63-255,31/12/2015,Social Care & Inclusion,ANCHOR,01/12/2015,"1,568.64",73373-RESIDENTIAL & NURSING CARE PLACEMENTS,OP COMMISSIONING,Third Party Payments,Revenue
Walsall Council,http://opendatacommunities.org/id/metropolitan-district-council/walsall,WC63-256,31/12/2015,Social Care & Inclusion,ANCHOR,01/12/2015,"1,568.64",73373-RESIDENTIAL & NURSING CARE PLACEMENTS,OP COMMISSIONING,Third Party Payments,Revenue
Walsall Council,http://opendatacommunities.org/id/metropolitan-district-council/walsall,WC63-257,31/12/2015,Social Care & Inclusion,ANCHOR,01/12/2015,"1,568.64",73373-RESIDENTIAL & NURSING CARE PLACEMENTS,OP COMMISSIONING,Third Party Payments,Revenue
Walsall Council,http://opendatacommunities.org/id/metropolitan-district-council/walsall,WC63-258,31/12/2015,Social Care & Inclusion,ANCHOR,01/12/2015,"1,568.64",73373-RESIDENTIAL & NURSING CARE PLACEMENTS,OP COMMISSIONING,Third Party Payments,Revenue
Walsall Council,http://opendatacommunities.org/id/metropolitan-district-council/walsall,WC63-259,31/12/2015,Social Care & Inclusion,ANCHOR,01/12/2015,"1,568.64",73373-RESIDENTIAL & NURSING CARE PLACEMENTS,OP COMMISSIONING,Third Party Payments,Revenue
Walsall Council,http://opendatacommunities.org/id/metropolitan-district-council/walsall,WC63-260,31/12/2015,Social Care & Inclusion,ANCHOR,01/12/2015,"1,568.64",73373-RESIDENTIAL & NURSING CARE PLACEMENTS,OP COMMISSIONING,Third Party Payments,Revenue
Walsall Council,http://opendatacommunities.org/id/metropolitan-district-council/walsall,WC63-261,31/12/2015,Social Care & Inclusion,ANCHOR,01/12/2015,"1,568.64",73373-RESIDENTIAL & NURSING CARE PLACEMENTS,OP COMMISSIONING,Third Party Payments,Revenue
Walsall Council,http://opendatacommunities.org/id/metropolitan-district-council/walsall,WC63-262,31/12/2015,Social Care & Inclusion,ANCHOR,01/12/2015,"1,568.64",73373-RESIDENTIAL & NURSING CARE PLACEMENTS,OP COMMISSIONING,Third Party Payments,Revenue
Walsall Council,http://opendatacommunities.org/id/metropolitan-district-council/walsall,WC63-263,31/12/2015,Social Care & Inclusion,ANCHOR,01/12/2015,"1,568.64",73373-RESIDENTIAL & NURSING CARE PLACEMENTS,OP COMMISSIONING,Third Party Payments,Revenue
Walsall Council,http://opendatacommunities.org/id/metropolitan-district-council/walsall,WC63-264,31/12/2015,Social Care & Inclusion,ANCHOR,01/12/2015,"1,568.64",73373-RESIDENTIAL & NURSING CARE PLACEMENTS,OP COMMISSIONING,Third Party Payments,Revenue
Walsall Council,http://opendatacommunities.org/id/metropolitan-district-council/walsall,WC63-265,31/12/2015,Social Care & Inclusion,ANCHOR,01/12/2015,"1,568.64",73373-RESIDENTIAL & NURSING CARE PLACEMENTS,OP COMMISSIONING,Third Party Payments,Revenue
Walsall Council,http://opendatacommunities.org/id/metropolitan-district-council/walsall,WC63-266,31/12/2015,Social Care & Inclusion,ANCHOR,18/12/2015,"1,568.64",73373-RESIDENTIAL & NURSING CARE PLACEMENTS,OP COMMISSIONING,Third Party Payments,Revenue
Walsall Council,http://opendatacommunities.org/id/metropolitan-district-council/walsall,WC63-267,31/12/2015,Social Care & Inclusion,ANCHOR,18/12/2015,"1,568.64",73373-RESIDENTIAL & NURSING CARE PLACEMENTS,OP COMMISSIONING,Third Party Payments,Revenue
Walsall Council,http://opendatacommunities.org/id/metropolitan-district-council/walsall,WC63-268,31/12/2015,Social Care & Inclusion,ANCHOR,18/12/2015,"1,568.64",73373-RESIDENTIAL & NURSING CARE PLACEMENTS,OP COMMISSIONING,Third Party Payments,Revenue
Walsall Council,http://opendatacommunities.org/id/metropolitan-district-council/walsall,WC63-269,31/12/2015,Social Care & Inclusion,ANCHOR,18/12/2015,"1,568.64",73373-RESIDENTIAL & NURSING CARE PLACEMENTS,MH COMMISSIONING,Third Party Payments,Revenue
Walsall Council,http://opendatacommunities.org/id/metropolitan-district-council/walsall,WC63-270,31/12/2015,Social Care & Inclusion,ANCHOR,18/12/2015,"1,568.64",73373-RESIDENTIAL & NURSING CARE PLACEMENTS,OP COMMISSIONING,Third Party Payments,Revenue
Walsall Council,http://opendatacommunities.org/id/metropolitan-district-council/walsall,WC63-271,31/12/2015,Social Care & Inclusion,ANCHOR,18/12/2015,"1,568.64",73373-RESIDENTIAL & NURSING CARE PLACEMENTS,OP COMMISSIONING,Third Party Payments,Revenue
Walsall Council,http://opendatacommunities.org/id/metropolitan-district-council/walsall,WC63-272,31/12/2015,Social Care & Inclusion,ANCHOR,18/12/2015,"1,568.64",73373-RESIDENTIAL & NURSING CARE PLACEMENTS,OP COMMISSIONING,Third Party Payments,Revenue
Walsall Council,http://opendatacommunities.org/id/metropolitan-district-council/walsall,WC63-273,31/12/2015,Social Care & Inclusion,ANCHOR,18/12/2015,"1,568.64",73373-RESIDENTIAL & NURSING CARE PLACEMENTS,OP COMMISSIONING,Third Party Payments,Revenue
Walsall Council,http://opendatacommunities.org/id/metropolitan-district-council/walsall,WC63-274,31/12/2015,Social Care & Inclusion,ANCHOR,18/12/2015,"1,568.64",73373-RESIDENTIAL & NURSING CARE PLACEMENTS,OP COMMISSIONING,Third Party Payments,Revenue
Walsall Council,http://opendatacommunities.org/id/metropolitan-district-council/walsall,WC63-275,31/12/2015,Social Care & Inclusion,ANCHOR,18/12/2015,"1,568.64",73373-RESIDENTIAL & NURSING CARE PLACEMENTS,OP COMMISSIONING,Third Party Payments,Revenue
Walsall Council,http://opendatacommunities.org/id/metropolitan-district-council/walsall,WC63-276,31/12/2015,Social Care & Inclusion,ANCHOR,18/12/2015,"1,568.64",73373-RESIDENTIAL & NURSING CARE PLACEMENTS,OP COMMISSIONING,Third Party Payments,Revenue
Walsall Council,http://opendatacommunities.org/id/metropolitan-district-council/walsall,WC63-277,31/12/2015,Social Care & Inclusion,ANCHOR,18/12/2015,"1,568.64",73373-RESIDENTIAL & NURSING CARE PLACEMENTS,OP COMMISSIONING,Third Party Payments,Revenue
Walsall Council,http://opendatacommunities.org/id/metropolitan-district-council/walsall,WC63-278,31/12/2015,Social Care & Inclusion,ANCHOR,18/12/2015,"1,568.64",73373-RESIDENTIAL & NURSING CARE PLACEMENTS,OP COMMISSIONING,Third Party Payments,Revenue
Walsall Council,http://opendatacommunities.org/id/metropolitan-district-council/walsall,WC63-279,31/12/2015,Social Care & Inclusion,ANCHOR,18/12/2015,"1,568.64",73373-RESIDENTIAL & NURSING CARE PLACEMENTS,OP COMMISSIONING,Third Party Payments,Revenue
Walsall Council,http://opendatacommunities.org/id/metropolitan-district-council/walsall,WC63-280,31/12/2015,Social Care & Inclusion,ANCHOR,18/12/2015,"1,568.64",73373-RESIDENTIAL & NURSING CARE PLACEMENTS,OP COMMISSIONING,Third Party Payments,Revenue
Walsall Council,http://opendatacommunities.org/id/metropolitan-district-council/walsall,WC63-281,31/12/2015,Social Care & Inclusion,ANCHOR,18/12/2015,"1,568.64",73373-RESIDENTIAL & NURSING CARE PLACEMENTS,OP COMMISSIONING,Third Party Payments,Revenue
Walsall Council,http://opendatacommunities.org/id/metropolitan-district-council/walsall,WC63-282,31/12/2015,Social Care & Inclusion,ANCHOR,18/12/2015,"1,568.64",73373-RESIDENTIAL & NURSING CARE PLACEMENTS,OP COMMISSIONING,Third Party Payments,Revenue
Walsall Council,http://opendatacommunities.org/id/metropolitan-district-council/walsall,WC63-283,31/12/2015,Change and Governance,ANCHORAGE 55 PLUS CLUB#1,01/12/2015,"2,100.00",62515-MISCELLANEOUS SUPPLIES,AREA 2 - ALDRIDGE/STREETLY/PHEASEY,Supplies & Services,Revenue
Walsall Council,http://opendatacommunities.org/id/metropolitan-district-council/walsall,WC63-284,31/12/2015,Childrens,REDACTED,07/12/2015,895.02,74006-HOLIDAY/CHRISTMAS ALLOWANCE-FOSTER CARERS-OTH AGENCY PROVISION,INTERNAL FOSTER CARE PROVISION,Third Party Payments,Revenue
Walsall Council,http://opendatacommunities.org/id/metropolitan-district-council/walsall,WC63-285,31/12/2015,Childrens,REDACTED,07/12/2015,"1,142.92",62515-MISCELLANEOUS SUPPLIES,INTERNAL FOSTER CARE PROVISION,Supplies & Services,Revenue
Walsall Council,http://opendatacommunities.org/id/metropolitan-district-council/walsall,WC63-286,31/12/2015,Social Care & Inclusion,REDACTED,08/12/2015,472.50,76422-DIRECT PAYMENTS TO SOCIAL SERVICES CLIENTS,YADS COMMISSIONING,Transfer Payments,Revenue
Walsall Council,http://opendatacommunities.org/id/metropolitan-district-council/walsall,WC63-287,31/12/2015,Childrens,REDACTED,07/12/2015,906.76,62515-MISCELLANEOUS SUPPLIES,INTERNAL FOSTER CARE PROVISION,Supplies & Services,Revenue
Walsall Council,http://opendatacommunities.org/id/metropolitan-district-council/walsall,WC63-288,31/12/2015,Childrens,REDACTED,07/12/2015,985.76,74006-HOLIDAY/CHRISTMAS ALLOWANCE-FOSTER CARERS-OTH AGENCY PROVISION,INTERNAL FOSTER CARE PROVISION,Third Party Payments,Revenue
Walsall Council,http://opendatacommunities.org/id/metropolitan-district-council/walsall,WC63-289,31/12/2015,Economy & Environment,ANDREWS ECOLOGY LTD,01/12/2015,300.00,30030-EXTERNAL TRAINING,GREEN SPACE MANAGEMENT,Employees,Revenue
Walsall Council,http://opendatacommunities.org/id/metropolitan-district-council/walsall,WC63-290,31/12/2015,Childrens,REDACTED,21/12/2015,"1,952.76",74006-HOLIDAY/CHRISTMAS ALLOWANCE-FOSTER CARERS-OTH AGENCY PROVISION,INTERNAL FOSTER CARE PROVISION,Third Party Payments,Revenue
Walsall Council,http://opendatacommunities.org/id/metropolitan-district-council/walsall,WC63-291,31/12/2015,Change and Governance,ANGLIA STAIRLIFTS LTD,14/12/2015,"3,715.00",01045-PRIVATE GRANTS,CFR 826 DISABLED FACILITIES GRANTS (SOCIAL SERVICES),Capital,Capital
Walsall Council,http://opendatacommunities.org/id/metropolitan-district-council/walsall,WC63-292,31/12/2015,Change and Governance,ANGLIA STAIRLIFTS LTD,14/12/2015,"3,800.00",01045-PRIVATE GRANTS,CFR 826 DISABLED FACILITIES GRANTS (SOCIAL SERVICES),Capital,Capital
Walsall Council,http://opendatacommunities.org/id/metropolitan-district-council/walsall,WC63-293,31/12/2015,Change and Governance,ANGLIA STAIRLIFTS LTD,14/12/2015,"3,815.00",01045-PRIVATE GRANTS,CFR 826 DISABLED FACILITIES GRANTS (SOCIAL SERVICES),Capital,Capital
Walsall Council,http://opendatacommunities.org/id/metropolitan-district-council/walsall,WC63-294,31/12/2015,Change and Governance,ANGLIA STAIRLIFTS LTD,02/12/2015,"3,945.00",01045-PRIVATE GRANTS,CFR 826 DISABLED FACILITIES GRANTS (SOCIAL SERVICES),Capital,Capital
Walsall Council,http://opendatacommunities.org/id/metropolitan-district-council/walsall,WC63-295,31/12/2015,Change and Governance,ANGLIA STAIRLIFTS LTD,02/12/2015,"4,079.00",01045-PRIVATE GRANTS,CFR 826 DISABLED FACILITIES GRANTS (SOCIAL SERVICES),Capital,Capital
Walsall Council,http://opendatacommunities.org/id/metropolitan-district-council/walsall,WC63-296,31/12/2015,Change and Governance,ANGLIA STAIRLIFTS LTD,07/12/2015,"4,095.00",01045-PRIVATE GRANTS,CFR 826 DISABLED FACILITIES GRANTS (SOCIAL SERVICES),Capital,Capital
Walsall Council,http://opendatacommunities.org/id/metropolitan-district-council/walsall,WC63-297,31/12/2015,Change and Governance,ANGLIA STAIRLIFTS LTD,16/12/2015,"4,115.00",01045-PRIVATE GRANTS,CFR 826 DISABLED FACILITIES GRANTS (SOCIAL SERVICES),Capital,Capital
Walsall Council,http://opendatacommunities.org/id/metropolitan-district-council/walsall,WC63-298,31/12/2015,Change and Governance,ANGLIA STAIRLIFTS LTD,17/12/2015,"4,145.00",01045-PRIVATE GRANTS,CFR 826 DISABLED FACILITIES GRANTS (SOCIAL SERVICES),Capital,Capital
Walsall Council,http://opendatacommunities.org/id/metropolitan-district-council/walsall,WC63-299,31/12/2015,Change and Governance,ANGLIA STAIRLIFTS LTD,17/12/2015,"4,565.00",01045-PRIVATE GRANTS,CFR 826 DISABLED FACILITIES GRANTS (SOCIAL SERVICES),Capital,Capital
Walsall Council,http://opendatacommunities.org/id/metropolitan-district-council/walsall,WC63-300,31/12/2015,Change and Governance,ANGLIA STAIRLIFTS LTD,14/12/2015,"5,215.00",01045-PRIVATE GRANTS,CFR 826 DISABLED FACILITIES GRANTS (SOCIAL SERVICES),Capital,Capital
Walsall Council,http://opendatacommunities.org/id/metropolitan-district-council/walsall,WC63-301,31/12/2015,Economy & Environment,ANIMALMANIA,14/12/2015,285.00,62515-MISCELLANEOUS SUPPLIES,ALDRIDGE DISTRICT CENTRE,Supplies & Services,Revenue
Walsall Council,http://opendatacommunities.org/id/metropolitan-district-council/walsall,WC63-302,31/12/2015,Economy & Environment,ANIMALMANIA,14/12/2015,285.00,62515-MISCELLANEOUS SUPPLIES,WILLENHALL DISTRICT CENTRE,Supplies & Services,Revenue
Walsall Council,http://opendatacommunities.org/id/metropolitan-district-council/walsall,WC63-303,31/12/2015,Economy & Environment,ANIMALMANIA,14/12/2015,285.00,62515-MISCELLANEOUS SUPPLIES,BROWNHILLS DISTRICT CENTRE,Supplies & Services,Revenue
Walsall Council,http://opendatacommunities.org/id/metropolitan-district-council/walsall,WC63-304,31/12/2015,Social Care & Inclusion,REDACTED,08/12/2015,"3,834.00",76422-DIRECT PAYMENTS TO SOCIAL SERVICES CLIENTS,LD COMMISSIONING,Transfer Payments,Revenue
Walsall Council,http://opendatacommunities.org/id/metropolitan-district-council/walsall,WC63-305,31/12/2015,Childrens,REDACTED,07/12/2015,"1,354.52",62515-MISCELLANEOUS SUPPLIES,INTERNAL FOSTER CARE PROVISION,Supplies & Services,Revenue
Walsall Council,http://opendatacommunities.org/id/metropolitan-district-council/walsall,WC63-306,31/12/2015,Childrens,REDACTED,07/12/2015,"1,927.84",74006-HOLIDAY/CHRISTMAS ALLOWANCE-FOSTER CARERS-OTH AGENCY PROVISION,INTERNAL FOSTER CARE PROVISION,Third Party Payments,Revenue
Walsall Council,http://opendatacommunities.org/id/metropolitan-district-council/walsall,WC63-307,31/12/2015,Social Care & Inclusion,REDACTED,02/12/2015,"1,169.40",73374-SUPPORTED & OTHER ACCOMMODATION,LD COMMISSIONING,Third Party Payments,Revenue
Walsall Council,http://opendatacommunities.org/id/metropolitan-district-council/walsall,WC63-308,31/12/2015,Social Care & Inclusion,ANSON COURT RESIDENTIAL HOME,15/12/2015,"1,567.00",73373-RESIDENTIAL & NURSING CARE PLACEMENTS,OP COMMISSIONING,Third Party Payments,Revenue
Walsall Council,http://opendatacommunities.org/id/metropolitan-district-council/walsall,WC63-309,31/12/2015,Social Care & Inclusion,ANSON COURT RESIDENTIAL HOME,01/12/2015,"1,568.64",73373-RESIDENTIAL & NURSING CARE PLACEMENTS,MH COMMISSIONING,Third Party Payments,Revenue
Walsall Council,http://opendatacommunities.org/id/metropolitan-district-council/walsall,WC63-310,31/12/2015,Social Care & Inclusion,ANSON COURT RESIDENTIAL HOME,15/12/2015,"1,568.64",73373-RESIDENTIAL & NURSING CARE PLACEMENTS,OP COMMISSIONING,Third Party Payments,Revenue
Walsall Council,http://opendatacommunities.org/id/metropolitan-district-council/walsall,WC63-311,31/12/2015,Social Care & Inclusion,ANSON COURT RESIDENTIAL HOME,15/12/2015,"1,568.64",73373-RESIDENTIAL & NURSING CARE PLACEMENTS,OP COMMISSIONING,Third Party Payments,Revenue
Walsall Council,http://opendatacommunities.org/id/metropolitan-district-council/walsall,WC63-312,31/12/2015,Social Care & Inclusion,ANSON COURT RESIDENTIAL HOME,15/12/2015,"1,568.64",73373-RESIDENTIAL & NURSING CARE PLACEMENTS,OP COMMISSIONING,Third Party Payments,Revenue
Walsall Council,http://opendatacommunities.org/id/metropolitan-district-council/walsall,WC63-313,31/12/2015,Social Care & Inclusion,ANSON COURT RESIDENTIAL HOME,15/12/2015,"1,568.64",73373-RESIDENTIAL & NURSING CARE PLACEMENTS,OP COMMISSIONING,Third Party Payments,Revenue
Walsall Council,http://opendatacommunities.org/id/metropolitan-district-council/walsall,WC63-314,31/12/2015,Social Care & Inclusion,ANSON COURT RESIDENTIAL HOME,15/12/2015,"1,568.64",73373-RESIDENTIAL & NURSING CARE PLACEMENTS,OP COMMISSIONING,Third Party Payments,Revenue
Walsall Council,http://opendatacommunities.org/id/metropolitan-district-council/walsall,WC63-315,31/12/2015,Social Care & Inclusion,ANSON COURT RESIDENTIAL HOME,15/12/2015,"1,568.64",73373-RESIDENTIAL & NURSING CARE PLACEMENTS,MH COMMISSIONING,Third Party Payments,Revenue
Walsall Council,http://opendatacommunities.org/id/metropolitan-district-council/walsall,WC63-316,31/12/2015,Social Care & Inclusion,ANSON COURT RESIDENTIAL HOME,15/12/2015,"1,568.64",73373-RESIDENTIAL & NURSING CARE PLACEMENTS,MH COMMISSIONING,Third Party Payments,Revenue
Walsall Council,http://opendatacommunities.org/id/metropolitan-district-council/walsall,WC63-317,31/12/2015,Social Care & Inclusion,ANSON COURT RESIDENTIAL HOME,15/12/2015,"1,568.64",73373-RESIDENTIAL & NURSING CARE PLACEMENTS,MH COMMISSIONING,Third Party Payments,Revenue
Walsall Council,http://opendatacommunities.org/id/metropolitan-district-council/walsall,WC63-318,31/12/2015,Social Care & Inclusion,ANSON COURT RESIDENTIAL HOME,15/12/2015,"1,568.64",73373-RESIDENTIAL & NURSING CARE PLACEMENTS,OP COMMISSIONING,Third Party Payments,Revenue
Walsall Council,http://opendatacommunities.org/id/metropolitan-district-council/walsall,WC63-319,31/12/2015,Social Care & Inclusion,ANSON COURT RESIDENTIAL HOME,15/12/2015,"1,568.64",73373-RESIDENTIAL & NURSING CARE PLACEMENTS,OP COMMISSIONING,Third Party Payments,Revenue
Walsall Council,http://opendatacommunities.org/id/metropolitan-district-council/walsall,WC63-320,31/12/2015,Social Care & Inclusion,ANSON COURT RESIDENTIAL HOME,15/12/2015,"1,568.64",73373-RESIDENTIAL & NURSING CARE PLACEMENTS,OP COMMISSIONING,Third Party Payments,Revenue
Walsall Council,http://opendatacommunities.org/id/metropolitan-district-council/walsall,WC63-321,31/12/2015,Social Care & Inclusion,ANSON COURT RESIDENTIAL HOME,15/12/2015,"1,568.64",73373-RESIDENTIAL & NURSING CARE PLACEMENTS,OP COMMISSIONING,Third Party Payments,Revenue
Walsall Council,http://opendatacommunities.org/id/metropolitan-district-council/walsall,WC63-322,31/12/2015,Social Care & Inclusion,ANSON COURT RESIDENTIAL HOME,15/12/2015,"1,624.66",73373-RESIDENTIAL & NURSING CARE PLACEMENTS,OP COMMISSIONING,Third Party Payments,Revenue
Walsall Council,http://opendatacommunities.org/id/metropolitan-district-council/walsall,WC63-323,31/12/2015,Social Care & Inclusion,ANSON COURT RESIDENTIAL HOME,15/12/2015,"1,649.20",73373-RESIDENTIAL & NURSING CARE PLACEMENTS,MH COMMISSIONING,Third Party Payments,Revenue
Walsall Council,http://opendatacommunities.org/id/metropolitan-district-council/walsall,WC63-324,31/12/2015,Social Care & Inclusion,ANSON COURT RESIDENTIAL HOME,15/12/2015,"1,650.44",73373-RESIDENTIAL & NURSING CARE PLACEMENTS,OP COMMISSIONING,Third Party Payments,Revenue
Walsall Council,http://opendatacommunities.org/id/metropolitan-district-council/walsall,WC63-325,31/12/2015,Social Care & Inclusion,ANSON COURT RESIDENTIAL HOME,15/12/2015,"1,650.44",73373-RESIDENTIAL & NURSING CARE PLACEMENTS,OP COMMISSIONING,Third Party Payments,Revenue
Walsall Council,http://opendatacommunities.org/id/metropolitan-district-council/walsall,WC63-326,31/12/2015,Social Care & Inclusion,ANSON COURT RESIDENTIAL HOME,15/12/2015,"1,651.04",73373-RESIDENTIAL & NURSING CARE PLACEMENTS,OP COMMISSIONING,Third Party Payments,Revenue
Walsall Council,http://opendatacommunities.org/id/metropolitan-district-council/walsall,WC63-327,31/12/2015,Social Care & Inclusion,ANSON COURT RESIDENTIAL HOME,15/12/2015,"1,651.04",73373-RESIDENTIAL & NURSING CARE PLACEMENTS,OP COMMISSIONING,Third Party Payments,Revenue
Walsall Council,http://opendatacommunities.org/id/metropolitan-district-council/walsall,WC63-328,31/12/2015,Social Care & Inclusion,ANSON COURT RESIDENTIAL HOME,15/12/2015,"2,465.01",73373-RESIDENTIAL & NURSING CARE PLACEMENTS,MH COMMISSIONING,Third Party Payments,Revenue
Walsall Council,http://opendatacommunities.org/id/metropolitan-district-council/walsall,WC63-329,31/12/2015,Social Care & Inclusion,ANSON COURT RESIDENTIAL HOME,15/12/2015,"3,025.23",73373-RESIDENTIAL & NURSING CARE PLACEMENTS,MH COMMISSIONING,Third Party Payments,Revenue
Walsall Council,http://opendatacommunities.org/id/metropolitan-district-council/walsall,WC63-330,31/12/2015,Social Care & Inclusion,ANSON COURT RESIDENTIAL HOME,18/12/2015,"3,137.28",73373-RESIDENTIAL & NURSING CARE PLACEMENTS,OP COMMISSIONING,Third Party Payments,Revenue
Walsall Council,http://opendatacommunities.org/id/metropolitan-district-council/walsall,WC63-331,31/12/2015,Childrens,REDACTED,21/12/2015,"1,369.84",74006-HOLIDAY/CHRISTMAS ALLOWANCE-FOSTER CARERS-OTH AGENCY PROVISION,INTERNAL FOSTER CARE PROVISION,Third Party Payments,Revenue
Walsall Council,http://opendatacommunities.org/id/metropolitan-district-council/walsall,WC63-332,31/12/2015,Childrens,REDACTED,21/12/2015,571.44,74006-HOLIDAY/CHRISTMAS ALLOWANCE-FOSTER CARERS-OTH AGENCY PROVISION,INTERNAL FOSTER CARE PROVISION,Third Party Payments,Revenue
Walsall Council,http://opendatacommunities.org/id/metropolitan-district-council/walsall,WC63-333,31/12/2015,Economy & Environment,REDACTED,07/12/2015,300.00,63000-PROFESSIONAL FEES AND SERVICES,FOREST ARTS CENTRE,Supplies & Services,Revenue
Walsall Council,http://opendatacommunities.org/id/metropolitan-district-council/walsall,WC63-334,31/12/2015,Economy & Environment,APCOA PARKING SERVICES (UK) LTD,17/12/2015,"45,521.00",73025-PROFESSIONAL SERVICES-PRIV CONTRACTOR & OTHER AGENCIES,PARKING SERVICES,Third Party Payments,Revenue
Walsall Council,http://opendatacommunities.org/id/metropolitan-district-council/walsall,WC63-335,31/12/2015,Social Care & Inclusion,APNA HOUSE LTD,18/12/2015,"5,586.96",73373-RESIDENTIAL & NURSING CARE PLACEMENTS,OP COMMISSIONING,Third Party Payments,Revenue
Walsall Council,http://opendatacommunities.org/id/metropolitan-district-council/walsall,WC63-336,31/12/2015,Economy & Environment,APPLE CONSTRUCTION TRAINING LTD,03/12/2015,595.00,30030-EXTERNAL TRAINING,GROUNDS,Employees,Revenue
Walsall Council,http://opendatacommunities.org/id/metropolitan-district-council/walsall,WC63-337,31/12/2015,Economy & Environment,APPLE CONSTRUCTION TRAINING LTD,03/12/2015,"1,190.00",30030-EXTERNAL TRAINING,GROUNDS,Employees,Revenue
Walsall Council,http://opendatacommunities.org/id/metropolitan-district-council/walsall,WC63-338,31/12/2015,Economy & Environment,APSE 001,04/12/2015,298.00,60500-GENERAL MATERIALS,CENTRAL SUPPORT SERVICES LEISURE DSO,Supplies & Services,Revenue
Walsall Council,http://opendatacommunities.org/id/metropolitan-district-council/walsall,WC63-339,31/12/2015,Childrens,AQUA INSTALL,09/12/2015,260.00,60000-FURNITURE & EQUIPMENT,BIRCHILLS CHILDREN CENTRE,Supplies & Services,Revenue
Walsall Council,http://opendatacommunities.org/id/metropolitan-district-council/walsall,WC63-340,31/12/2015,Economy & Environment,AQUILA TRAINING SERVICES LTD,01/12/2015,445.50,30030-EXTERNAL TRAINING,TRADING STANDARDS,Employees,Revenue
Walsall Council,http://opendatacommunities.org/id/metropolitan-district-council/walsall,WC63-341,31/12/2015,Social Care & Inclusion,ARBORETUM NURSING HOME.,08/12/2015,564.46,73373-RESIDENTIAL & NURSING CARE PLACEMENTS,OP COMMISSIONING,Third Party Payments,Revenue
Walsall Council,http://opendatacommunities.org/id/metropolitan-district-council/walsall,WC63-342,31/12/2015,Social Care & Inclusion,ARBORETUM NURSING HOME.,01/12/2015,"1,975.60",73373-RESIDENTIAL & NURSING CARE PLACEMENTS,OP COMMISSIONING,Third Party Payments,Revenue
Walsall Council,http://opendatacommunities.org/id/metropolitan-district-council/walsall,WC63-343,31/12/2015,Social Care & Inclusion,ARBORETUM NURSING HOME.,08/12/2015,"1,975.60",73373-RESIDENTIAL & NURSING CARE PLACEMENTS,YADS COMMISSIONING,Third Party Payments,Revenue
Walsall Council,http://opendatacommunities.org/id/metropolitan-district-council/walsall,WC63-344,31/12/2015,Social Care & Inclusion,ARBORETUM NURSING HOME.,18/12/2015,"1,975.60",73373-RESIDENTIAL & NURSING CARE PLACEMENTS,OP COMMISSIONING,Third Party Payments,Revenue
Walsall Council,http://opendatacommunities.org/id/metropolitan-district-council/walsall,WC63-345,31/12/2015,Social Care & Inclusion,ARBORETUM NURSING HOME.,18/12/2015,"1,975.60",73373-RESIDENTIAL & NURSING CARE PLACEMENTS,OP COMMISSIONING,Third Party Payments,Revenue
Walsall Council,http://opendatacommunities.org/id/metropolitan-district-council/walsall,WC63-346,31/12/2015,Social Care & Inclusion,ARBORETUM NURSING HOME.,15/12/2015,"2,469.50",73373-RESIDENTIAL & NURSING CARE PLACEMENTS,OP COMMISSIONING,Third Party Payments,Revenue
Walsall Council,http://opendatacommunities.org/id/metropolitan-district-council/walsall,WC63-347,31/12/2015,Social Care & Inclusion,ARBORETUM NURSING HOME.,15/12/2015,"2,469.50",73373-RESIDENTIAL & NURSING CARE PLACEMENTS,OP COMMISSIONING,Third Party Payments,Revenue
Walsall Council,http://opendatacommunities.org/id/metropolitan-district-council/walsall,WC63-348,31/12/2015,Social Care & Inclusion,ARBORETUM NURSING HOME.,15/12/2015,"2,469.50",73373-RESIDENTIAL & NURSING CARE PLACEMENTS,OP COMMISSIONING,Third Party Payments,Revenue
Walsall Council,http://opendatacommunities.org/id/metropolitan-district-council/walsall,WC63-349,31/12/2015,Social Care & Inclusion,ARBORETUM NURSING HOME.,15/12/2015,"2,469.50",73373-RESIDENTIAL & NURSING CARE PLACEMENTS,OP COMMISSIONING,Third Party Payments,Revenue
Walsall Council,http://opendatacommunities.org/id/metropolitan-district-council/walsall,WC63-350,31/12/2015,Social Care & Inclusion,ARBORETUM NURSING HOME.,15/12/2015,"2,521.45",73373-RESIDENTIAL & NURSING CARE PLACEMENTS,OP COMMISSIONING,Third Party Payments,Revenue
Walsall Council,http://opendatacommunities.org/id/metropolitan-district-council/walsall,WC63-351,31/12/2015,Social Care & Inclusion,ARBORETUM NURSING HOME.,15/12/2015,"2,537.50",73373-RESIDENTIAL & NURSING CARE PLACEMENTS,OP COMMISSIONING,Third Party Payments,Revenue
Walsall Council,http://opendatacommunities.org/id/metropolitan-district-council/walsall,WC63-352,31/12/2015,Social Care & Inclusion,ARBORETUM NURSING HOME.,11/12/2015,"15,000.00",73019-PSE'S-PRIV CONTRACTOR FEES,TRANSITIONAL CARE SUPPORT TEAM,Third Party Payments,Revenue
Walsall Council,http://opendatacommunities.org/id/metropolitan-district-council/walsall,WC63-353,31/12/2015,Economy & Environment,ARCHWAY TCS LTD,02/12/2015,452.54,60537-VEHICLE WASH PLANT-MATERIALS,DEPOT,Supplies & Services,Revenue
Walsall Council,http://opendatacommunities.org/id/metropolitan-district-council/walsall,WC63-354,31/12/2015,Economy & Environment,ARIES ENTERTAINMENT LTD,22/12/2015,450.00,62523-EVENTS,BLOXWICH DISTRICT CENTRE,Supplies & Services,Revenue
Walsall Council,http://opendatacommunities.org/id/metropolitan-district-council/walsall,WC63-355,31/12/2015,Change and Governance,ARTHUR J GALLAGHER T/A HEATH LAMBERT LIMITED,14/12/2015,"6,000.00",63000-PROFESSIONAL FEES AND SERVICES,RISK & INSURANCE,Supplies & Services,Revenue
Walsall Council,http://opendatacommunities.org/id/metropolitan-district-council/walsall,WC63-356,31/12/2015,Economy & Environment,ASA AWARDS,01/12/2015,298.30,60500-GENERAL MATERIALS,BLOXWICH LEISURE CENTRE,Supplies & Services,Revenue
Walsall Council,http://opendatacommunities.org/id/metropolitan-district-council/walsall,WC63-357,31/12/2015,Economy & Environment,ASA AWARDS,03/12/2015,374.13,60500-GENERAL MATERIALS,WALSALL GALA CENTRE,Supplies & Services,Revenue
Walsall Council,http://opendatacommunities.org/id/metropolitan-district-council/walsall,WC63-358,31/12/2015,Economy & Environment,ASA BUSINESS ENTERPRISES LTD,04/12/2015,535.65,60500-GENERAL MATERIALS,BLOXWICH LEISURE CENTRE,Supplies & Services,Revenue
Walsall Council,http://opendatacommunities.org/id/metropolitan-district-council/walsall,WC63-359,31/12/2015,Social Care & Inclusion,ASH GRANGE CARE HOME,08/12/2015,-994.10,73373-RESIDENTIAL & NURSING CARE PLACEMENTS,OP COMMISSIONING,Third Party Payments,Revenue
Walsall Council,http://opendatacommunities.org/id/metropolitan-district-council/walsall,WC63-360,31/12/2015,Social Care & Inclusion,ASH GRANGE CARE HOME,08/12/2015,639.06,73373-RESIDENTIAL & NURSING CARE PLACEMENTS,OP COMMISSIONING,Third Party Payments,Revenue
Walsall Council,http://opendatacommunities.org/id/metropolitan-district-council/walsall,WC63-361,31/12/2015,Social Care & Inclusion,ASH GRANGE CARE HOME,08/12/2015,"1,505.56",73373-RESIDENTIAL & NURSING CARE PLACEMENTS,OP COMMISSIONING,Third Party Payments,Revenue
Walsall Council,http://opendatacommunities.org/id/metropolitan-district-council/walsall,WC63-362,31/12/2015,Social Care & Inclusion,ASH GRANGE CARE HOME,01/12/2015,"1,988.20",73373-RESIDENTIAL & NURSING CARE PLACEMENTS,OP COMMISSIONING,Third Party Payments,Revenue
Walsall Council,http://opendatacommunities.org/id/metropolitan-district-council/walsall,WC63-363,31/12/2015,Social Care & Inclusion,ASH GRANGE CARE HOME,08/12/2015,"1,988.20",73373-RESIDENTIAL & NURSING CARE PLACEMENTS,OP COMMISSIONING,Third Party Payments,Revenue
Walsall Council,http://opendatacommunities.org/id/metropolitan-district-council/walsall,WC63-364,31/12/2015,Social Care & Inclusion,ASH GRANGE CARE HOME,08/12/2015,"1,988.20",73373-RESIDENTIAL & NURSING CARE PLACEMENTS,OP COMMISSIONING,Third Party Payments,Revenue
Walsall Council,http://opendatacommunities.org/id/metropolitan-district-council/walsall,WC63-365,31/12/2015,Social Care & Inclusion,ASH GRANGE CARE HOME,08/12/2015,"1,988.20",73373-RESIDENTIAL & NURSING CARE PLACEMENTS,OP COMMISSIONING,Third Party Payments,Revenue
Walsall Council,http://opendatacommunities.org/id/metropolitan-district-council/walsall,WC63-366,31/12/2015,Social Care & Inclusion,ASH GRANGE CARE HOME,08/12/2015,"1,988.20",73373-RESIDENTIAL & NURSING CARE PLACEMENTS,MH COMMISSIONING,Third Party Payments,Revenue
Walsall Council,http://opendatacommunities.org/id/metropolitan-district-council/walsall,WC63-367,31/12/2015,Social Care & Inclusion,ASH GRANGE CARE HOME,08/12/2015,"1,988.20",73373-RESIDENTIAL & NURSING CARE PLACEMENTS,OP COMMISSIONING,Third Party Payments,Revenue
Walsall Council,http://opendatacommunities.org/id/metropolitan-district-council/walsall,WC63-368,31/12/2015,Social Care & Inclusion,ASH GRANGE CARE HOME,08/12/2015,"1,988.20",73373-RESIDENTIAL & NURSING CARE PLACEMENTS,OP COMMISSIONING,Third Party Payments,Revenue
Walsall Council,http://opendatacommunities.org/id/metropolitan-district-council/walsall,WC63-369,31/12/2015,Social Care & Inclusion,ASH GRANGE CARE HOME,08/12/2015,"1,988.20",73373-RESIDENTIAL & NURSING CARE PLACEMENTS,OP COMMISSIONING,Third Party Payments,Revenue
Walsall Council,http://opendatacommunities.org/id/metropolitan-district-council/walsall,WC63-370,31/12/2015,Social Care & Inclusion,ASH GRANGE CARE HOME,08/12/2015,"1,988.20",73373-RESIDENTIAL & NURSING CARE PLACEMENTS,OP COMMISSIONING,Third Party Payments,Revenue
Walsall Council,http://opendatacommunities.org/id/metropolitan-district-council/walsall,WC63-371,31/12/2015,Social Care & Inclusion,ASH GRANGE CARE HOME,08/12/2015,"1,988.20",73373-RESIDENTIAL & NURSING CARE PLACEMENTS,OP COMMISSIONING,Third Party Payments,Revenue
Walsall Council,http://opendatacommunities.org/id/metropolitan-district-council/walsall,WC63-372,31/12/2015,Social Care & Inclusion,ASH GRANGE CARE HOME,08/12/2015,"1,988.20",73373-RESIDENTIAL & NURSING CARE PLACEMENTS,OP COMMISSIONING,Third Party Payments,Revenue
Walsall Council,http://opendatacommunities.org/id/metropolitan-district-council/walsall,WC63-373,31/12/2015,Social Care & Inclusion,ASH GRANGE CARE HOME,08/12/2015,"1,988.20",73373-RESIDENTIAL & NURSING CARE PLACEMENTS,OP COMMISSIONING,Third Party Payments,Revenue
Walsall Council,http://opendatacommunities.org/id/metropolitan-district-council/walsall,WC63-374,31/12/2015,Social Care & Inclusion,ASH GRANGE CARE HOME,08/12/2015,"1,988.20",73373-RESIDENTIAL & NURSING CARE PLACEMENTS,OP COMMISSIONING,Third Party Payments,Revenue
Walsall Council,http://opendatacommunities.org/id/metropolitan-district-council/walsall,WC63-375,31/12/2015,Social Care & Inclusion,ASH GRANGE CARE HOME,08/12/2015,"1,988.20",73373-RESIDENTIAL & NURSING CARE PLACEMENTS,OP COMMISSIONING,Third Party Payments,Revenue
Walsall Council,http://opendatacommunities.org/id/metropolitan-district-council/walsall,WC63-376,31/12/2015,Social Care & Inclusion,ASH GRANGE CARE HOME,08/12/2015,"1,988.20",73373-RESIDENTIAL & NURSING CARE PLACEMENTS,OP COMMISSIONING,Third Party Payments,Revenue
Walsall Council,http://opendatacommunities.org/id/metropolitan-district-council/walsall,WC63-377,31/12/2015,Social Care & Inclusion,ASH GRANGE CARE HOME,08/12/2015,"2,065.64",73373-RESIDENTIAL & NURSING CARE PLACEMENTS,OP COMMISSIONING,Third Party Payments,Revenue
Walsall Council,http://opendatacommunities.org/id/metropolitan-district-council/walsall,WC63-378,31/12/2015,Social Care & Inclusion,ASH GRANGE CARE HOME,08/12/2015,"2,130.21",73373-RESIDENTIAL & NURSING CARE PLACEMENTS,OP COMMISSIONING,Third Party Payments,Revenue
Walsall Council,http://opendatacommunities.org/id/metropolitan-district-council/walsall,WC63-379,31/12/2015,Social Care & Inclusion,ASH GRANGE CARE HOME,08/12/2015,"2,943.72",73373-RESIDENTIAL & NURSING CARE PLACEMENTS,OP COMMISSIONING,Third Party Payments,Revenue
Walsall Council,http://opendatacommunities.org/id/metropolitan-district-council/walsall,WC63-380,31/12/2015,Social Care & Inclusion,ASH GRANGE CARE HOME,08/12/2015,"14,700.00",73019-PSE'S-PRIV CONTRACTOR FEES,TRANSITIONAL CARE SUPPORT TEAM,Third Party Payments,Revenue
Walsall Council,http://opendatacommunities.org/id/metropolitan-district-council/walsall,WC63-381,31/12/2015,Social Care & Inclusion,ASHBOURNE LODGE,15/12/2015,"2,103.86",73373-RESIDENTIAL & NURSING CARE PLACEMENTS,OP COMMISSIONING,Third Party Payments,Revenue
Walsall Council,http://opendatacommunities.org/id/metropolitan-district-council/walsall,WC63-382,31/12/2015,Social Care & Inclusion,ASHBOURNE LODGE,15/12/2015,"2,173.99",73373-RESIDENTIAL & NURSING CARE PLACEMENTS,OP COMMISSIONING,Third Party Payments,Revenue
Walsall Council,http://opendatacommunities.org/id/metropolitan-district-council/walsall,WC63-383,31/12/2015,Economy & Environment,ASHTON ENGINEERING CO LTD,03/12/2015,219.00,60006-NEW-FURNITURE & EQUIPMENT,FLEET,Supplies & Services,Revenue
Walsall Council,http://opendatacommunities.org/id/metropolitan-district-council/walsall,WC63-384,31/12/2015,Economy & Environment,ASKEWS AND HOLTS LIBRARY SERVICES LTD,21/12/2015,209.65,60501-LIBRARY BOOKS,LIBRARY STOCK AND PERFORMANCE,Supplies & Services,Revenue
Walsall Council,http://opendatacommunities.org/id/metropolitan-district-council/walsall,WC63-385,31/12/2015,Economy & Environment,ASKEWS AND HOLTS LIBRARY SERVICES LTD,08/12/2015,238.42,60501-LIBRARY BOOKS,LIBRARY STOCK AND PERFORMANCE,Supplies & Services,Revenue
Walsall Council,http://opendatacommunities.org/id/metropolitan-district-council/walsall,WC63-386,31/12/2015,Economy & Environment,ASKEWS AND HOLTS LIBRARY SERVICES LTD,08/12/2015,256.26,60501-LIBRARY BOOKS,LIBRARY STOCK AND PERFORMANCE,Supplies & Services,Revenue
Walsall Council,http://opendatacommunities.org/id/metropolitan-district-council/walsall,WC63-387,31/12/2015,Economy & Environment,ASKEWS AND HOLTS LIBRARY SERVICES LTD,07/12/2015,304.36,60501-LIBRARY BOOKS,LIBRARY STOCK AND PERFORMANCE,Supplies & Services,Revenue
Walsall Council,http://opendatacommunities.org/id/metropolitan-district-council/walsall,WC63-388,31/12/2015,Economy & Environment,ASKEWS AND HOLTS LIBRARY SERVICES LTD,07/12/2015,307.06,60501-LIBRARY BOOKS,LIBRARY STOCK AND PERFORMANCE,Supplies & Services,Revenue
Walsall Council,http://opendatacommunities.org/id/metropolitan-district-council/walsall,WC63-389,31/12/2015,Economy & Environment,ASKEWS AND HOLTS LIBRARY SERVICES LTD,16/12/2015,309.54,60501-LIBRARY BOOKS,LIBRARY STOCK AND PERFORMANCE,Supplies & Services,Revenue
Walsall Council,http://opendatacommunities.org/id/metropolitan-district-council/walsall,WC63-390,31/12/2015,Economy & Environment,ASKEWS AND HOLTS LIBRARY SERVICES LTD,07/12/2015,311.23,60501-LIBRARY BOOKS,LIBRARY STOCK AND PERFORMANCE,Supplies & Services,Revenue
Walsall Council,http://opendatacommunities.org/id/metropolitan-district-council/walsall,WC63-391,31/12/2015,Economy & Environment,ASKEWS AND HOLTS LIBRARY SERVICES LTD,17/12/2015,313.81,60501-LIBRARY BOOKS,LIBRARY STOCK AND PERFORMANCE,Supplies & Services,Revenue
Walsall Council,http://opendatacommunities.org/id/metropolitan-district-council/walsall,WC63-392,31/12/2015,Economy & Environment,ASKEWS AND HOLTS LIBRARY SERVICES LTD,08/12/2015,365.58,60501-LIBRARY BOOKS,LIBRARY STOCK AND PERFORMANCE,Supplies & Services,Revenue
Walsall Council,http://opendatacommunities.org/id/metropolitan-district-council/walsall,WC63-393,31/12/2015,Economy & Environment,ASKEWS AND HOLTS LIBRARY SERVICES LTD,01/12/2015,368.54,60501-LIBRARY BOOKS,LIBRARY STOCK AND PERFORMANCE,Supplies & Services,Revenue
Walsall Council,http://opendatacommunities.org/id/metropolitan-district-council/walsall,WC63-394,31/12/2015,Economy & Environment,ASKEWS AND HOLTS LIBRARY SERVICES LTD,07/12/2015,375.01,60501-LIBRARY BOOKS,LIBRARY STOCK AND PERFORMANCE,Supplies & Services,Revenue
Walsall Council,http://opendatacommunities.org/id/metropolitan-district-council/walsall,WC63-395,31/12/2015,Economy & Environment,ASKEWS AND HOLTS LIBRARY SERVICES LTD,08/12/2015,375.56,60501-LIBRARY BOOKS,LIBRARY STOCK AND PERFORMANCE,Supplies & Services,Revenue
Walsall Council,http://opendatacommunities.org/id/metropolitan-district-council/walsall,WC63-396,31/12/2015,Economy & Environment,ASKEWS AND HOLTS LIBRARY SERVICES LTD,07/12/2015,384.92,60501-LIBRARY BOOKS,LIBRARY STOCK AND PERFORMANCE,Supplies & Services,Revenue
Walsall Council,http://opendatacommunities.org/id/metropolitan-district-council/walsall,WC63-397,31/12/2015,Economy & Environment,ASKEWS AND HOLTS LIBRARY SERVICES LTD,02/12/2015,495.09,60501-LIBRARY BOOKS,LIBRARY STOCK AND PERFORMANCE,Supplies & Services,Revenue
Walsall Council,http://opendatacommunities.org/id/metropolitan-district-council/walsall,WC63-398,31/12/2015,Economy & Environment,ASKEWS AND HOLTS LIBRARY SERVICES LTD,01/12/2015,521.37,60501-LIBRARY BOOKS,LIBRARY STOCK AND PERFORMANCE,Supplies & Services,Revenue
Walsall Council,http://opendatacommunities.org/id/metropolitan-district-council/walsall,WC63-399,31/12/2015,Economy & Environment,ASKEWS AND HOLTS LIBRARY SERVICES LTD,01/12/2015,561.07,60501-LIBRARY BOOKS,LIBRARY STOCK AND PERFORMANCE,Supplies & Services,Revenue
Walsall Council,http://opendatacommunities.org/id/metropolitan-district-council/walsall,WC63-400,31/12/2015,Economy & Environment,ASKEWS AND HOLTS LIBRARY SERVICES LTD,08/12/2015,564.80,60501-LIBRARY BOOKS,LIBRARY STOCK AND PERFORMANCE,Supplies & Services,Revenue
Walsall Council,http://opendatacommunities.org/id/metropolitan-district-council/walsall,WC63-401,31/12/2015,Economy & Environment,ASKEWS AND HOLTS LIBRARY SERVICES LTD,16/12/2015,706.77,60501-LIBRARY BOOKS,LIBRARY STOCK AND PERFORMANCE,Supplies & Services,Revenue
Walsall Council,http://opendatacommunities.org/id/metropolitan-district-council/walsall,WC63-402,31/12/2015,Economy & Environment,ASKEWS AND HOLTS LIBRARY SERVICES LTD,16/12/2015,713.58,60501-LIBRARY BOOKS,LIBRARY STOCK AND PERFORMANCE,Supplies & Services,Revenue
Walsall Council,http://opendatacommunities.org/id/metropolitan-district-council/walsall,WC63-403,31/12/2015,Economy & Environment,ASKEWS AND HOLTS LIBRARY SERVICES LTD,07/12/2015,768.72,60501-LIBRARY BOOKS,LIBRARY STOCK AND PERFORMANCE,Supplies & Services,Revenue
Walsall Council,http://opendatacommunities.org/id/metropolitan-district-council/walsall,WC63-404,31/12/2015,Economy & Environment,ASKEWS AND HOLTS LIBRARY SERVICES LTD,16/12/2015,"1,218.40",60501-LIBRARY BOOKS,LIBRARY STOCK AND PERFORMANCE,Supplies & Services,Revenue
Walsall Council,http://opendatacommunities.org/id/metropolitan-district-council/walsall,WC63-405,31/12/2015,Social Care & Inclusion,REDACTED,08/12/2015,616.25,76422-DIRECT PAYMENTS TO SOCIAL SERVICES CLIENTS,YADS COMMISSIONING,Transfer Payments,Revenue
Walsall Council,http://opendatacommunities.org/id/metropolitan-district-council/walsall,WC63-406,31/12/2015,Economy & Environment,ASPINALL VERDI LIMITED,21/12/2015,643.73,01001-OTHER CONSULTANTS FEES,CFR 968 - BCBPIP,Capital,Capital
Walsall Council,http://opendatacommunities.org/id/metropolitan-district-council/walsall,WC63-407,31/12/2015,Economy & Environment,ASPINALL VERDI LIMITED,01/12/2015,"2,062.50",01001-OTHER CONSULTANTS FEES,CFR 968 - BCBPIP,Capital,Capital
Walsall Council,http://opendatacommunities.org/id/metropolitan-district-council/walsall,WC63-408,31/12/2015,Childrens,ASSOCIATION FOR REHABILITATION OF COMMUNICATION AND ORAL SKILLS (ARCOS),10/12/2015,"1,350.00",63000-PROFESSIONAL FEES AND SERVICES,VIRTUAL SCHOOL CENTRAL PUPIL PREMIUM,Supplies & Services,Revenue
Walsall Council,http://opendatacommunities.org/id/metropolitan-district-council/walsall,WC63-409,31/12/2015,Childrens,ASTON CHILDRENS CARE,18/12/2015,"10,628.35",74036-EXTERNAL RESIDENTIAL CARE-OTH AGENCY PROVISION,INDEPENDENT RESIDENTIAL HOMES,Third Party Payments,Revenue
Walsall Council,http://opendatacommunities.org/id/metropolitan-district-council/walsall,WC63-410,31/12/2015,Change and Governance,AURORA GRAPHICS & DISPLAYS LTD,10/12/2015,225.00,62008-OUTWORK-PRINT ROOM,PRINTING SERVICES,Supplies & Services,Revenue
Walsall Council,http://opendatacommunities.org/id/metropolitan-district-council/walsall,WC63-411,31/12/2015,Change and Governance,AURORA GRAPHICS & DISPLAYS LTD,10/12/2015,692.00,62008-OUTWORK-PRINT ROOM,PRINTING SERVICES,Supplies & Services,Revenue
Walsall Council,http://opendatacommunities.org/id/metropolitan-district-council/walsall,WC63-412,31/12/2015,Social Care & Inclusion,AUTISM WEST MIDLANDS,08/12/2015,"7,237.75",73373-RESIDENTIAL & NURSING CARE PLACEMENTS,LD COMMISSIONING,Third Party Payments,Revenue
Walsall Council,http://opendatacommunities.org/id/metropolitan-district-council/walsall,WC63-413,31/12/2015,Social Care & Inclusion,AUTISM WEST MIDLANDS 001,01/12/2015,"4,838.06",73373-RESIDENTIAL & NURSING CARE PLACEMENTS,LD COMMISSIONING,Third Party Payments,Revenue
Walsall Council,http://opendatacommunities.org/id/metropolitan-district-council/walsall,WC63-414,31/12/2015,Economy & Environment,AUTO TIME SOLUTIONS LTD,11/12/2015,92.57,60006-NEW-FURNITURE & EQUIPMENT,DARLASTON LEISURE CENTRE,Supplies & Services,Revenue
Walsall Council,http://opendatacommunities.org/id/metropolitan-district-council/walsall,WC63-415,31/12/2015,Economy & Environment,AUTO TIME SOLUTIONS LTD,11/12/2015,92.57,60006-NEW-FURNITURE & EQUIPMENT,WALSALL GALA CENTRE,Supplies & Services,Revenue
Walsall Council,http://opendatacommunities.org/id/metropolitan-district-council/walsall,WC63-416,31/12/2015,Economy & Environment,AUTO TIME SOLUTIONS LTD,11/12/2015,92.86,60006-NEW-FURNITURE & EQUIPMENT,OAK PARK,Supplies & Services,Revenue
Walsall Council,http://opendatacommunities.org/id/metropolitan-district-council/walsall,WC63-417,31/12/2015,Social Care & Inclusion,REDACTED,08/12/2015,971.25,76422-DIRECT PAYMENTS TO SOCIAL SERVICES CLIENTS,OP COMMISSIONING,Transfer Payments,Revenue
Walsall Council,http://opendatacommunities.org/id/metropolitan-district-council/walsall,WC63-418,31/12/2015,Childrens,REDACTED,08/12/2015,"1,605.00",76422-DIRECT PAYMENTS TO SOCIAL SERVICES CLIENTS,FAMILY SUPPORT - DIRECT PAYMENTS,Transfer Payments,Revenue
Walsall Council,http://opendatacommunities.org/id/metropolitan-district-council/walsall,WC63-419,31/12/2015,Social Care & Inclusion,REDACTED,08/12/2015,"3,315.00",76422-DIRECT PAYMENTS TO SOCIAL SERVICES CLIENTS,LD COMMISSIONING,Transfer Payments,Revenue
Walsall Council,http://opendatacommunities.org/id/metropolitan-district-council/walsall,WC63-420,31/12/2015,Childrens,REDACTED,07/12/2015,906.76,62515-MISCELLANEOUS SUPPLIES,INTERNAL FOSTER CARE PROVISION,Supplies & Services,Revenue
Walsall Council,http://opendatacommunities.org/id/metropolitan-district-council/walsall,WC63-421,31/12/2015,Childrens,REDACTED,07/12/2015,"1,373.02",74006-HOLIDAY/CHRISTMAS ALLOWANCE-FOSTER CARERS-OTH AGENCY PROVISION,INTERNAL FOSTER CARE PROVISION,Third Party Payments,Revenue
Walsall Council,http://opendatacommunities.org/id/metropolitan-district-council/walsall,WC63-422,31/12/2015,Childrens,REDACTED,07/12/2015,"1,445.32",62515-MISCELLANEOUS SUPPLIES,INTERNAL FOSTER CARE PROVISION,Supplies & Services,Revenue
Walsall Council,http://opendatacommunities.org/id/metropolitan-district-council/walsall,WC63-423,31/12/2015,Childrens,REDACTED,07/12/2015,"2,464.40",74006-HOLIDAY/CHRISTMAS ALLOWANCE-FOSTER CARERS-OTH AGENCY PROVISION,INTERNAL FOSTER CARE PROVISION,Third Party Payments,Revenue
Walsall Council,http://opendatacommunities.org/id/metropolitan-district-council/walsall,WC63-424,31/12/2015,Social Care & Inclusion,REDACTED,08/12/2015,"1,079.00",76422-DIRECT PAYMENTS TO SOCIAL SERVICES CLIENTS,OP COMMISSIONING,Transfer Payments,Revenue
Walsall Council,http://opendatacommunities.org/id/metropolitan-district-council/walsall,WC63-425,31/12/2015,Childrens,BABY PEOPLE LTD,07/12/2015,"4,129.00",62523-EVENTS,YOUTH JUSTICE SERVICE,Supplies & Services,Revenue
Walsall Council,http://opendatacommunities.org/id/metropolitan-district-council/walsall,WC63-426,31/12/2015,Change and Governance,BACK CARE SOLUTIONS LTD,14/12/2015,414.00,32000-MISC FEES AND EXPENSES,HR DIRECT SERVICES,Employees,Revenue
Walsall Council,http://opendatacommunities.org/id/metropolitan-district-council/walsall,WC63-427,31/12/2015,Social Care & Inclusion,REDACTED,08/12/2015,"3,562.40",76422-DIRECT PAYMENTS TO SOCIAL SERVICES CLIENTS,LD COMMISSIONING,Transfer Payments,Revenue
Walsall Council,http://opendatacommunities.org/id/metropolitan-district-council/walsall,WC63-428,31/12/2015,Economy & Environment,BALLOON MAGIC,01/12/2015,672.50,62523-EVENTS,COMMUNITY LIAISON,Supplies & Services,Revenue
Walsall Council,http://opendatacommunities.org/id/metropolitan-district-council/walsall,WC63-429,31/12/2015,Social Care & Inclusion,REDACTED,08/12/2015,775.00,76422-DIRECT PAYMENTS TO SOCIAL SERVICES CLIENTS,OP COMMISSIONING,Transfer Payments,Revenue
Walsall Council,http://opendatacommunities.org/id/metropolitan-district-council/walsall,WC63-430,31/12/2015,Social Care & Inclusion,REDACTED,08/12/2015,"1,308.13",76422-DIRECT PAYMENTS TO SOCIAL SERVICES CLIENTS,OP COMMISSIONING,Transfer Payments,Revenue
Walsall Council,http://opendatacommunities.org/id/metropolitan-district-council/walsall,WC63-431,31/12/2015,Social Care & Inclusion,REDACTED,08/12/2015,"1,978.58",76422-DIRECT PAYMENTS TO SOCIAL SERVICES CLIENTS,YADS COMMISSIONING,Transfer Payments,Revenue
Walsall Council,http://opendatacommunities.org/id/metropolitan-district-council/walsall,WC63-432,31/12/2015,Social Care & Inclusion,REDACTED,08/12/2015,"1,920.10",76422-DIRECT PAYMENTS TO SOCIAL SERVICES CLIENTS,YADS COMMISSIONING,Transfer Payments,Revenue
Walsall Council,http://opendatacommunities.org/id/metropolitan-district-council/walsall,WC63-433,31/12/2015,Social Care & Inclusion,REDACTED,08/12/2015,790.65,76422-DIRECT PAYMENTS TO SOCIAL SERVICES CLIENTS,OP COMMISSIONING,Transfer Payments,Revenue
Walsall Council,http://opendatacommunities.org/id/metropolitan-district-council/walsall,WC63-434,31/12/2015,Economy & Environment,BARCHAM TREES PLC,16/12/2015,"1,974.60",60500-GENERAL MATERIALS,TREE TEAM,Supplies & Services,Revenue
Walsall Council,http://opendatacommunities.org/id/metropolitan-district-council/walsall,WC63-435,31/12/2015,Childrens,BARNARDOS SERVICES LTD,03/12/2015,"2,500.00",60501-LIBRARY BOOKS,PARENTING TEAM,Supplies & Services,Revenue
Walsall Council,http://opendatacommunities.org/id/metropolitan-district-council/walsall,WC63-436,31/12/2015,Childrens,BARR BEACON SCHOOL TRUST,14/12/2015,265.00,77300-ISB-FORMULA ALLOCATION,BARR BEACON SCHOOL TRUST (ACADEMY),Transfer Payments,Revenue
Walsall Council,http://opendatacommunities.org/id/metropolitan-district-council/walsall,WC63-437,31/12/2015,Economy & Environment,BAT FABRICATIONS LTD,04/12/2015,"1,890.00","40000-REPAIRS,ALTERATIONS & MAINTENANCE-PREM",CENTRAL SERVICES ALLOTMENTS,Premises,Revenue
Walsall Council,http://opendatacommunities.org/id/metropolitan-district-council/walsall,WC63-438,31/12/2015,Change and Governance,BATHROOM BASICS LTD,14/12/2015,"3,892.00",01045-PRIVATE GRANTS,CFR 826 DISABLED FACILITIES GRANTS (SOCIAL SERVICES),Capital,Capital
Walsall Council,http://opendatacommunities.org/id/metropolitan-district-council/walsall,WC63-439,31/12/2015,Change and Governance,BATHROOM BASICS LTD,14/12/2015,"4,161.00",01045-PRIVATE GRANTS,CFR 826 DISABLED FACILITIES GRANTS (SOCIAL SERVICES),Capital,Capital
Walsall Council,http://opendatacommunities.org/id/metropolitan-district-council/walsall,WC63-440,31/12/2015,Change and Governance,BATHROOM BASICS LTD,14/12/2015,"4,485.00",01045-PRIVATE GRANTS,CFR 826 DISABLED FACILITIES GRANTS (SOCIAL SERVICES),Capital,Capital
Walsall Council,http://opendatacommunities.org/id/metropolitan-district-council/walsall,WC63-441,31/12/2015,Economy & Environment,BEACON PHARMACY,15/12/2015,54.57,63000-PROFESSIONAL FEES AND SERVICES,SEXUAL HEALTH,Supplies & Services,Revenue
Walsall Council,http://opendatacommunities.org/id/metropolitan-district-council/walsall,WC63-442,31/12/2015,Economy & Environment,BEACON PHARMACY,15/12/2015,305.28,71007-CONTRIBUTION TO PCT,PUBLIC HEALTH BUSINESS SUPPORT,Third Party Payments,Revenue
Walsall Council,http://opendatacommunities.org/id/metropolitan-district-council/walsall,WC63-443,31/12/2015,Childrens,BEADEN POWERLEC LIMITED,04/12/2015,"1,415.95",01006-SITE WORKS MAIN CONTRACTORS,CFR 930 ELMORE GREEN PRIMARY ELECTRICAL WORKS,Capital,Capital
Walsall Council,http://opendatacommunities.org/id/metropolitan-district-council/walsall,WC63-444,31/12/2015,Childrens,BEADEN POWERLEC LIMITED,04/12/2015,"3,884.22",01006-SITE WORKS MAIN CONTRACTORS,CFR 930 ST JOHNS PRIMARY ELECTRICAL WORKS,Capital,Capital
Walsall Council,http://opendatacommunities.org/id/metropolitan-district-council/walsall,WC63-445,31/12/2015,Childrens,REDACTED,07/12/2015,925.00,62515-MISCELLANEOUS SUPPLIES,INTERNAL FOSTER CARE PROVISION,Supplies & Services,Revenue
Walsall Council,http://opendatacommunities.org/id/metropolitan-district-council/walsall,WC63-446,31/12/2015,Childrens,REDACTED,07/12/2015,"1,627.30",74006-HOLIDAY/CHRISTMAS ALLOWANCE-FOSTER CARERS-OTH AGENCY PROVISION,INTERNAL FOSTER CARE PROVISION,Third Party Payments,Revenue
Walsall Council,http://opendatacommunities.org/id/metropolitan-district-council/walsall,WC63-447,31/12/2015,Social Care & Inclusion,BEARWOOD NURSING HOME LTD,15/12/2015,"1,527.60",73373-RESIDENTIAL & NURSING CARE PLACEMENTS,OP COMMISSIONING,Third Party Payments,Revenue
Walsall Council,http://opendatacommunities.org/id/metropolitan-district-council/walsall,WC63-448,31/12/2015,Social Care & Inclusion,REDACTED,08/12/2015,802.20,76422-DIRECT PAYMENTS TO SOCIAL SERVICES CLIENTS,OP COMMISSIONING,Transfer Payments,Revenue
Walsall Council,http://opendatacommunities.org/id/metropolitan-district-council/walsall,WC63-449,31/12/2015,Childrens,REDACTED,14/12/2015,"1,437.66",66505-OTHER-GRANTS TO OTHER ORGS,EARLY YEARS - 2 YR OLDS,Third Party Payments,Revenue
Walsall Council,http://opendatacommunities.org/id/metropolitan-district-council/walsall,WC63-450,31/12/2015,Childrens,REDACTED,07/12/2015,670.34,62515-MISCELLANEOUS SUPPLIES,INTERNAL FOSTER CARE PROVISION,Supplies & Services,Revenue
Walsall Council,http://opendatacommunities.org/id/metropolitan-district-council/walsall,WC63-451,31/12/2015,Childrens,REDACTED,07/12/2015,714.30,74006-HOLIDAY/CHRISTMAS ALLOWANCE-FOSTER CARERS-OTH AGENCY PROVISION,INTERNAL FOSTER CARE PROVISION,Third Party Payments,Revenue
Walsall Council,http://opendatacommunities.org/id/metropolitan-district-council/walsall,WC63-452,31/12/2015,Social Care & Inclusion,BELLEVUE COURT CARE HOME,08/12/2015,-770.10,73373-RESIDENTIAL & NURSING CARE PLACEMENTS,MH COMMISSIONING,Third Party Payments,Revenue
Walsall Council,http://opendatacommunities.org/id/metropolitan-district-council/walsall,WC63-453,31/12/2015,Social Care & Inclusion,BELLEVUE COURT CARE HOME,08/12/2015,"1,532.96",73373-RESIDENTIAL & NURSING CARE PLACEMENTS,MH COMMISSIONING,Third Party Payments,Revenue
Walsall Council,http://opendatacommunities.org/id/metropolitan-district-council/walsall,WC63-454,31/12/2015,Social Care & Inclusion,BELLEVUE COURT CARE HOME,08/12/2015,"1,577.52",73373-RESIDENTIAL & NURSING CARE PLACEMENTS,MH COMMISSIONING,Third Party Payments,Revenue
Walsall Council,http://opendatacommunities.org/id/metropolitan-district-council/walsall,WC63-455,31/12/2015,Social Care & Inclusion,REDACTED,08/12/2015,"2,756.25",76422-DIRECT PAYMENTS TO SOCIAL SERVICES CLIENTS,LD COMMISSIONING,Transfer Payments,Revenue
Walsall Council,http://opendatacommunities.org/id/metropolitan-district-council/walsall,WC63-456,31/12/2015,Change and Governance,BENNIMAN CONSTRUCTION GROUP,01/12/2015,"3,452.71","40000-REPAIRS,ALTERATIONS & MAINTENANCE-PREM",RECHARGEABLE - NON SCHOOLS MAINTENANCE,Premises,Revenue
Walsall Council,http://opendatacommunities.org/id/metropolitan-district-council/walsall,WC63-457,31/12/2015,Social Care & Inclusion,REDACTED,08/12/2015,530.70,76422-DIRECT PAYMENTS TO SOCIAL SERVICES CLIENTS,OP COMMISSIONING,Transfer Payments,Revenue
Walsall Council,http://opendatacommunities.org/id/metropolitan-district-council/walsall,WC63-458,31/12/2015,Social Care & Inclusion,REDACTED,08/12/2015,"1,140.00",76422-DIRECT PAYMENTS TO SOCIAL SERVICES CLIENTS,OP COMMISSIONING,Transfer Payments,Revenue
Walsall Council,http://opendatacommunities.org/id/metropolitan-district-council/walsall,WC63-459,31/12/2015,Childrens,REDACTED,07/12/2015,271.04,62515-MISCELLANEOUS SUPPLIES,INTERNAL FOSTER CARE PROVISION,Supplies & Services,Revenue
Walsall Council,http://opendatacommunities.org/id/metropolitan-district-council/walsall,WC63-460,31/12/2015,Childrens,REDACTED,07/12/2015,734.72,74006-HOLIDAY/CHRISTMAS ALLOWANCE-FOSTER CARERS-OTH AGENCY PROVISION,INTERNAL FOSTER CARE PROVISION,Third Party Payments,Revenue
Walsall Council,http://opendatacommunities.org/id/metropolitan-district-council/walsall,WC63-461,31/12/2015,Social Care & Inclusion,REDACTED,08/12/2015,"1,210.00",76422-DIRECT PAYMENTS TO SOCIAL SERVICES CLIENTS,OP COMMISSIONING,Transfer Payments,Revenue
Walsall Council,http://opendatacommunities.org/id/metropolitan-district-council/walsall,WC63-462,31/12/2015,Social Care & Inclusion,BESCOT LODGE RESIDENTIAL CARE HOME,15/12/2015,504.21,73373-RESIDENTIAL & NURSING CARE PLACEMENTS,OP COMMISSIONING,Third Party Payments,Revenue
Walsall Council,http://opendatacommunities.org/id/metropolitan-district-council/walsall,WC63-463,31/12/2015,Social Care & Inclusion,BESCOT LODGE RESIDENTIAL CARE HOME,15/12/2015,"1,653.23",73373-RESIDENTIAL & NURSING CARE PLACEMENTS,OP COMMISSIONING,Third Party Payments,Revenue
Walsall Council,http://opendatacommunities.org/id/metropolitan-district-council/walsall,WC63-464,31/12/2015,Social Care & Inclusion,BESCOT LODGE RESIDENTIAL CARE HOME,15/12/2015,"1,653.23",73373-RESIDENTIAL & NURSING CARE PLACEMENTS,OP COMMISSIONING,Third Party Payments,Revenue
Walsall Council,http://opendatacommunities.org/id/metropolitan-district-council/walsall,WC63-465,31/12/2015,Social Care & Inclusion,BESCOT LODGE RESIDENTIAL CARE HOME,15/12/2015,"1,653.23",73373-RESIDENTIAL & NURSING CARE PLACEMENTS,OP COMMISSIONING,Third Party Payments,Revenue
Walsall Council,http://opendatacommunities.org/id/metropolitan-district-council/walsall,WC63-466,31/12/2015,Social Care & Inclusion,BESCOT LODGE RESIDENTIAL CARE HOME,15/12/2015,"1,653.23",73373-RESIDENTIAL & NURSING CARE PLACEMENTS,OP COMMISSIONING,Third Party Payments,Revenue
Walsall Council,http://opendatacommunities.org/id/metropolitan-district-council/walsall,WC63-467,31/12/2015,Social Care & Inclusion,BESCOT LODGE RESIDENTIAL CARE HOME,18/12/2015,"1,680.69",73373-RESIDENTIAL & NURSING CARE PLACEMENTS,OP COMMISSIONING,Third Party Payments,Revenue
Walsall Council,http://opendatacommunities.org/id/metropolitan-district-council/walsall,WC63-468,31/12/2015,Social Care & Inclusion,BESCOT LODGE RESIDENTIAL CARE HOME,18/12/2015,"1,680.69",73373-RESIDENTIAL & NURSING CARE PLACEMENTS,OP COMMISSIONING,Third Party Payments,Revenue
Walsall Council,http://opendatacommunities.org/id/metropolitan-district-council/walsall,WC63-469,31/12/2015,Social Care & Inclusion,BESCOT LODGE RESIDENTIAL CARE HOME,18/12/2015,"1,680.69",73373-RESIDENTIAL & NURSING CARE PLACEMENTS,OP COMMISSIONING,Third Party Payments,Revenue
Walsall Council,http://opendatacommunities.org/id/metropolitan-district-council/walsall,WC63-470,31/12/2015,Social Care & Inclusion,BESCOT LODGE RESIDENTIAL CARE HOME,18/12/2015,"1,680.69",73373-RESIDENTIAL & NURSING CARE PLACEMENTS,OP COMMISSIONING,Third Party Payments,Revenue
Walsall Council,http://opendatacommunities.org/id/metropolitan-district-council/walsall,WC63-471,31/12/2015,Social Care & Inclusion,BESCOT LODGE RESIDENTIAL CARE HOME,15/12/2015,"1,736.71",73373-RESIDENTIAL & NURSING CARE PLACEMENTS,OP COMMISSIONING,Third Party Payments,Revenue
Walsall Council,http://opendatacommunities.org/id/metropolitan-district-council/walsall,WC63-472,31/12/2015,Social Care & Inclusion,BESCOT LODGE RESIDENTIAL CARE HOME,15/12/2015,"1,736.71",73373-RESIDENTIAL & NURSING CARE PLACEMENTS,MH COMMISSIONING,Third Party Payments,Revenue
Walsall Council,http://opendatacommunities.org/id/metropolitan-district-council/walsall,WC63-473,31/12/2015,Social Care & Inclusion,BESCOT LODGE RESIDENTIAL CARE HOME,18/12/2015,"1,736.71",73373-RESIDENTIAL & NURSING CARE PLACEMENTS,OP COMMISSIONING,Third Party Payments,Revenue
Walsall Council,http://opendatacommunities.org/id/metropolitan-district-council/walsall,WC63-474,31/12/2015,Social Care & Inclusion,BESCOT LODGE RESIDENTIAL CARE HOME,18/12/2015,"1,736.71",73373-RESIDENTIAL & NURSING CARE PLACEMENTS,OP COMMISSIONING,Third Party Payments,Revenue
Walsall Council,http://opendatacommunities.org/id/metropolitan-district-council/walsall,WC63-475,31/12/2015,Social Care & Inclusion,BESCOT LODGE RESIDENTIAL CARE HOME,18/12/2015,"1,736.71",73373-RESIDENTIAL & NURSING CARE PLACEMENTS,OP COMMISSIONING,Third Party Payments,Revenue
Walsall Council,http://opendatacommunities.org/id/metropolitan-district-council/walsall,WC63-476,31/12/2015,Social Care & Inclusion,BESCOT LODGE RESIDENTIAL CARE HOME,18/12/2015,"1,736.71",73373-RESIDENTIAL & NURSING CARE PLACEMENTS,OP COMMISSIONING,Third Party Payments,Revenue
Walsall Council,http://opendatacommunities.org/id/metropolitan-district-council/walsall,WC63-477,31/12/2015,Social Care & Inclusion,BESCOT LODGE RESIDENTIAL CARE HOME,18/12/2015,"1,736.71",73373-RESIDENTIAL & NURSING CARE PLACEMENTS,OP COMMISSIONING,Third Party Payments,Revenue
Walsall Council,http://opendatacommunities.org/id/metropolitan-district-council/walsall,WC63-478,31/12/2015,Social Care & Inclusion,BESCOT LODGE RESIDENTIAL CARE HOME,18/12/2015,"1,736.71",73373-RESIDENTIAL & NURSING CARE PLACEMENTS,MH COMMISSIONING,Third Party Payments,Revenue
Walsall Council,http://opendatacommunities.org/id/metropolitan-district-council/walsall,WC63-479,31/12/2015,Social Care & Inclusion,BESCOT LODGE RESIDENTIAL CARE HOME,15/12/2015,"1,755.35",73373-RESIDENTIAL & NURSING CARE PLACEMENTS,OP COMMISSIONING,Third Party Payments,Revenue
Walsall Council,http://opendatacommunities.org/id/metropolitan-district-council/walsall,WC63-480,31/12/2015,Social Care & Inclusion,BESWICK HOUSE SUPPORTED ACCOMMODATION LTD,16/12/2015,"15,045.79",73365-BLOCK GROSS-SUPPORTING PEOPLE,EXTERNAL SP,Third Party Payments,Revenue
Walsall Council,http://opendatacommunities.org/id/metropolitan-district-council/walsall,WC63-481,31/12/2015,Social Care & Inclusion,BETHPHAGE.,10/12/2015,650.00,73374-SUPPORTED & OTHER ACCOMMODATION,LD COMMISSIONING,Third Party Payments,Revenue
Walsall Council,http://opendatacommunities.org/id/metropolitan-district-council/walsall,WC63-482,31/12/2015,Social Care & Inclusion,BETHPHAGE.,10/12/2015,"1,439.24",73374-SUPPORTED & OTHER ACCOMMODATION,LD COMMISSIONING,Third Party Payments,Revenue
Walsall Council,http://opendatacommunities.org/id/metropolitan-district-council/walsall,WC63-483,31/12/2015,Social Care & Inclusion,BETHPHAGE.,10/12/2015,"1,467.46",73374-SUPPORTED & OTHER ACCOMMODATION,LD COMMISSIONING,Third Party Payments,Revenue
Walsall Council,http://opendatacommunities.org/id/metropolitan-district-council/walsall,WC63-484,31/12/2015,Social Care & Inclusion,BETHPHAGE.,10/12/2015,"1,768.00",73374-SUPPORTED & OTHER ACCOMMODATION,LD COMMISSIONING,Third Party Payments,Revenue
Walsall Council,http://opendatacommunities.org/id/metropolitan-district-council/walsall,WC63-485,31/12/2015,Social Care & Inclusion,BETHPHAGE.,10/12/2015,"3,831.92",73374-SUPPORTED & OTHER ACCOMMODATION,LD COMMISSIONING,Third Party Payments,Revenue
Walsall Council,http://opendatacommunities.org/id/metropolitan-district-council/walsall,WC63-486,31/12/2015,Social Care & Inclusion,REDACTED,08/12/2015,"1,186.90",76422-DIRECT PAYMENTS TO SOCIAL SERVICES CLIENTS,MH COMMISSIONING,Transfer Payments,Revenue
Walsall Council,http://opendatacommunities.org/id/metropolitan-district-council/walsall,WC63-487,31/12/2015,Social Care & Inclusion,REDACTED,08/12/2015,"2,480.88",76422-DIRECT PAYMENTS TO SOCIAL SERVICES CLIENTS,OP COMMISSIONING,Transfer Payments,Revenue
Walsall Council,http://opendatacommunities.org/id/metropolitan-district-council/walsall,WC63-488,31/12/2015,Change and Governance,BFA SAFETY TRAINING,17/12/2015,495.00,30030-EXTERNAL TRAINING,HEALTH & SAFETY (TRADED),Employees,Revenue
Walsall Council,http://opendatacommunities.org/id/metropolitan-district-council/walsall,WC63-489,31/12/2015,Economy & Environment,BIFFA WASTE SERVICES LTD,02/12/2015,368.85,73005-LANDFILL PTYS-PRIV CONTRACTOR FEES,WASTE DISPOSAL - RESIDUAL,Third Party Payments,Revenue
Walsall Council,http://opendatacommunities.org/id/metropolitan-district-council/walsall,WC63-490,31/12/2015,Economy & Environment,BIFFA WASTE SERVICES LTD,07/12/2015,544.81,73005-LANDFILL PTYS-PRIV CONTRACTOR FEES,WASTE DISPOSAL - RESIDUAL,Third Party Payments,Revenue
Walsall Council,http://opendatacommunities.org/id/metropolitan-district-council/walsall,WC63-491,31/12/2015,Economy & Environment,BIFFA WASTE SERVICES LTD,02/12/2015,815.50,73005-LANDFILL PTYS-PRIV CONTRACTOR FEES,WASTE DISPOSAL - RESIDUAL,Third Party Payments,Revenue
Walsall Council,http://opendatacommunities.org/id/metropolitan-district-council/walsall,WC63-492,31/12/2015,Economy & Environment,BIFFA WASTE SERVICES LTD,02/12/2015,981.94,73005-LANDFILL PTYS-PRIV CONTRACTOR FEES,WASTE DISPOSAL - RESIDUAL,Third Party Payments,Revenue
Walsall Council,http://opendatacommunities.org/id/metropolitan-district-council/walsall,WC63-493,31/12/2015,Economy & Environment,BIFFA WASTE SERVICES LTD,22/12/2015,"1,218.23",73005-LANDFILL PTYS-PRIV CONTRACTOR FEES,WASTE DISPOSAL - RESIDUAL,Third Party Payments,Revenue
Walsall Council,http://opendatacommunities.org/id/metropolitan-district-council/walsall,WC63-494,31/12/2015,Economy & Environment,BIFFA WASTE SERVICES LTD,22/12/2015,"1,314.79",73005-LANDFILL PTYS-PRIV CONTRACTOR FEES,WASTE DISPOSAL - RESIDUAL,Third Party Payments,Revenue
Walsall Council,http://opendatacommunities.org/id/metropolitan-district-council/walsall,WC63-495,31/12/2015,Economy & Environment,BIFFA WASTE SERVICES LTD,02/12/2015,"2,302.89",73039-LANDFILL TAX-PRIV CONTRACTOR FEES,WASTE DISPOSAL - RESIDUAL,Third Party Payments,Revenue
Walsall Council,http://opendatacommunities.org/id/metropolitan-district-council/walsall,WC63-496,31/12/2015,Economy & Environment,BIFFA WASTE SERVICES LTD,07/12/2015,"3,401.47",73039-LANDFILL TAX-PRIV CONTRACTOR FEES,WASTE DISPOSAL - RESIDUAL,Third Party Payments,Revenue
Walsall Council,http://opendatacommunities.org/id/metropolitan-district-council/walsall,WC63-497,31/12/2015,Economy & Environment,BIFFA WASTE SERVICES LTD,02/12/2015,"5,091.46",73039-LANDFILL TAX-PRIV CONTRACTOR FEES,WASTE DISPOSAL - RESIDUAL,Third Party Payments,Revenue
Walsall Council,http://opendatacommunities.org/id/metropolitan-district-council/walsall,WC63-498,31/12/2015,Economy & Environment,BIFFA WASTE SERVICES LTD,02/12/2015,"6,130.56",73039-LANDFILL TAX-PRIV CONTRACTOR FEES,WASTE DISPOSAL - RESIDUAL,Third Party Payments,Revenue
Walsall Council,http://opendatacommunities.org/id/metropolitan-district-council/walsall,WC63-499,31/12/2015,Economy & Environment,BIFFA WASTE SERVICES LTD,22/12/2015,"7,605.80",73039-LANDFILL TAX-PRIV CONTRACTOR FEES,WASTE DISPOSAL - RESIDUAL,Third Party Payments,Revenue
Walsall Council,http://opendatacommunities.org/id/metropolitan-district-council/walsall,WC63-500,31/12/2015,Economy & Environment,BIFFA WASTE SERVICES LTD,22/12/2015,"8,208.80",73039-LANDFILL TAX-PRIV CONTRACTOR FEES,WASTE DISPOSAL - RESIDUAL,Third Party Payments,Revenue
Walsall Council,http://opendatacommunities.org/id/metropolitan-district-council/walsall,WC63-501,31/12/2015,Childrens,REDACTED,08/12/2015,609.65,76422-DIRECT PAYMENTS TO SOCIAL SERVICES CLIENTS,FAMILY SUPPORT - DIRECT PAYMENTS,Transfer Payments,Revenue
Walsall Council,http://opendatacommunities.org/id/metropolitan-district-council/walsall,WC63-502,31/12/2015,Childrens,REDACTED,08/12/2015,671.50,76422-DIRECT PAYMENTS TO SOCIAL SERVICES CLIENTS,FAMILY SUPPORT - DIRECT PAYMENTS,Transfer Payments,Revenue
Walsall Council,http://opendatacommunities.org/id/metropolitan-district-council/walsall,WC63-503,31/12/2015,Childrens,BIRCHILLS C OF E COMMUNITY ACADEMY,16/12/2015,"8,499.84",66505-OTHER-GRANTS TO OTHER ORGS,EARLY YEARS - 3 YR OLDS,Third Party Payments,Revenue
Walsall Council,http://opendatacommunities.org/id/metropolitan-district-council/walsall,WC63-504,31/12/2015,Change and Governance,BIRMINGHAM CITY COUNCIL,02/12/2015,"3,000.00",63000-PROFESSIONAL FEES AND SERVICES,CORPORATE EXPENSES,Supplies & Services,Revenue
Walsall Council,http://opendatacommunities.org/id/metropolitan-district-council/walsall,WC63-505,31/12/2015,Childrens,BIRMINGHAM CITY COUNCIL,11/12/2015,"4,298.46",66502-TOP UP FUNDING -GRANTS TO SCHOOLS,INDEPENDENT PROVIDERS - SPECIAL & AP,Third Party Payments,Revenue
Walsall Council,http://opendatacommunities.org/id/metropolitan-district-council/walsall,WC63-506,31/12/2015,Childrens,BIRMINGHAM CITY COUNCIL,11/12/2015,"6,026.31",66502-TOP UP FUNDING -GRANTS TO SCHOOLS,INDEPENDENT PROVIDERS - SPECIAL & AP,Third Party Payments,Revenue
Walsall Council,http://opendatacommunities.org/id/metropolitan-district-council/walsall,WC63-507,31/12/2015,Childrens,BIRMINGHAM CITY COUNCIL,11/12/2015,"6,026.31",66502-TOP UP FUNDING -GRANTS TO SCHOOLS,INDEPENDENT PROVIDERS - SPECIAL & AP,Third Party Payments,Revenue
Walsall Council,http://opendatacommunities.org/id/metropolitan-district-council/walsall,WC63-508,31/12/2015,Childrens,BIRMINGHAM CITY COUNCIL,11/12/2015,"6,026.31",66502-TOP UP FUNDING -GRANTS TO SCHOOLS,INDEPENDENT PROVIDERS - SPECIAL & AP,Third Party Payments,Revenue
Walsall Council,http://opendatacommunities.org/id/metropolitan-district-council/walsall,WC63-509,31/12/2015,Childrens,BIRMINGHAM CITY COUNCIL,11/12/2015,"8,001.23",66502-TOP UP FUNDING -GRANTS TO SCHOOLS,INDEPENDENT PROVIDERS - SPECIAL & AP,Third Party Payments,Revenue
Walsall Council,http://opendatacommunities.org/id/metropolitan-district-council/walsall,WC63-510,31/12/2015,Economy & Environment,BIRMINGHAM WOMENS NHS FOUNDATION TRUST,08/12/2015,850.00,74000-OTHER AGENCY FEES,CORONERS SERVICE,Third Party Payments,Revenue
Walsall Council,http://opendatacommunities.org/id/metropolitan-district-council/walsall,WC63-511,31/12/2015,Economy & Environment,BLACK COUNTRY CONSORTIUM LIMITED,18/12/2015,982.14,63102-CONSULTANTS FEES - CORPORATE,ERDF-AUTHORITY PARTNERS/TECHNICAL ASSISTANCE PROGRAMME,Supplies & Services,Revenue
Walsall Council,http://opendatacommunities.org/id/metropolitan-district-council/walsall,WC63-512,31/12/2015,Economy & Environment,BLACK COUNTRY CONSORTIUM LIMITED,08/12/2015,"4,484.43",63000-PROFESSIONAL FEES AND SERVICES,GRANTS-BLACK COUNTRY INVEST TEAM,Supplies & Services,Revenue
Walsall Council,http://opendatacommunities.org/id/metropolitan-district-council/walsall,WC63-513,31/12/2015,Economy & Environment,BLACK COUNTRY CONSORTIUM LIMITED,10/12/2015,"11,916.00",01006-SITE WORKS MAIN CONTRACTORS,CFR 1106 TRANSPORT DELIVERY EXCELLENCE GRANT,Capital,Capital
Walsall Council,http://opendatacommunities.org/id/metropolitan-district-council/walsall,WC63-514,31/12/2015,Economy & Environment,BLACK COUNTRY CONSORTIUM LIMITED,21/12/2015,"39,960.96",66500-GRANTS TO OTHER ORGS,LEP- HESELTINE FUNDING,Third Party Payments,Revenue
Walsall Council,http://opendatacommunities.org/id/metropolitan-district-council/walsall,WC63-515,31/12/2015,Economy & Environment,BLACK COUNTRY CONSORTIUM LIMITED,21/12/2015,"43,354.79",66500-GRANTS TO OTHER ORGS,LEP CORE FUNDING,Third Party Payments,Revenue
Walsall Council,http://opendatacommunities.org/id/metropolitan-district-council/walsall,WC63-516,31/12/2015,Social Care & Inclusion,BLACK COUNTRY PARTNERSHIP NHS,10/12/2015,"12,750.00",73375-IN PATIENT BEDS,LD COMMISSIONING,Third Party Payments,Revenue
Walsall Council,http://opendatacommunities.org/id/metropolitan-district-council/walsall,WC63-517,31/12/2015,Social Care & Inclusion,BLACK COUNTRY PARTNERSHIP NHS,15/12/2015,"52,800.00",73375-IN PATIENT BEDS,LD COMMISSIONING,Third Party Payments,Revenue
Walsall Council,http://opendatacommunities.org/id/metropolitan-district-council/walsall,WC63-518,31/12/2015,Social Care & Inclusion,BLACK COUNTRY PARTNERSHIP NHS,21/12/2015,"264,038.00",71007-CONTRIBUTION TO PCT,BCPFT,Third Party Payments,Revenue
Walsall Council,http://opendatacommunities.org/id/metropolitan-district-council/walsall,WC63-519,31/12/2015,Childrens,BLAKENALL HEATH JMI SCHOOL,07/12/2015,"88,933.93",77300-ISB-FORMULA ALLOCATION,BLAKENALL HEATH JUNIOR SCHOOL,Transfer Payments,Revenue
Walsall Council,http://opendatacommunities.org/id/metropolitan-district-council/walsall,WC63-520,31/12/2015,Childrens,BLOXWICH ACADEMY,16/12/2015,"9,652.30",66505-OTHER-GRANTS TO OTHER ORGS,EARLY YEARS - 3 YR OLDS,Third Party Payments,Revenue
Walsall Council,http://opendatacommunities.org/id/metropolitan-district-council/walsall,WC63-521,31/12/2015,Childrens,BLOXWICH COMMUNITY PARTNERSHIP.,17/12/2015,258.33,63128-HIRE OF ROOM-SERVICES-FEES,FAMILY PLACEMENTS,Supplies & Services,Revenue
Walsall Council,http://opendatacommunities.org/id/metropolitan-district-council/walsall,WC63-522,31/12/2015,Social Care & Inclusion,BLOXWICH COMMUNITY PARTNERSHIP.,15/12/2015,360.00,73374-SUPPORTED & OTHER ACCOMMODATION,MH COMMISSIONING,Third Party Payments,Revenue
Walsall Council,http://opendatacommunities.org/id/metropolitan-district-council/walsall,WC63-523,31/12/2015,Childrens,BLOXWICH RADIO TAXIS,21/12/2015,600.00,52000-WITH DRIVER-HIRE OF VEHICLES,SCHOOL TRANSPORT,Transport,Revenue
Walsall Council,http://opendatacommunities.org/id/metropolitan-district-council/walsall,WC63-524,31/12/2015,Childrens,BLOXWICH RADIO TAXIS,15/12/2015,"1,200.00",52000-WITH DRIVER-HIRE OF VEHICLES,SCHOOL TRANSPORT,Transport,Revenue
Walsall Council,http://opendatacommunities.org/id/metropolitan-district-council/walsall,WC63-525,31/12/2015,Childrens,BLOXWICH RADIO TAXIS,21/12/2015,"1,200.00",52000-WITH DRIVER-HIRE OF VEHICLES,SCHOOL TRANSPORT,Transport,Revenue
Walsall Council,http://opendatacommunities.org/id/metropolitan-district-council/walsall,WC63-526,31/12/2015,Childrens,BLUE GIRAFFE CHILDCARE,04/12/2015,"1,413.70",66505-OTHER-GRANTS TO OTHER ORGS,EARLY YEARS - 3 YR OLDS,Third Party Payments,Revenue
Walsall Council,http://opendatacommunities.org/id/metropolitan-district-council/walsall,WC63-527,31/12/2015,Childrens,BLUE GIRAFFE CHILDCARE,14/12/2015,"3,968.24",66505-OTHER-GRANTS TO OTHER ORGS,EARLY YEARS - 2 YR OLDS,Third Party Payments,Revenue
Walsall Council,http://opendatacommunities.org/id/metropolitan-district-council/walsall,WC63-528,31/12/2015,Economy & Environment,BOC LTD,10/12/2015,265.95,60514-MATERIALS TO STORES,FLEET PARTS STOCK ACCOUNT,Supplies & Services,Revenue
Walsall Council,http://opendatacommunities.org/id/metropolitan-district-council/walsall,WC63-529,31/12/2015,Economy & Environment,BOC LTD,07/12/2015,373.25,60500-GENERAL MATERIALS,INFRASTRUCTURE MAINTENANCE,Supplies & Services,Revenue
Walsall Council,http://opendatacommunities.org/id/metropolitan-district-council/walsall,WC63-530,31/12/2015,Social Care & Inclusion,BOLDMERE COURT CARE HOME,01/12/2015,"1,636.71",73373-RESIDENTIAL & NURSING CARE PLACEMENTS,OP COMMISSIONING,Third Party Payments,Revenue
Walsall Council,http://opendatacommunities.org/id/metropolitan-district-council/walsall,WC63-531,31/12/2015,Social Care & Inclusion,BOLDMERE COURT CARE HOME,01/12/2015,"1,636.71",73373-RESIDENTIAL & NURSING CARE PLACEMENTS,OP COMMISSIONING,Third Party Payments,Revenue
Walsall Council,http://opendatacommunities.org/id/metropolitan-district-council/walsall,WC63-532,31/12/2015,Social Care & Inclusion,BOLDMERE COURT CARE HOME,15/12/2015,"1,636.72",73373-RESIDENTIAL & NURSING CARE PLACEMENTS,OP COMMISSIONING,Third Party Payments,Revenue
Walsall Council,http://opendatacommunities.org/id/metropolitan-district-council/walsall,WC63-533,31/12/2015,Social Care & Inclusion,BOLDMERE COURT CARE HOME,15/12/2015,"1,691.27",73373-RESIDENTIAL & NURSING CARE PLACEMENTS,OP COMMISSIONING,Third Party Payments,Revenue
Walsall Council,http://opendatacommunities.org/id/metropolitan-district-council/walsall,WC63-534,31/12/2015,Social Care & Inclusion,BOLDMERE COURT CARE HOME,15/12/2015,"1,691.27",73373-RESIDENTIAL & NURSING CARE PLACEMENTS,OP COMMISSIONING,Third Party Payments,Revenue
Walsall Council,http://opendatacommunities.org/id/metropolitan-district-council/walsall,WC63-535,31/12/2015,Social Care & Inclusion,BOLDMERE COURT CARE HOME,15/12/2015,"1,691.27",73373-RESIDENTIAL & NURSING CARE PLACEMENTS,OP COMMISSIONING,Third Party Payments,Revenue
Walsall Council,http://opendatacommunities.org/id/metropolitan-district-council/walsall,WC63-536,31/12/2015,Social Care & Inclusion,BOLDMERE COURT CARE HOME,15/12/2015,"1,691.27",73373-RESIDENTIAL & NURSING CARE PLACEMENTS,OP COMMISSIONING,Third Party Payments,Revenue
Walsall Council,http://opendatacommunities.org/id/metropolitan-district-council/walsall,WC63-537,31/12/2015,Social Care & Inclusion,BONEHILL LODGE (OAKTREES HEALTHCARE LTD),10/12/2015,"3,305.35",73373-RESIDENTIAL & NURSING CARE PLACEMENTS,OP COMMISSIONING,Third Party Payments,Revenue
Walsall Council,http://opendatacommunities.org/id/metropolitan-district-council/walsall,WC63-538,31/12/2015,Economy & Environment,BONINGALE NURSERIES,11/12/2015,520.89,60500-GENERAL MATERIALS,GROUNDS,Supplies & Services,Revenue
Walsall Council,http://opendatacommunities.org/id/metropolitan-district-council/walsall,WC63-539,31/12/2015,Economy & Environment,BORN TO PERFORM,02/12/2015,300.00,62515-MISCELLANEOUS SUPPLIES,WILLENHALL DISTRICT CENTRE,Supplies & Services,Revenue
Walsall Council,http://opendatacommunities.org/id/metropolitan-district-council/walsall,WC63-540,31/12/2015,Economy & Environment,BORN TO PERFORM,22/12/2015,390.00,62523-EVENTS,WALSALL TOWN CENTRE,Supplies & Services,Revenue
Walsall Council,http://opendatacommunities.org/id/metropolitan-district-council/walsall,WC63-541,31/12/2015,Economy & Environment,BORN TO PERFORM,18/12/2015,450.00,62515-MISCELLANEOUS SUPPLIES,WILLENHALL DISTRICT CENTRE,Supplies & Services,Revenue
Walsall Council,http://opendatacommunities.org/id/metropolitan-district-council/walsall,WC63-542,31/12/2015,Childrens,BOULTON TRAVEL LIMITED,04/12/2015,"1,708.00",52000-WITH DRIVER-HIRE OF VEHICLES,SCHOOL TRANSPORT,Transport,Revenue
Walsall Council,http://opendatacommunities.org/id/metropolitan-district-council/walsall,WC63-543,31/12/2015,Childrens,BOULTON TRAVEL LIMITED,04/12/2015,"1,921.00",52000-WITH DRIVER-HIRE OF VEHICLES,SCHOOL TRANSPORT,Transport,Revenue
Walsall Council,http://opendatacommunities.org/id/metropolitan-district-council/walsall,WC63-544,31/12/2015,Childrens,BOULTON TRAVEL LIMITED,14/12/2015,"2,373.00",52000-WITH DRIVER-HIRE OF VEHICLES,SCHOOL TRANSPORT,Transport,Revenue
Walsall Council,http://opendatacommunities.org/id/metropolitan-district-council/walsall,WC63-545,31/12/2015,Childrens,BOULTON TRAVEL LIMITED,14/12/2015,"2,440.00",52000-WITH DRIVER-HIRE OF VEHICLES,SCHOOL TRANSPORT,Transport,Revenue
Walsall Council,http://opendatacommunities.org/id/metropolitan-district-council/walsall,WC63-546,31/12/2015,Social Care & Inclusion,BOWDEN DERRA PARK,15/12/2015,"10,502.76",73373-RESIDENTIAL & NURSING CARE PLACEMENTS,LD COMMISSIONING,Third Party Payments,Revenue
Walsall Council,http://opendatacommunities.org/id/metropolitan-district-council/walsall,WC63-547,31/12/2015,Change and Governance,BPP PROFESSIONAL EDUCATION,17/12/2015,720.84,30030-EXTERNAL TRAINING,FINANCE,Employees,Revenue
Walsall Council,http://opendatacommunities.org/id/metropolitan-district-council/walsall,WC63-548,31/12/2015,Childrens,BRADLEY ENVIRONMENTAL,03/12/2015,300.00,01006-SITE WORKS MAIN CONTRACTORS,CFR 1017 OLD HALL SPECIAL SCHOOL HEATING & DISTRIBUTION,Capital,Capital
Walsall Council,http://opendatacommunities.org/id/metropolitan-district-council/walsall,WC63-549,31/12/2015,Economy & Environment,BRADVALE LTD T/A INSPIRE HEALTHCARE SERVICES,08/12/2015,486.88,60520-HEALTH & SAFETY-MATERIALS,ARBORETUM,Supplies & Services,Revenue
Walsall Council,http://opendatacommunities.org/id/metropolitan-district-council/walsall,WC63-550,31/12/2015,Economy & Environment,BRADVALE LTD T/A INSPIRE HEALTHCARE SERVICES,08/12/2015,529.13,60520-HEALTH & SAFETY-MATERIALS,ARBORETUM,Supplies & Services,Revenue
Walsall Council,http://opendatacommunities.org/id/metropolitan-district-council/walsall,WC63-551,31/12/2015,Economy & Environment,BRADVALE LTD T/A INSPIRE HEALTHCARE SERVICES,08/12/2015,529.13,60520-HEALTH & SAFETY-MATERIALS,ARBORETUM,Supplies & Services,Revenue
Walsall Council,http://opendatacommunities.org/id/metropolitan-district-council/walsall,WC63-552,31/12/2015,Change and Governance,BRAMBLE HUB LIMITED,03/12/2015,"15,752.00",01002-PROJECT FEES,CFR 637 FINANCE DIRECT PROGRAMME,Capital,Capital
Walsall Council,http://opendatacommunities.org/id/metropolitan-district-council/walsall,WC63-553,31/12/2015,Change and Governance,BRELMAYNE LTD,17/12/2015,34.47,60008-MAINTENANCE-FURNITURE & EQUIPMENT,CA COOPER JORDAN CE PRIMARY SCHOOL,Supplies & Services,Revenue
Walsall Council,http://opendatacommunities.org/id/metropolitan-district-council/walsall,WC63-554,31/12/2015,Change and Governance,BRELMAYNE LTD,17/12/2015,41.88,60008-MAINTENANCE-FURNITURE & EQUIPMENT,CA LEAMORE PRIMARY SCHOOL,Supplies & Services,Revenue
Walsall Council,http://opendatacommunities.org/id/metropolitan-district-council/walsall,WC63-555,31/12/2015,Change and Governance,BRELMAYNE LTD,17/12/2015,54.76,60008-MAINTENANCE-FURNITURE & EQUIPMENT,CA BROWNHILLS WEST PRIMARY SCHOOL,Supplies & Services,Revenue
Walsall Council,http://opendatacommunities.org/id/metropolitan-district-council/walsall,WC63-556,31/12/2015,Change and Governance,BRELMAYNE LTD,17/12/2015,77.96,60008-MAINTENANCE-FURNITURE & EQUIPMENT,CA LEIGHSWOOD PRIMARY SCHOOL,Supplies & Services,Revenue
Walsall Council,http://opendatacommunities.org/id/metropolitan-district-council/walsall,WC63-557,31/12/2015,Change and Governance,BRELMAYNE LTD,17/12/2015,78.28,60008-MAINTENANCE-FURNITURE & EQUIPMENT,CA WATLING STREET PRIMARY SCHOOL,Supplies & Services,Revenue
Walsall Council,http://opendatacommunities.org/id/metropolitan-district-council/walsall,WC63-558,31/12/2015,Change and Governance,BRELMAYNE LTD,17/12/2015,86.54,60008-MAINTENANCE-FURNITURE & EQUIPMENT,CA BUSILL JONES PRIMARY SCHOOL,Supplies & Services,Revenue
Walsall Council,http://opendatacommunities.org/id/metropolitan-district-council/walsall,WC63-559,31/12/2015,Change and Governance,BRELMAYNE LTD,17/12/2015,87.30,60008-MAINTENANCE-FURNITURE & EQUIPMENT,CA BEACON PRIMARY SCHOOL,Supplies & Services,Revenue
Walsall Council,http://opendatacommunities.org/id/metropolitan-district-council/walsall,WC63-560,31/12/2015,Change and Governance,BRELMAYNE LTD,17/12/2015,103.41,60008-MAINTENANCE-FURNITURE & EQUIPMENT,CA ELMWOOD SPECIAL SCHOOL,Supplies & Services,Revenue
Walsall Council,http://opendatacommunities.org/id/metropolitan-district-council/walsall,WC63-561,31/12/2015,Change and Governance,BRELMAYNE LTD,17/12/2015,115.75,60008-MAINTENANCE-FURNITURE & EQUIPMENT,CA RUSHALL JMI SCHOOL,Supplies & Services,Revenue
Walsall Council,http://opendatacommunities.org/id/metropolitan-district-council/walsall,WC63-562,31/12/2015,Change and Governance,BRELMAYNE LTD,17/12/2015,162.87,60008-MAINTENANCE-FURNITURE & EQUIPMENT,CA CALDMORE COMMUNITY PRIMARY SCHOOL,Supplies & Services,Revenue
Walsall Council,http://opendatacommunities.org/id/metropolitan-district-council/walsall,WC63-563,31/12/2015,Change and Governance,BRELMAYNE LTD,17/12/2015,186.34,60008-MAINTENANCE-FURNITURE & EQUIPMENT,CA RADLEYS PRIMARY SCHOOL,Supplies & Services,Revenue
Walsall Council,http://opendatacommunities.org/id/metropolitan-district-council/walsall,WC63-564,31/12/2015,Change and Governance,BRELMAYNE LTD,17/12/2015,217.56,60008-MAINTENANCE-FURNITURE & EQUIPMENT,CA LINDENS PRIMARY SCHOOL,Supplies & Services,Revenue
Walsall Council,http://opendatacommunities.org/id/metropolitan-district-council/walsall,WC63-565,31/12/2015,Change and Governance,BRELMAYNE LTD,17/12/2015,256.55,60008-MAINTENANCE-FURNITURE & EQUIPMENT,CA WALSALL WOOD PRIMARY SCHOOL,Supplies & Services,Revenue
Walsall Council,http://opendatacommunities.org/id/metropolitan-district-council/walsall,WC63-566,31/12/2015,Change and Governance,BRELMAYNE LTD,17/12/2015,261.81,60008-MAINTENANCE-FURNITURE & EQUIPMENT,CA LITTLE BLOXWICH CE PRIMARY SCHOOL,Supplies & Services,Revenue
Walsall Council,http://opendatacommunities.org/id/metropolitan-district-council/walsall,WC63-567,31/12/2015,Change and Governance,BRELMAYNE LTD,17/12/2015,286.05,60008-MAINTENANCE-FURNITURE & EQUIPMENT,CA BIRCHILLS CE PRIMARY COMMUNITY SCHOOL,Supplies & Services,Revenue
Walsall Council,http://opendatacommunities.org/id/metropolitan-district-council/walsall,WC63-568,31/12/2015,Change and Governance,BRELMAYNE LTD,17/12/2015,292.38,60008-MAINTENANCE-FURNITURE & EQUIPMENT,CA ST JOHNS C.E. PRIMARY SCHOOL,Supplies & Services,Revenue
Walsall Council,http://opendatacommunities.org/id/metropolitan-district-council/walsall,WC63-569,31/12/2015,Change and Governance,BRELMAYNE LTD,17/12/2015,583.18,60008-MAINTENANCE-FURNITURE & EQUIPMENT,CA JANE LANE SPECIAL SCHOOL,Supplies & Services,Revenue
Walsall Council,http://opendatacommunities.org/id/metropolitan-district-council/walsall,WC63-570,31/12/2015,Change and Governance,BRELMAYNE LTD,17/12/2015,729.59,60008-MAINTENANCE-FURNITURE & EQUIPMENT,CA ST MICHAELS C.E. PRIMARY SCHOOL,Supplies & Services,Revenue
Walsall Council,http://opendatacommunities.org/id/metropolitan-district-council/walsall,WC63-571,31/12/2015,Change and Governance,BRELMAYNE LTD,18/12/2015,874.18,"40000-REPAIRS,ALTERATIONS & MAINTENANCE-PREM",CA BUSILL JONES PRIMARY SCHOOL,Premises,Revenue
Walsall Council,http://opendatacommunities.org/id/metropolitan-district-council/walsall,WC63-572,31/12/2015,Social Care & Inclusion,REDACTED,08/12/2015,550.00,76422-DIRECT PAYMENTS TO SOCIAL SERVICES CLIENTS,LD COMMISSIONING,Transfer Payments,Revenue
Walsall Council,http://opendatacommunities.org/id/metropolitan-district-council/walsall,WC63-573,31/12/2015,Social Care & Inclusion,REDACTED,08/12/2015,270.00,76422-DIRECT PAYMENTS TO SOCIAL SERVICES CLIENTS,OP COMMISSIONING,Transfer Payments,Revenue
Walsall Council,http://opendatacommunities.org/id/metropolitan-district-council/walsall,WC63-574,31/12/2015,Social Care & Inclusion,REDACTED,08/12/2015,450.00,76422-DIRECT PAYMENTS TO SOCIAL SERVICES CLIENTS,CARERS SERVICES,Transfer Payments,Revenue
Walsall Council,http://opendatacommunities.org/id/metropolitan-district-council/walsall,WC63-575,31/12/2015,Social Care & Inclusion,REDACTED,08/12/2015,271.25,76422-DIRECT PAYMENTS TO SOCIAL SERVICES CLIENTS,OP COMMISSIONING,Transfer Payments,Revenue
Walsall Council,http://opendatacommunities.org/id/metropolitan-district-council/walsall,WC63-576,31/12/2015,Childrens,REDACTED,07/12/2015,"1,445.32",62515-MISCELLANEOUS SUPPLIES,INTERNAL FOSTER CARE PROVISION,Supplies & Services,Revenue
Walsall Council,http://opendatacommunities.org/id/metropolitan-district-council/walsall,WC63-577,31/12/2015,Childrens,REDACTED,07/12/2015,"1,627.30",74006-HOLIDAY/CHRISTMAS ALLOWANCE-FOSTER CARERS-OTH AGENCY PROVISION,INTERNAL FOSTER CARE PROVISION,Third Party Payments,Revenue
Walsall Council,http://opendatacommunities.org/id/metropolitan-district-council/walsall,WC63-578,31/12/2015,Social Care & Inclusion,REDACTED,08/12/2015,680.00,76422-DIRECT PAYMENTS TO SOCIAL SERVICES CLIENTS,OP COMMISSIONING,Transfer Payments,Revenue
Walsall Council,http://opendatacommunities.org/id/metropolitan-district-council/walsall,WC63-579,31/12/2015,Economy & Environment,BRENNTAG UK LIMITED,08/12/2015,711.68,50301-FUEL-TRANSPORT RUN COSTS,FUEL,Transport,Revenue
Walsall Council,http://opendatacommunities.org/id/metropolitan-district-council/walsall,WC63-580,31/12/2015,Social Care & Inclusion,REDACTED,02/12/2015,"2,935.24",73374-SUPPORTED & OTHER ACCOMMODATION,LD COMMISSIONING,Third Party Payments,Revenue
Walsall Council,http://opendatacommunities.org/id/metropolitan-district-council/walsall,WC63-581,31/12/2015,Social Care & Inclusion,REDACTED,08/12/2015,616.50,76422-DIRECT PAYMENTS TO SOCIAL SERVICES CLIENTS,LD COMMISSIONING,Transfer Payments,Revenue
Walsall Council,http://opendatacommunities.org/id/metropolitan-district-council/walsall,WC63-582,31/12/2015,Social Care & Inclusion,REDACTED,08/12/2015,"1,618.50",76422-DIRECT PAYMENTS TO SOCIAL SERVICES CLIENTS,OP COMMISSIONING,Transfer Payments,Revenue
Walsall Council,http://opendatacommunities.org/id/metropolitan-district-council/walsall,WC63-583,31/12/2015,Social Care & Inclusion,REDACTED,08/12/2015,871.25,76422-DIRECT PAYMENTS TO SOCIAL SERVICES CLIENTS,OP COMMISSIONING,Transfer Payments,Revenue
Walsall Council,http://opendatacommunities.org/id/metropolitan-district-council/walsall,WC63-584,31/12/2015,Social Care & Inclusion,BRIDGEWOOD HEALTH CARE LTD,08/12/2015,"5,513.72",73373-RESIDENTIAL & NURSING CARE PLACEMENTS,YADS COMMISSIONING,Third Party Payments,Revenue
Walsall Council,http://opendatacommunities.org/id/metropolitan-district-council/walsall,WC63-585,31/12/2015,Economy & Environment,BRIDLE SECURITY FENCING CONTRACTORS,02/12/2015,"2,825.00",01006-SITE WORKS MAIN CONTRACTORS,CFR 1054 ALLOTMENT IMPROVEMENT PROGRAMME,Capital,Capital
Walsall Council,http://opendatacommunities.org/id/metropolitan-district-council/walsall,WC63-586,31/12/2015,Childrens,BRIGHT HORIZONS (WISHING WILLOW),23/12/2015,435.07,63120-CRECHE FACILITIES-SERVICES-FEES,RECRUITMENT TEAM,Supplies & Services,Revenue
Walsall Council,http://opendatacommunities.org/id/metropolitan-district-council/walsall,WC63-587,31/12/2015,Economy & Environment,BRIGHT SPARK FIREWORKS LTD,15/12/2015,"24,500.00",62523-EVENTS,COMMUNITY LIAISON,Supplies & Services,Revenue
Walsall Council,http://opendatacommunities.org/id/metropolitan-district-council/walsall,WC63-588,31/12/2015,Childrens,BRITISH GAS BUSINESS,09/12/2015,319.45,42000-GAS-ENERGY COSTS,BIRCHILLS CHILDREN CENTRE,Premises,Revenue
Walsall Council,http://opendatacommunities.org/id/metropolitan-district-council/walsall,WC63-589,31/12/2015,Childrens,BRITISH GAS BUSINESS,10/12/2015,339.19,42000-GAS-ENERGY COSTS,BLAKENALL CHILDREN CENTRE,Premises,Revenue
Walsall Council,http://opendatacommunities.org/id/metropolitan-district-council/walsall,WC63-590,31/12/2015,Change and Governance,BRITISH GAS BUSINESS,11/12/2015,364.08,42000-GAS-ENERGY COSTS,CENTRALISED ENERGY,Premises,Revenue
Walsall Council,http://opendatacommunities.org/id/metropolitan-district-council/walsall,WC63-591,31/12/2015,Childrens,BRITISH GAS BUSINESS,18/12/2015,412.33,42000-GAS-ENERGY COSTS,CLUSTER 5 DARLASTON,Premises,Revenue
Walsall Council,http://opendatacommunities.org/id/metropolitan-district-council/walsall,WC63-592,31/12/2015,Change and Governance,BRITISH GAS BUSINESS,16/12/2015,"1,198.85",42000-GAS-ENERGY COSTS,CENTRALISED ENERGY,Premises,Revenue
Walsall Council,http://opendatacommunities.org/id/metropolitan-district-council/walsall,WC63-593,31/12/2015,Change and Governance,BRITISH GAS BUSINESS,11/12/2015,"3,487.34",42000-GAS-ENERGY COSTS,REDUNDANT BUILDINGS,Premises,Revenue
Walsall Council,http://opendatacommunities.org/id/metropolitan-district-council/walsall,WC63-594,31/12/2015,Childrens,BRITISH GAS BUSINESS,21/12/2015,"5,820.33",42000-GAS-ENERGY COSTS,PELSALL EDC,Premises,Revenue
Walsall Council,http://opendatacommunities.org/id/metropolitan-district-council/walsall,WC63-595,31/12/2015,Economy & Environment,BRITISH HGV TRAINING GROUP,03/12/2015,281.00,30030-EXTERNAL TRAINING,WASTE COLLECTIONS,Employees,Revenue
Walsall Council,http://opendatacommunities.org/id/metropolitan-district-council/walsall,WC63-596,31/12/2015,Economy & Environment,BRITISH TELECOMMUNICATIONS LTD,07/12/2015,"24,652.66",01009-SITE WORKS - OTHER CONTRACTORS,CFR 870 M6 JUNCTION 10 IMPROV SCHEME PROG,Capital,Capital
Walsall Council,http://opendatacommunities.org/id/metropolitan-district-council/walsall,WC63-597,31/12/2015,Childrens,BROADWAY TRAVEL CONNECTIONS,01/12/2015,625.00,52000-WITH DRIVER-HIRE OF VEHICLES,SCHOOL TRANSPORT,Transport,Revenue
Walsall Council,http://opendatacommunities.org/id/metropolitan-district-council/walsall,WC63-598,31/12/2015,Childrens,BROADWAY TRAVEL CONNECTIONS,07/12/2015,"1,250.00",52000-WITH DRIVER-HIRE OF VEHICLES,SCHOOL TRANSPORT,Transport,Revenue
Walsall Council,http://opendatacommunities.org/id/metropolitan-district-council/walsall,WC63-599,31/12/2015,Childrens,BROADWAY TRAVEL CONNECTIONS,16/12/2015,"1,250.00",52000-WITH DRIVER-HIRE OF VEHICLES,SCHOOL TRANSPORT,Transport,Revenue
Walsall Council,http://opendatacommunities.org/id/metropolitan-district-council/walsall,WC63-600,31/12/2015,Economy & Environment,BRONZE CRICKET CLUB.,01/12/2015,250.00,63000-PROFESSIONAL FEES AND SERVICES,INSPIRED GENERATIONS (CSAF),Supplies & Services,Revenue
Walsall Council,http://opendatacommunities.org/id/metropolitan-district-council/walsall,WC63-601,31/12/2015,Social Care & Inclusion,BROOK DESIGN HARDWARE LTD T/A BROOKVENT,15/12/2015,"11,273.67",60500-GENERAL MATERIALS,EMPLOYMENT LINKS TO WORK,Supplies & Services,Revenue
Walsall Council,http://opendatacommunities.org/id/metropolitan-district-council/walsall,WC63-602,31/12/2015,Holding Accounts,BROWNE JACOBSON SOLICITORS,22/12/2015,"2,965.80",67001-MISC INSURANCES - PAYMENT OF CLAIMS,PUBLIC LIABILITY,Supplies & Services,Revenue
Walsall Council,http://opendatacommunities.org/id/metropolitan-district-council/walsall,WC63-603,31/12/2015,Change and Governance,BROWNHILLS & OAK PARK COMMUNITY BOWLS CLUB,21/12/2015,"3,594.78",62515-MISCELLANEOUS SUPPLIES,AREA 2 - ALDRIDGE/STREETLY/PHEASEY,Supplies & Services,Revenue
Walsall Council,http://opendatacommunities.org/id/metropolitan-district-council/walsall,WC63-604,31/12/2015,Change and Governance,BROWNHILLS ASPHALT & TARMAC LIMITED,02/12/2015,730.00,"40000-REPAIRS,ALTERATIONS & MAINTENANCE-PREM",RECHARGEABLE - NON SCHOOLS MAINTENANCE,Premises,Revenue
Walsall Council,http://opendatacommunities.org/id/metropolitan-district-council/walsall,WC63-605,31/12/2015,Economy & Environment,BROWNHILLS ASPHALT & TARMAC LIMITED,18/12/2015,900.00,60500-GENERAL MATERIALS,INFRASTRUCTURE MAINTENANCE,Supplies & Services,Revenue
Walsall Council,http://opendatacommunities.org/id/metropolitan-district-council/walsall,WC63-606,31/12/2015,Economy & Environment,BROWNHILLS ASPHALT & TARMAC LIMITED,14/12/2015,"1,480.00",01006-SITE WORKS MAIN CONTRACTORS,CFR 731 WASTE INFRASTRUCTURE GRANT,Capital,Capital
Walsall Council,http://opendatacommunities.org/id/metropolitan-district-council/walsall,WC63-607,31/12/2015,Childrens,BROWNHILLS COMMUNITY ASSOCIATION,15/12/2015,"7,364.34",66505-OTHER-GRANTS TO OTHER ORGS,EARLY YEARS - 2 YR OLDS,Third Party Payments,Revenue
Walsall Council,http://opendatacommunities.org/id/metropolitan-district-council/walsall,WC63-608,31/12/2015,Childrens,BROWNHILLS COMMUNITY ASSOCIATION,04/12/2015,"9,032.10",66505-OTHER-GRANTS TO OTHER ORGS,EARLY YEARS - 3 YR OLDS,Third Party Payments,Revenue
Walsall Council,http://opendatacommunities.org/id/metropolitan-district-council/walsall,WC63-609,31/12/2015,Social Care & Inclusion,REDACTED,08/12/2015,"1,806.25",76422-DIRECT PAYMENTS TO SOCIAL SERVICES CLIENTS,LD COMMISSIONING,Transfer Payments,Revenue
Walsall Council,http://opendatacommunities.org/id/metropolitan-district-council/walsall,WC63-610,31/12/2015,Economy & Environment,REDACTED,14/12/2015,"2,081.25",63000-PROFESSIONAL FEES AND SERVICES,EXTL FUNDED CREATIVE PROJECT MANAGEMENT,Supplies & Services,Revenue
Walsall Council,http://opendatacommunities.org/id/metropolitan-district-council/walsall,WC63-611,31/12/2015,Social Care & Inclusion,REDACTED,08/12/2015,971.28,76422-DIRECT PAYMENTS TO SOCIAL SERVICES CLIENTS,OP COMMISSIONING,Transfer Payments,Revenue
Walsall Council,http://opendatacommunities.org/id/metropolitan-district-council/walsall,WC63-612,31/12/2015,Childrens,BT,03/12/2015,391.85,63602-COST OF RENTAL-TELEPHONES,CLUSTER 5 DARLASTON,Supplies & Services,Revenue
Walsall Council,http://opendatacommunities.org/id/metropolitan-district-council/walsall,WC63-613,31/12/2015,Change and Governance,BT PLC,11/12/2015,"1,120.00",63603-COST OF CALLS-TELEPHONES,PROCESSING,Supplies & Services,Revenue
Walsall Council,http://opendatacommunities.org/id/metropolitan-district-council/walsall,WC63-614,31/12/2015,Change and Governance,BT PLC,02/12/2015,"4,188.63",63601-COSTS (NOT INTERNAL RECHARGES)-TELEPHONES,CENTRAL COMMUNICATIONS RECHARGES,Supplies & Services,Revenue
Walsall Council,http://opendatacommunities.org/id/metropolitan-district-council/walsall,WC63-615,31/12/2015,Change and Governance,BT PLC,01/12/2015,"6,727.43",63601-COSTS (NOT INTERNAL RECHARGES)-TELEPHONES,CENTRAL COMMUNICATIONS RECHARGES,Supplies & Services,Revenue
Walsall Council,http://opendatacommunities.org/id/metropolitan-district-council/walsall,WC63-616,31/12/2015,Change and Governance,BT PLC,11/12/2015,"7,117.87",63601-COSTS (NOT INTERNAL RECHARGES)-TELEPHONES,CENTRAL COMMUNICATIONS RECHARGES,Supplies & Services,Revenue
Walsall Council,http://opendatacommunities.org/id/metropolitan-district-council/walsall,WC63-617,31/12/2015,Change and Governance,BT PLC,02/12/2015,"14,956.26",63601-COSTS (NOT INTERNAL RECHARGES)-TELEPHONES,CENTRAL COMMUNICATIONS RECHARGES,Supplies & Services,Revenue
Walsall Council,http://opendatacommunities.org/id/metropolitan-district-council/walsall,WC63-618,31/12/2015,Economy & Environment,BUCHANAN COMPUTING,02/12/2015,"2,976.00",73025-PROFESSIONAL SERVICES-PRIV CONTRACTOR & OTHER AGENCIES,PARKING SERVICES,Third Party Payments,Revenue
Walsall Council,http://opendatacommunities.org/id/metropolitan-district-council/walsall,WC63-619,31/12/2015,Economy & Environment,BUILT ENVIRONMENT HUB LIMITED,01/12/2015,420.00,63248-SURVEYS & PROF SERVICES-PAYMENT TO CONTRACTOR,BUILDING CONTROL REVENUE FUNDED,Supplies & Services,Revenue
Walsall Council,http://opendatacommunities.org/id/metropolitan-district-council/walsall,WC63-620,31/12/2015,Social Care & Inclusion,BUPA CARE HOMES (CFHCARE) LTD,15/12/2015,"1,490.80",73373-RESIDENTIAL & NURSING CARE PLACEMENTS,OP COMMISSIONING,Third Party Payments,Revenue
Walsall Council,http://opendatacommunities.org/id/metropolitan-district-council/walsall,WC63-621,31/12/2015,Social Care & Inclusion,BUPA CARE HOMES (CFHCARE) LTD,15/12/2015,"1,527.60",73373-RESIDENTIAL & NURSING CARE PLACEMENTS,OP COMMISSIONING,Third Party Payments,Revenue
Walsall Council,http://opendatacommunities.org/id/metropolitan-district-council/walsall,WC63-622,31/12/2015,Social Care & Inclusion,BUPA CARE HOMES (CFHCARE) LTD,15/12/2015,"1,533.16",73373-RESIDENTIAL & NURSING CARE PLACEMENTS,MH COMMISSIONING,Third Party Payments,Revenue
Walsall Council,http://opendatacommunities.org/id/metropolitan-district-council/walsall,WC63-623,31/12/2015,Social Care & Inclusion,BUPA CARE HOMES (CFHCARE) LTD,15/12/2015,"1,755.68",73373-RESIDENTIAL & NURSING CARE PLACEMENTS,MH COMMISSIONING,Third Party Payments,Revenue
Walsall Council,http://opendatacommunities.org/id/metropolitan-district-council/walsall,WC63-624,31/12/2015,Social Care & Inclusion,BUPA CARE HOMES (CFHCARE) LTD,15/12/2015,"3,129.80",73373-RESIDENTIAL & NURSING CARE PLACEMENTS,OP COMMISSIONING,Third Party Payments,Revenue
Walsall Council,http://opendatacommunities.org/id/metropolitan-district-council/walsall,WC63-625,31/12/2015,Social Care & Inclusion,BUSH HOME LTD,01/12/2015,479.97,73373-RESIDENTIAL & NURSING CARE PLACEMENTS,OP COMMISSIONING,Third Party Payments,Revenue
Walsall Council,http://opendatacommunities.org/id/metropolitan-district-council/walsall,WC63-626,31/12/2015,Social Care & Inclusion,BUSH HOME LTD,01/12/2015,"1,288.53",73373-RESIDENTIAL & NURSING CARE PLACEMENTS,OP COMMISSIONING,Third Party Payments,Revenue
Walsall Council,http://opendatacommunities.org/id/metropolitan-district-council/walsall,WC63-627,31/12/2015,Social Care & Inclusion,BUSH HOME LTD,01/12/2015,"1,490.96",73373-RESIDENTIAL & NURSING CARE PLACEMENTS,OP COMMISSIONING,Third Party Payments,Revenue
Walsall Council,http://opendatacommunities.org/id/metropolitan-district-council/walsall,WC63-628,31/12/2015,Social Care & Inclusion,BUSH HOME LTD,18/12/2015,"1,490.96",73373-RESIDENTIAL & NURSING CARE PLACEMENTS,OP COMMISSIONING,Third Party Payments,Revenue
Walsall Council,http://opendatacommunities.org/id/metropolitan-district-council/walsall,WC63-629,31/12/2015,Social Care & Inclusion,BUSH HOME LTD,01/12/2015,"1,493.24",73373-RESIDENTIAL & NURSING CARE PLACEMENTS,OP COMMISSIONING,Third Party Payments,Revenue
Walsall Council,http://opendatacommunities.org/id/metropolitan-district-council/walsall,WC63-630,31/12/2015,Social Care & Inclusion,BUSH HOME LTD,01/12/2015,"1,493.24",73373-RESIDENTIAL & NURSING CARE PLACEMENTS,OP COMMISSIONING,Third Party Payments,Revenue
Walsall Council,http://opendatacommunities.org/id/metropolitan-district-council/walsall,WC63-631,31/12/2015,Social Care & Inclusion,BUSH HOME LTD,01/12/2015,"1,493.24",73373-RESIDENTIAL & NURSING CARE PLACEMENTS,OP COMMISSIONING,Third Party Payments,Revenue
Walsall Council,http://opendatacommunities.org/id/metropolitan-district-council/walsall,WC63-632,31/12/2015,Social Care & Inclusion,BUSH HOME LTD,01/12/2015,"1,493.24",73373-RESIDENTIAL & NURSING CARE PLACEMENTS,OP COMMISSIONING,Third Party Payments,Revenue
Walsall Council,http://opendatacommunities.org/id/metropolitan-district-council/walsall,WC63-633,31/12/2015,Social Care & Inclusion,BUSH HOME LTD,01/12/2015,"1,493.24",73373-RESIDENTIAL & NURSING CARE PLACEMENTS,OP COMMISSIONING,Third Party Payments,Revenue
Walsall Council,http://opendatacommunities.org/id/metropolitan-district-council/walsall,WC63-634,31/12/2015,Social Care & Inclusion,BUSH HOME LTD,18/12/2015,"1,493.24",73373-RESIDENTIAL & NURSING CARE PLACEMENTS,OP COMMISSIONING,Third Party Payments,Revenue
Walsall Council,http://opendatacommunities.org/id/metropolitan-district-council/walsall,WC63-635,31/12/2015,Social Care & Inclusion,BUSH HOME LTD,18/12/2015,"1,493.24",73373-RESIDENTIAL & NURSING CARE PLACEMENTS,OP COMMISSIONING,Third Party Payments,Revenue
Walsall Council,http://opendatacommunities.org/id/metropolitan-district-council/walsall,WC63-636,31/12/2015,Social Care & Inclusion,BUSH HOME LTD,18/12/2015,"1,493.24",73373-RESIDENTIAL & NURSING CARE PLACEMENTS,OP COMMISSIONING,Third Party Payments,Revenue
Walsall Council,http://opendatacommunities.org/id/metropolitan-district-council/walsall,WC63-637,31/12/2015,Social Care & Inclusion,BUSH HOME LTD,18/12/2015,"1,493.24",73373-RESIDENTIAL & NURSING CARE PLACEMENTS,OP COMMISSIONING,Third Party Payments,Revenue
Walsall Council,http://opendatacommunities.org/id/metropolitan-district-council/walsall,WC63-638,31/12/2015,Social Care & Inclusion,BUSH HOME LTD,18/12/2015,"1,493.24",73373-RESIDENTIAL & NURSING CARE PLACEMENTS,OP COMMISSIONING,Third Party Payments,Revenue
Walsall Council,http://opendatacommunities.org/id/metropolitan-district-council/walsall,WC63-639,31/12/2015,Social Care & Inclusion,BUSH HOME LTD,01/12/2015,"1,568.64",73373-RESIDENTIAL & NURSING CARE PLACEMENTS,OP COMMISSIONING,Third Party Payments,Revenue
Walsall Council,http://opendatacommunities.org/id/metropolitan-district-council/walsall,WC63-640,31/12/2015,Social Care & Inclusion,BUSH HOME LTD,01/12/2015,"1,568.64",73373-RESIDENTIAL & NURSING CARE PLACEMENTS,OP COMMISSIONING,Third Party Payments,Revenue
Walsall Council,http://opendatacommunities.org/id/metropolitan-district-council/walsall,WC63-641,31/12/2015,Social Care & Inclusion,BUSH HOME LTD,01/12/2015,"1,568.64",73373-RESIDENTIAL & NURSING CARE PLACEMENTS,OP COMMISSIONING,Third Party Payments,Revenue
Walsall Council,http://opendatacommunities.org/id/metropolitan-district-council/walsall,WC63-642,31/12/2015,Social Care & Inclusion,BUSH HOME LTD,01/12/2015,"1,568.64",73373-RESIDENTIAL & NURSING CARE PLACEMENTS,OP COMMISSIONING,Third Party Payments,Revenue
Walsall Council,http://opendatacommunities.org/id/metropolitan-district-council/walsall,WC63-643,31/12/2015,Social Care & Inclusion,BUSH HOME LTD,01/12/2015,"1,568.64",73373-RESIDENTIAL & NURSING CARE PLACEMENTS,MH COMMISSIONING,Third Party Payments,Revenue
Walsall Council,http://opendatacommunities.org/id/metropolitan-district-council/walsall,WC63-644,31/12/2015,Social Care & Inclusion,BUSH HOME LTD,01/12/2015,"1,568.64",73373-RESIDENTIAL & NURSING CARE PLACEMENTS,MH COMMISSIONING,Third Party Payments,Revenue
Walsall Council,http://opendatacommunities.org/id/metropolitan-district-council/walsall,WC63-645,31/12/2015,Social Care & Inclusion,BUSH HOME LTD,01/12/2015,"1,568.64",73373-RESIDENTIAL & NURSING CARE PLACEMENTS,OP COMMISSIONING,Third Party Payments,Revenue
Walsall Council,http://opendatacommunities.org/id/metropolitan-district-council/walsall,WC63-646,31/12/2015,Social Care & Inclusion,BUSH HOME LTD,01/12/2015,"1,568.64",73373-RESIDENTIAL & NURSING CARE PLACEMENTS,MH COMMISSIONING,Third Party Payments,Revenue
Walsall Council,http://opendatacommunities.org/id/metropolitan-district-council/walsall,WC63-647,31/12/2015,Social Care & Inclusion,BUSH HOME LTD,01/12/2015,"1,568.64",73373-RESIDENTIAL & NURSING CARE PLACEMENTS,OP COMMISSIONING,Third Party Payments,Revenue
Walsall Council,http://opendatacommunities.org/id/metropolitan-district-council/walsall,WC63-648,31/12/2015,Social Care & Inclusion,BUSH HOME LTD,01/12/2015,"1,568.64",73373-RESIDENTIAL & NURSING CARE PLACEMENTS,MH COMMISSIONING,Third Party Payments,Revenue
Walsall Council,http://opendatacommunities.org/id/metropolitan-district-council/walsall,WC63-649,31/12/2015,Social Care & Inclusion,BUSH HOME LTD,01/12/2015,"1,568.64",73373-RESIDENTIAL & NURSING CARE PLACEMENTS,OP COMMISSIONING,Third Party Payments,Revenue
Walsall Council,http://opendatacommunities.org/id/metropolitan-district-council/walsall,WC63-650,31/12/2015,Social Care & Inclusion,BUSH HOME LTD,01/12/2015,"1,568.64",73373-RESIDENTIAL & NURSING CARE PLACEMENTS,OP COMMISSIONING,Third Party Payments,Revenue
Walsall Council,http://opendatacommunities.org/id/metropolitan-district-council/walsall,WC63-651,31/12/2015,Social Care & Inclusion,BUSH HOME LTD,18/12/2015,"1,568.64",73373-RESIDENTIAL & NURSING CARE PLACEMENTS,OP COMMISSIONING,Third Party Payments,Revenue
Walsall Council,http://opendatacommunities.org/id/metropolitan-district-council/walsall,WC63-652,31/12/2015,Social Care & Inclusion,BUSH HOME LTD,18/12/2015,"1,568.64",73373-RESIDENTIAL & NURSING CARE PLACEMENTS,OP COMMISSIONING,Third Party Payments,Revenue
Walsall Council,http://opendatacommunities.org/id/metropolitan-district-council/walsall,WC63-653,31/12/2015,Social Care & Inclusion,BUSH HOME LTD,18/12/2015,"1,568.64",73373-RESIDENTIAL & NURSING CARE PLACEMENTS,OP COMMISSIONING,Third Party Payments,Revenue
Walsall Council,http://opendatacommunities.org/id/metropolitan-district-council/walsall,WC63-654,31/12/2015,Social Care & Inclusion,BUSH HOME LTD,18/12/2015,"1,568.64",73373-RESIDENTIAL & NURSING CARE PLACEMENTS,OP COMMISSIONING,Third Party Payments,Revenue
Walsall Council,http://opendatacommunities.org/id/metropolitan-district-council/walsall,WC63-655,31/12/2015,Social Care & Inclusion,BUSH HOME LTD,18/12/2015,"1,568.64",73373-RESIDENTIAL & NURSING CARE PLACEMENTS,MH COMMISSIONING,Third Party Payments,Revenue
Walsall Council,http://opendatacommunities.org/id/metropolitan-district-council/walsall,WC63-656,31/12/2015,Social Care & Inclusion,BUSH HOME LTD,18/12/2015,"1,568.64",73373-RESIDENTIAL & NURSING CARE PLACEMENTS,OP COMMISSIONING,Third Party Payments,Revenue
Walsall Council,http://opendatacommunities.org/id/metropolitan-district-council/walsall,WC63-657,31/12/2015,Social Care & Inclusion,BUSH HOME LTD,18/12/2015,"1,568.64",73373-RESIDENTIAL & NURSING CARE PLACEMENTS,MH COMMISSIONING,Third Party Payments,Revenue
Walsall Council,http://opendatacommunities.org/id/metropolitan-district-council/walsall,WC63-658,31/12/2015,Social Care & Inclusion,BUSH HOME LTD,18/12/2015,"1,568.64",73373-RESIDENTIAL & NURSING CARE PLACEMENTS,OP COMMISSIONING,Third Party Payments,Revenue
Walsall Council,http://opendatacommunities.org/id/metropolitan-district-council/walsall,WC63-659,31/12/2015,Social Care & Inclusion,BUSH HOME LTD,18/12/2015,"1,568.64",73373-RESIDENTIAL & NURSING CARE PLACEMENTS,MH COMMISSIONING,Third Party Payments,Revenue
Walsall Council,http://opendatacommunities.org/id/metropolitan-district-council/walsall,WC63-660,31/12/2015,Social Care & Inclusion,BUSH HOME LTD,18/12/2015,"1,568.64",73373-RESIDENTIAL & NURSING CARE PLACEMENTS,OP COMMISSIONING,Third Party Payments,Revenue
Walsall Council,http://opendatacommunities.org/id/metropolitan-district-council/walsall,WC63-661,31/12/2015,Social Care & Inclusion,BUSH HOME LTD,18/12/2015,"1,568.64",73373-RESIDENTIAL & NURSING CARE PLACEMENTS,OP COMMISSIONING,Third Party Payments,Revenue
Walsall Council,http://opendatacommunities.org/id/metropolitan-district-council/walsall,WC63-662,31/12/2015,Social Care & Inclusion,BUSH HOME LTD,01/12/2015,"1,592.64",73373-RESIDENTIAL & NURSING CARE PLACEMENTS,OP COMMISSIONING,Third Party Payments,Revenue
Walsall Council,http://opendatacommunities.org/id/metropolitan-district-council/walsall,WC63-663,31/12/2015,Social Care & Inclusion,BUSH HOME LTD,18/12/2015,"1,592.64",73373-RESIDENTIAL & NURSING CARE PLACEMENTS,OP COMMISSIONING,Third Party Payments,Revenue
Walsall Council,http://opendatacommunities.org/id/metropolitan-district-council/walsall,WC63-664,31/12/2015,Childrens,BUSY BEES CHILDCARE LTD,03/12/2015,"2,053.80",66505-OTHER-GRANTS TO OTHER ORGS,EARLY YEARS - 2 YR OLDS,Third Party Payments,Revenue
Walsall Council,http://opendatacommunities.org/id/metropolitan-district-council/walsall,WC63-665,31/12/2015,Economy & Environment,BUXTONS LTD,11/12/2015,257.50,61500-CLOTHING & LAUNDRY,GROUNDS,Supplies & Services,Revenue
Walsall Council,http://opendatacommunities.org/id/metropolitan-district-council/walsall,WC63-666,31/12/2015,Social Care & Inclusion,C & V ORCHARD MANOR LTD,01/12/2015,"1,472.16",73373-RESIDENTIAL & NURSING CARE PLACEMENTS,LD COMMISSIONING,Third Party Payments,Revenue
Walsall Council,http://opendatacommunities.org/id/metropolitan-district-council/walsall,WC63-667,31/12/2015,Social Care & Inclusion,C & V ORCHARD MANOR LTD,01/12/2015,"1,472.16",73373-RESIDENTIAL & NURSING CARE PLACEMENTS,OP COMMISSIONING,Third Party Payments,Revenue
Walsall Council,http://opendatacommunities.org/id/metropolitan-district-council/walsall,WC63-668,31/12/2015,Social Care & Inclusion,C & V ORCHARD MANOR LTD,01/12/2015,"1,472.16",73373-RESIDENTIAL & NURSING CARE PLACEMENTS,OP COMMISSIONING,Third Party Payments,Revenue
Walsall Council,http://opendatacommunities.org/id/metropolitan-district-council/walsall,WC63-669,31/12/2015,Social Care & Inclusion,C & V ORCHARD MANOR LTD,18/12/2015,"1,472.16",73373-RESIDENTIAL & NURSING CARE PLACEMENTS,OP COMMISSIONING,Third Party Payments,Revenue
Walsall Council,http://opendatacommunities.org/id/metropolitan-district-council/walsall,WC63-670,31/12/2015,Social Care & Inclusion,C & V ORCHARD MANOR LTD,18/12/2015,"1,472.16",73373-RESIDENTIAL & NURSING CARE PLACEMENTS,OP COMMISSIONING,Third Party Payments,Revenue
Walsall Council,http://opendatacommunities.org/id/metropolitan-district-council/walsall,WC63-671,31/12/2015,Social Care & Inclusion,C & V ORCHARD MANOR LTD,01/12/2015,"1,493.24",73373-RESIDENTIAL & NURSING CARE PLACEMENTS,OP COMMISSIONING,Third Party Payments,Revenue
Walsall Council,http://opendatacommunities.org/id/metropolitan-district-council/walsall,WC63-672,31/12/2015,Social Care & Inclusion,C & V ORCHARD MANOR LTD,01/12/2015,"1,493.24",73373-RESIDENTIAL & NURSING CARE PLACEMENTS,MH COMMISSIONING,Third Party Payments,Revenue
Walsall Council,http://opendatacommunities.org/id/metropolitan-district-council/walsall,WC63-673,31/12/2015,Social Care & Inclusion,C & V ORCHARD MANOR LTD,01/12/2015,"1,493.24",73373-RESIDENTIAL & NURSING CARE PLACEMENTS,OP COMMISSIONING,Third Party Payments,Revenue
Walsall Council,http://opendatacommunities.org/id/metropolitan-district-council/walsall,WC63-674,31/12/2015,Social Care & Inclusion,C & V ORCHARD MANOR LTD,18/12/2015,"1,493.24",73373-RESIDENTIAL & NURSING CARE PLACEMENTS,OP COMMISSIONING,Third Party Payments,Revenue
Walsall Council,http://opendatacommunities.org/id/metropolitan-district-council/walsall,WC63-675,31/12/2015,Social Care & Inclusion,C & V ORCHARD MANOR LTD,18/12/2015,"1,493.24",73373-RESIDENTIAL & NURSING CARE PLACEMENTS,MH COMMISSIONING,Third Party Payments,Revenue
Walsall Council,http://opendatacommunities.org/id/metropolitan-district-council/walsall,WC63-676,31/12/2015,Social Care & Inclusion,C & V ORCHARD MANOR LTD,01/12/2015,"1,493.32",73373-RESIDENTIAL & NURSING CARE PLACEMENTS,LD COMMISSIONING,Third Party Payments,Revenue
Walsall Council,http://opendatacommunities.org/id/metropolitan-district-council/walsall,WC63-677,31/12/2015,Social Care & Inclusion,C & V ORCHARD MANOR LTD,01/12/2015,"1,493.32",73373-RESIDENTIAL & NURSING CARE PLACEMENTS,OP COMMISSIONING,Third Party Payments,Revenue
Walsall Council,http://opendatacommunities.org/id/metropolitan-district-council/walsall,WC63-678,31/12/2015,Social Care & Inclusion,C & V ORCHARD MANOR LTD,18/12/2015,"1,493.32",73373-RESIDENTIAL & NURSING CARE PLACEMENTS,LD COMMISSIONING,Third Party Payments,Revenue
Walsall Council,http://opendatacommunities.org/id/metropolitan-district-council/walsall,WC63-679,31/12/2015,Social Care & Inclusion,C & V ORCHARD MANOR LTD,18/12/2015,"1,493.32",73373-RESIDENTIAL & NURSING CARE PLACEMENTS,OP COMMISSIONING,Third Party Payments,Revenue
Walsall Council,http://opendatacommunities.org/id/metropolitan-district-council/walsall,WC63-680,31/12/2015,Social Care & Inclusion,C & V ORCHARD MANOR LTD,01/12/2015,"1,566.20",73373-RESIDENTIAL & NURSING CARE PLACEMENTS,OP COMMISSIONING,Third Party Payments,Revenue
Walsall Council,http://opendatacommunities.org/id/metropolitan-district-council/walsall,WC63-681,31/12/2015,Social Care & Inclusion,C & V ORCHARD MANOR LTD,01/12/2015,"1,566.20",73373-RESIDENTIAL & NURSING CARE PLACEMENTS,OP COMMISSIONING,Third Party Payments,Revenue
Walsall Council,http://opendatacommunities.org/id/metropolitan-district-council/walsall,WC63-682,31/12/2015,Social Care & Inclusion,C & V ORCHARD MANOR LTD,18/12/2015,"1,566.20",73373-RESIDENTIAL & NURSING CARE PLACEMENTS,OP COMMISSIONING,Third Party Payments,Revenue
Walsall Council,http://opendatacommunities.org/id/metropolitan-district-council/walsall,WC63-683,31/12/2015,Social Care & Inclusion,C & V ORCHARD MANOR LTD,01/12/2015,"1,568.60",73373-RESIDENTIAL & NURSING CARE PLACEMENTS,OP COMMISSIONING,Third Party Payments,Revenue
Walsall Council,http://opendatacommunities.org/id/metropolitan-district-council/walsall,WC63-684,31/12/2015,Social Care & Inclusion,C & V ORCHARD MANOR LTD,01/12/2015,"1,568.60",73373-RESIDENTIAL & NURSING CARE PLACEMENTS,OP COMMISSIONING,Third Party Payments,Revenue
Walsall Council,http://opendatacommunities.org/id/metropolitan-district-council/walsall,WC63-685,31/12/2015,Social Care & Inclusion,C & V ORCHARD MANOR LTD,01/12/2015,"1,568.60",73373-RESIDENTIAL & NURSING CARE PLACEMENTS,OP COMMISSIONING,Third Party Payments,Revenue
Walsall Council,http://opendatacommunities.org/id/metropolitan-district-council/walsall,WC63-686,31/12/2015,Social Care & Inclusion,C & V ORCHARD MANOR LTD,01/12/2015,"1,568.60",73373-RESIDENTIAL & NURSING CARE PLACEMENTS,OP COMMISSIONING,Third Party Payments,Revenue
Walsall Council,http://opendatacommunities.org/id/metropolitan-district-council/walsall,WC63-687,31/12/2015,Social Care & Inclusion,C & V ORCHARD MANOR LTD,01/12/2015,"1,568.60",73373-RESIDENTIAL & NURSING CARE PLACEMENTS,OP COMMISSIONING,Third Party Payments,Revenue
Walsall Council,http://opendatacommunities.org/id/metropolitan-district-council/walsall,WC63-688,31/12/2015,Social Care & Inclusion,C & V ORCHARD MANOR LTD,01/12/2015,"1,568.60",73373-RESIDENTIAL & NURSING CARE PLACEMENTS,OP COMMISSIONING,Third Party Payments,Revenue
Walsall Council,http://opendatacommunities.org/id/metropolitan-district-council/walsall,WC63-689,31/12/2015,Social Care & Inclusion,C & V ORCHARD MANOR LTD,01/12/2015,"1,568.60",73373-RESIDENTIAL & NURSING CARE PLACEMENTS,OP COMMISSIONING,Third Party Payments,Revenue
Walsall Council,http://opendatacommunities.org/id/metropolitan-district-council/walsall,WC63-690,31/12/2015,Social Care & Inclusion,C & V ORCHARD MANOR LTD,18/12/2015,"1,568.60",73373-RESIDENTIAL & NURSING CARE PLACEMENTS,OP COMMISSIONING,Third Party Payments,Revenue
Walsall Council,http://opendatacommunities.org/id/metropolitan-district-council/walsall,WC63-691,31/12/2015,Social Care & Inclusion,C & V ORCHARD MANOR LTD,18/12/2015,"1,568.64",73373-RESIDENTIAL & NURSING CARE PLACEMENTS,OP COMMISSIONING,Third Party Payments,Revenue
Walsall Council,http://opendatacommunities.org/id/metropolitan-district-council/walsall,WC63-692,31/12/2015,Social Care & Inclusion,C & V ORCHARD MANOR LTD,01/12/2015,"1,624.66",73373-RESIDENTIAL & NURSING CARE PLACEMENTS,OP COMMISSIONING,Third Party Payments,Revenue
Walsall Council,http://opendatacommunities.org/id/metropolitan-district-council/walsall,WC63-693,31/12/2015,Social Care & Inclusion,C & V ORCHARD MANOR LTD,01/12/2015,"4,873.98",73373-RESIDENTIAL & NURSING CARE PLACEMENTS,OP COMMISSIONING,Third Party Payments,Revenue
Walsall Council,http://opendatacommunities.org/id/metropolitan-district-council/walsall,WC63-694,31/12/2015,Social Care & Inclusion,C & V ORCHARD RESIDENTIAL LTD,18/12/2015,"1,493.24",73373-RESIDENTIAL & NURSING CARE PLACEMENTS,OP COMMISSIONING,Third Party Payments,Revenue
Walsall Council,http://opendatacommunities.org/id/metropolitan-district-council/walsall,WC63-695,31/12/2015,Social Care & Inclusion,C & V ORCHARD RESIDENTIAL LTD,18/12/2015,"1,493.24",73373-RESIDENTIAL & NURSING CARE PLACEMENTS,OP COMMISSIONING,Third Party Payments,Revenue
Walsall Council,http://opendatacommunities.org/id/metropolitan-district-council/walsall,WC63-696,31/12/2015,Social Care & Inclusion,C & V ORCHARD RESIDENTIAL LTD,18/12/2015,"1,493.24",73373-RESIDENTIAL & NURSING CARE PLACEMENTS,OP COMMISSIONING,Third Party Payments,Revenue
Walsall Council,http://opendatacommunities.org/id/metropolitan-district-council/walsall,WC63-697,31/12/2015,Social Care & Inclusion,C & V ORCHARD RESIDENTIAL LTD,18/12/2015,"1,493.24",73373-RESIDENTIAL & NURSING CARE PLACEMENTS,OP COMMISSIONING,Third Party Payments,Revenue
Walsall Council,http://opendatacommunities.org/id/metropolitan-district-council/walsall,WC63-698,31/12/2015,Social Care & Inclusion,C & V ORCHARD RESIDENTIAL LTD,01/12/2015,"1,566.20",73373-RESIDENTIAL & NURSING CARE PLACEMENTS,OP COMMISSIONING,Third Party Payments,Revenue
Walsall Council,http://opendatacommunities.org/id/metropolitan-district-council/walsall,WC63-699,31/12/2015,Social Care & Inclusion,C & V ORCHARD RESIDENTIAL LTD,18/12/2015,"1,566.20",73373-RESIDENTIAL & NURSING CARE PLACEMENTS,OP COMMISSIONING,Third Party Payments,Revenue
Walsall Council,http://opendatacommunities.org/id/metropolitan-district-council/walsall,WC63-700,31/12/2015,Social Care & Inclusion,C & V ORCHARD RESIDENTIAL LTD,18/12/2015,"1,566.20",73373-RESIDENTIAL & NURSING CARE PLACEMENTS,OP COMMISSIONING,Third Party Payments,Revenue
Walsall Council,http://opendatacommunities.org/id/metropolitan-district-council/walsall,WC63-701,31/12/2015,Social Care & Inclusion,C & V ORCHARD RESIDENTIAL LTD,18/12/2015,"1,566.20",73373-RESIDENTIAL & NURSING CARE PLACEMENTS,OP COMMISSIONING,Third Party Payments,Revenue
Walsall Council,http://opendatacommunities.org/id/metropolitan-district-council/walsall,WC63-702,31/12/2015,Social Care & Inclusion,C & V ORCHARD RESIDENTIAL LTD,18/12/2015,"1,566.20",73373-RESIDENTIAL & NURSING CARE PLACEMENTS,OP COMMISSIONING,Third Party Payments,Revenue
Walsall Council,http://opendatacommunities.org/id/metropolitan-district-council/walsall,WC63-703,31/12/2015,Social Care & Inclusion,C & V ORCHARD RESIDENTIAL LTD,18/12/2015,"1,568.60",73373-RESIDENTIAL & NURSING CARE PLACEMENTS,OP COMMISSIONING,Third Party Payments,Revenue
Walsall Council,http://opendatacommunities.org/id/metropolitan-district-council/walsall,WC63-704,31/12/2015,Social Care & Inclusion,C & V ORCHARD RESIDENTIAL LTD,18/12/2015,"1,568.60",73373-RESIDENTIAL & NURSING CARE PLACEMENTS,OP COMMISSIONING,Third Party Payments,Revenue
Walsall Council,http://opendatacommunities.org/id/metropolitan-district-council/walsall,WC63-705,31/12/2015,Social Care & Inclusion,C & V ORCHARD RESIDENTIAL LTD,18/12/2015,"1,568.60",73373-RESIDENTIAL & NURSING CARE PLACEMENTS,OP COMMISSIONING,Third Party Payments,Revenue
Walsall Council,http://opendatacommunities.org/id/metropolitan-district-council/walsall,WC63-706,31/12/2015,Social Care & Inclusion,C & V ORCHARD RESIDENTIAL LTD,18/12/2015,"1,568.60",73373-RESIDENTIAL & NURSING CARE PLACEMENTS,OP COMMISSIONING,Third Party Payments,Revenue
Walsall Council,http://opendatacommunities.org/id/metropolitan-district-council/walsall,WC63-707,31/12/2015,Social Care & Inclusion,C & V ORCHARD RESIDENTIAL LTD,18/12/2015,"1,568.64",73373-RESIDENTIAL & NURSING CARE PLACEMENTS,OP COMMISSIONING,Third Party Payments,Revenue
Walsall Council,http://opendatacommunities.org/id/metropolitan-district-council/walsall,WC63-708,31/12/2015,Social Care & Inclusion,C & V ORCHARD RESIDENTIAL LTD,18/12/2015,"1,568.64",73373-RESIDENTIAL & NURSING CARE PLACEMENTS,OP COMMISSIONING,Third Party Payments,Revenue
Walsall Council,http://opendatacommunities.org/id/metropolitan-district-council/walsall,WC63-709,31/12/2015,Social Care & Inclusion,C & V ORCHARD RESIDENTIAL LTD,18/12/2015,"1,568.64",73373-RESIDENTIAL & NURSING CARE PLACEMENTS,OP COMMISSIONING,Third Party Payments,Revenue
Walsall Council,http://opendatacommunities.org/id/metropolitan-district-council/walsall,WC63-710,31/12/2015,Childrens,REDACTED,07/12/2015,"4,645.31",62515-MISCELLANEOUS SUPPLIES,INTERNAL FOSTER CARE PROVISION,Supplies & Services,Revenue
Walsall Council,http://opendatacommunities.org/id/metropolitan-district-council/walsall,WC63-711,31/12/2015,Childrens,REDACTED,07/12/2015,"6,102.66",74006-HOLIDAY/CHRISTMAS ALLOWANCE-FOSTER CARERS-OTH AGENCY PROVISION,INTERNAL FOSTER CARE PROVISION,Third Party Payments,Revenue
Walsall Council,http://opendatacommunities.org/id/metropolitan-district-council/walsall,WC63-712,31/12/2015,Childrens,REDACTED,07/12/2015,"1,445.32",62515-MISCELLANEOUS SUPPLIES,INTERNAL FOSTER CARE PROVISION,Supplies & Services,Revenue
Walsall Council,http://opendatacommunities.org/id/metropolitan-district-council/walsall,WC63-713,31/12/2015,Childrens,REDACTED,07/12/2015,"1,826.55",74006-HOLIDAY/CHRISTMAS ALLOWANCE-FOSTER CARERS-OTH AGENCY PROVISION,INTERNAL FOSTER CARE PROVISION,Third Party Payments,Revenue
Walsall Council,http://opendatacommunities.org/id/metropolitan-district-council/walsall,WC63-714,31/12/2015,Economy & Environment,C P DAVIDSON & SONS LTD,18/12/2015,237.29,60514-MATERIALS TO STORES,FLEET PARTS STOCK ACCOUNT,Supplies & Services,Revenue
Walsall Council,http://opendatacommunities.org/id/metropolitan-district-council/walsall,WC63-715,31/12/2015,Economy & Environment,C P DAVIDSON & SONS LTD,09/12/2015,332.00,73025-PROFESSIONAL SERVICES-PRIV CONTRACTOR & OTHER AGENCIES,FLEET,Third Party Payments,Revenue
Walsall Council,http://opendatacommunities.org/id/metropolitan-district-council/walsall,WC63-716,31/12/2015,Economy & Environment,C P DAVIDSON & SONS LTD,24/12/2015,360.51,60514-MATERIALS TO STORES,FLEET PARTS STOCK ACCOUNT,Supplies & Services,Revenue
Walsall Council,http://opendatacommunities.org/id/metropolitan-district-council/walsall,WC63-717,31/12/2015,Economy & Environment,C P DAVIDSON & SONS LTD,18/12/2015,399.11,60514-MATERIALS TO STORES,FLEET PARTS STOCK ACCOUNT,Supplies & Services,Revenue
Walsall Council,http://opendatacommunities.org/id/metropolitan-district-council/walsall,WC63-718,31/12/2015,Economy & Environment,C P DAVIDSON & SONS LTD,11/12/2015,868.45,60500-GENERAL MATERIALS,FLEET,Supplies & Services,Revenue
Walsall Council,http://opendatacommunities.org/id/metropolitan-district-council/walsall,WC63-719,31/12/2015,Economy & Environment,C P DAVIDSON & SONS LTD,11/12/2015,"3,300.00",52003-OPERATING LEASES-VEHICLES,LEASING,Central,Revenue
Walsall Council,http://opendatacommunities.org/id/metropolitan-district-council/walsall,WC63-720,31/12/2015,Economy & Environment,C P DAVIDSON & SONS LTD,11/12/2015,"3,300.00",52003-OPERATING LEASES-VEHICLES,LEASING,Central,Revenue
Walsall Council,http://opendatacommunities.org/id/metropolitan-district-council/walsall,WC63-721,31/12/2015,Economy & Environment,C P DAVIDSON & SONS LTD,11/12/2015,"3,300.00",52003-OPERATING LEASES-VEHICLES,LEASING,Central,Revenue
Walsall Council,http://opendatacommunities.org/id/metropolitan-district-council/walsall,WC63-722,31/12/2015,Childrens,REDACTED,21/12/2015,"1,142.88",74006-HOLIDAY/CHRISTMAS ALLOWANCE-FOSTER CARERS-OTH AGENCY PROVISION,INTERNAL FOSTER CARE PROVISION,Third Party Payments,Revenue
Walsall Council,http://opendatacommunities.org/id/metropolitan-district-council/walsall,WC63-723,31/12/2015,Change and Governance,CADLINE LTD,09/12/2015,"2,085.00",63800-COMPUTER EQUIPMENT AND SUPPLIES,RECHARGEABLE EQUIPMENT,Supplies & Services,Revenue
Walsall Council,http://opendatacommunities.org/id/metropolitan-district-council/walsall,WC63-724,31/12/2015,Social Care & Inclusion,CALDMORE AREA HOUSING ASS LTD,15/12/2015,"2,300.37",73373-RESIDENTIAL & NURSING CARE PLACEMENTS,MH COMMISSIONING,Third Party Payments,Revenue
Walsall Council,http://opendatacommunities.org/id/metropolitan-district-council/walsall,WC63-725,31/12/2015,Social Care & Inclusion,CALDMORE AREA HOUSING ASS LTD,18/12/2015,"3,166.00",73373-RESIDENTIAL & NURSING CARE PLACEMENTS,MH COMMISSIONING,Third Party Payments,Revenue
Walsall Council,http://opendatacommunities.org/id/metropolitan-district-council/walsall,WC63-726,31/12/2015,Social Care & Inclusion,CALDMORE AREA HOUSING ASS LTD,18/12/2015,"3,166.30",73373-RESIDENTIAL & NURSING CARE PLACEMENTS,MH COMMISSIONING,Third Party Payments,Revenue
Walsall Council,http://opendatacommunities.org/id/metropolitan-district-council/walsall,WC63-727,31/12/2015,Social Care & Inclusion,CALDMORE AREA HOUSING ASS LTD,18/12/2015,"3,166.30",73373-RESIDENTIAL & NURSING CARE PLACEMENTS,MH COMMISSIONING,Third Party Payments,Revenue
Walsall Council,http://opendatacommunities.org/id/metropolitan-district-council/walsall,WC63-728,31/12/2015,Social Care & Inclusion,CALDMORE AREA HOUSING ASS LTD,18/12/2015,"3,166.30",73373-RESIDENTIAL & NURSING CARE PLACEMENTS,MH COMMISSIONING,Third Party Payments,Revenue
Walsall Council,http://opendatacommunities.org/id/metropolitan-district-council/walsall,WC63-729,31/12/2015,Change and Governance,CALDMORE VILLAGE FESTIVAL GROUP,01/12/2015,"4,650.00",66500-GRANTS TO OTHER ORGS,PREVENTING VIOLENT EXTREMISM,Third Party Payments,Revenue
Walsall Council,http://opendatacommunities.org/id/metropolitan-district-council/walsall,WC63-730,31/12/2015,Childrens,REDACTED,21/12/2015,373.76,74006-HOLIDAY/CHRISTMAS ALLOWANCE-FOSTER CARERS-OTH AGENCY PROVISION,INTERNAL FOSTER CARE PROVISION,Third Party Payments,Revenue
Walsall Council,http://opendatacommunities.org/id/metropolitan-district-council/walsall,WC63-731,31/12/2015,Childrens,REDACTED,08/12/2015,359.63,76422-DIRECT PAYMENTS TO SOCIAL SERVICES CLIENTS,FAMILY SUPPORT - DIRECT PAYMENTS,Transfer Payments,Revenue
Walsall Council,http://opendatacommunities.org/id/metropolitan-district-council/walsall,WC63-732,31/12/2015,Childrens,CAMBIAN CHILDCARE LIMITED,10/12/2015,"2,571.30",74036-EXTERNAL RESIDENTIAL CARE-OTH AGENCY PROVISION,INDEPENDENT RESIDENTIAL HOMES,Third Party Payments,Revenue
Walsall Council,http://opendatacommunities.org/id/metropolitan-district-council/walsall,WC63-733,31/12/2015,Childrens,CAMBIAN CHILDCARE LIMITED,11/12/2015,"2,967.64",74037-INDEPENDENT FOSTER CARE-OTH AGENCY PROVISION,EXTERNAL FOSTER CARE PROVISION,Third Party Payments,Revenue
Walsall Council,http://opendatacommunities.org/id/metropolitan-district-council/walsall,WC63-734,31/12/2015,Childrens,CAMBIAN CHILDCARE LIMITED,01/12/2015,"2,969.40",74037-INDEPENDENT FOSTER CARE-OTH AGENCY PROVISION,EXTERNAL FOSTER CARE PROVISION,Third Party Payments,Revenue
Walsall Council,http://opendatacommunities.org/id/metropolitan-district-council/walsall,WC63-735,31/12/2015,Childrens,CAMBIAN CHILDCARE LIMITED,01/12/2015,"3,003.00",74037-INDEPENDENT FOSTER CARE-OTH AGENCY PROVISION,EXTERNAL FOSTER CARE PROVISION,Third Party Payments,Revenue
Walsall Council,http://opendatacommunities.org/id/metropolitan-district-council/walsall,WC63-736,31/12/2015,Childrens,CAMBIAN CHILDCARE LIMITED,11/12/2015,"3,068.38",74037-INDEPENDENT FOSTER CARE-OTH AGENCY PROVISION,EXTERNAL FOSTER CARE PROVISION,Third Party Payments,Revenue
Walsall Council,http://opendatacommunities.org/id/metropolitan-district-council/walsall,WC63-737,31/12/2015,Childrens,CAMBIAN CHILDCARE LIMITED,01/12/2015,"3,081.90",74037-INDEPENDENT FOSTER CARE-OTH AGENCY PROVISION,EXTERNAL FOSTER CARE PROVISION,Third Party Payments,Revenue
Walsall Council,http://opendatacommunities.org/id/metropolitan-district-council/walsall,WC63-738,31/12/2015,Childrens,CAMBIAN CHILDCARE LIMITED,11/12/2015,"3,103.10",74037-INDEPENDENT FOSTER CARE-OTH AGENCY PROVISION,EXTERNAL FOSTER CARE PROVISION,Third Party Payments,Revenue
Walsall Council,http://opendatacommunities.org/id/metropolitan-district-council/walsall,WC63-739,31/12/2015,Childrens,CAMBIAN CHILDCARE LIMITED,11/12/2015,"3,184.63",74037-INDEPENDENT FOSTER CARE-OTH AGENCY PROVISION,EXTERNAL FOSTER CARE PROVISION,Third Party Payments,Revenue
Walsall Council,http://opendatacommunities.org/id/metropolitan-district-council/walsall,WC63-740,31/12/2015,Childrens,CAMBIAN CHILDCARE LIMITED,01/12/2015,"3,253.20",74037-INDEPENDENT FOSTER CARE-OTH AGENCY PROVISION,EXTERNAL FOSTER CARE PROVISION,Third Party Payments,Revenue
Walsall Council,http://opendatacommunities.org/id/metropolitan-district-council/walsall,WC63-741,31/12/2015,Childrens,CAMBIAN CHILDCARE LIMITED,11/12/2015,"3,361.64",74037-INDEPENDENT FOSTER CARE-OTH AGENCY PROVISION,EXTERNAL FOSTER CARE PROVISION,Third Party Payments,Revenue
Walsall Council,http://opendatacommunities.org/id/metropolitan-district-council/walsall,WC63-742,31/12/2015,Childrens,CAMBIAN CHILDCARE LIMITED,01/12/2015,"3,424.20",74037-INDEPENDENT FOSTER CARE-OTH AGENCY PROVISION,EXTERNAL FOSTER CARE PROVISION,Third Party Payments,Revenue
Walsall Council,http://opendatacommunities.org/id/metropolitan-district-council/walsall,WC63-743,31/12/2015,Childrens,CAMBIAN CHILDCARE LIMITED,10/12/2015,"13,877.10",74036-EXTERNAL RESIDENTIAL CARE-OTH AGENCY PROVISION,INDEPENDENT RESIDENTIAL HOMES,Third Party Payments,Revenue
Walsall Council,http://opendatacommunities.org/id/metropolitan-district-council/walsall,WC63-744,31/12/2015,Social Care & Inclusion,CAMBIAN LEARNING DISABILITES MIDLANDS LIMITED,14/12/2015,"10,908.90",73375-IN PATIENT BEDS,LD COMMISSIONING,Third Party Payments,Revenue
Walsall Council,http://opendatacommunities.org/id/metropolitan-district-council/walsall,WC63-745,31/12/2015,Economy & Environment,CANAL & RIVER TRUST,21/12/2015,"1,302.75",43000-RENTS,COUNTRYSIDE MANAGEMENT-OTHER,Premises,Revenue
Walsall Council,http://opendatacommunities.org/id/metropolitan-district-council/walsall,WC63-746,31/12/2015,Economy & Environment,CANNOCK TACHOGRAPH CENTRE LTD,15/12/2015,218.00,73025-PROFESSIONAL SERVICES-PRIV CONTRACTOR & OTHER AGENCIES,FLEET,Third Party Payments,Revenue
Walsall Council,http://opendatacommunities.org/id/metropolitan-district-council/walsall,WC63-747,31/12/2015,Leasing,CAPITA TREASURY SOLUTIONS LIMITED,15/12/2015,"5,650.00",01018-VEHICLES LEASING,VEHICLE MAINTENANCE VEHICLES,Capital,Capital
Walsall Council,http://opendatacommunities.org/id/metropolitan-district-council/walsall,WC63-748,31/12/2015,Childrens,CAPSTONE FOSTER CARE (SOUTH EAST) LIMITED,02/12/2015,"2,681.27",74037-INDEPENDENT FOSTER CARE-OTH AGENCY PROVISION,EXTERNAL FOSTER CARE PROVISION,Third Party Payments,Revenue
Walsall Council,http://opendatacommunities.org/id/metropolitan-district-council/walsall,WC63-749,31/12/2015,Childrens,CAPSTONE FOSTER CARE (SOUTH EAST) LIMITED,02/12/2015,"2,681.27",74037-INDEPENDENT FOSTER CARE-OTH AGENCY PROVISION,EXTERNAL FOSTER CARE PROVISION,Third Party Payments,Revenue
Walsall Council,http://opendatacommunities.org/id/metropolitan-district-council/walsall,WC63-750,31/12/2015,Childrens,CAPSTONE FOSTER CARE (SOUTH EAST) LIMITED,02/12/2015,"3,059.57",74037-INDEPENDENT FOSTER CARE-OTH AGENCY PROVISION,EXTERNAL FOSTER CARE PROVISION,Third Party Payments,Revenue
Walsall Council,http://opendatacommunities.org/id/metropolitan-district-council/walsall,WC63-751,31/12/2015,Childrens,CAPSTONE FOSTER CARE (SOUTH EAST) LIMITED,02/12/2015,"3,658.16",74037-INDEPENDENT FOSTER CARE-OTH AGENCY PROVISION,EXTERNAL FOSTER CARE PROVISION,Third Party Payments,Revenue
Walsall Council,http://opendatacommunities.org/id/metropolitan-district-council/walsall,WC63-752,31/12/2015,Social Care & Inclusion,CARE 2 U LIMITED,09/12/2015,"37,067.07",73372-DOMICILIARY CARE,OP COMMISSIONING,Third Party Payments,Revenue
Walsall Council,http://opendatacommunities.org/id/metropolitan-district-council/walsall,WC63-753,31/12/2015,Social Care & Inclusion,CARE AVENUES LTD,18/12/2015,"1,420.25",73372-DOMICILIARY CARE,OP COMMISSIONING,Third Party Payments,Revenue
Walsall Council,http://opendatacommunities.org/id/metropolitan-district-council/walsall,WC63-754,31/12/2015,Social Care & Inclusion,CARE AVENUES LTD,09/12/2015,"13,630.38",73372-DOMICILIARY CARE,OP COMMISSIONING,Third Party Payments,Revenue
Walsall Council,http://opendatacommunities.org/id/metropolitan-district-council/walsall,WC63-755,31/12/2015,Social Care & Inclusion,CARE FIRST MANAGEMENT SERVICES LTD,09/12/2015,780.00,73372-DOMICILIARY CARE,YADS COMMISSIONING,Third Party Payments,Revenue
Walsall Council,http://opendatacommunities.org/id/metropolitan-district-council/walsall,WC63-756,31/12/2015,Social Care & Inclusion,CARE FIRST MANAGEMENT SERVICES LTD,17/12/2015,780.00,73372-DOMICILIARY CARE,YADS COMMISSIONING,Third Party Payments,Revenue
Walsall Council,http://opendatacommunities.org/id/metropolitan-district-council/walsall,WC63-757,31/12/2015,Childrens,CARE LEAVERS,16/12/2015,231.90,76010-ACCOMMODATION AND RELATED COSTS-ASSISTANCE TO S/S CLIENTS,TRANSITION AND LEAVING CARE,Transfer Payments,Revenue
Walsall Council,http://opendatacommunities.org/id/metropolitan-district-council/walsall,WC63-758,31/12/2015,Childrens,CARE LEAVERS,16/12/2015,"2,589.02",74500-CARE LEAVERS MTCE PAYMENTS,TRANSITION AND LEAVING CARE,Third Party Payments,Revenue
Walsall Council,http://opendatacommunities.org/id/metropolitan-district-council/walsall,WC63-759,31/12/2015,Childrens,CARE LEAVERS,16/12/2015,"5,005.97",76400-RESIDENTS PERSONAL EXPENSES-ALLOWANCES TO S/S CLIENTS,TRANSITION AND LEAVING CARE,Transfer Payments,Revenue
Walsall Council,http://opendatacommunities.org/id/metropolitan-district-council/walsall,WC63-760,31/12/2015,Childrens,CARE LEAVERS,16/12/2015,"7,170.60",64002-OTHER EXPENSES-EXPENSES,TRANSITION AND LEAVING CARE,Supplies & Services,Revenue
Walsall Council,http://opendatacommunities.org/id/metropolitan-district-council/walsall,WC63-761,31/12/2015,Social Care & Inclusion,CARE SHOP,17/12/2015,526.47,60539-CLEANING MATERIALS,REABLEMENT TEAM - HOLLY BANK,Supplies & Services,Revenue
Walsall Council,http://opendatacommunities.org/id/metropolitan-district-council/walsall,WC63-762,31/12/2015,Childrens,CARE TODAY CHILDRENS SERVICES,18/12/2015,"11,121.30",74036-EXTERNAL RESIDENTIAL CARE-OTH AGENCY PROVISION,INDEPENDENT RESIDENTIAL HOMES,Third Party Payments,Revenue
Walsall Council,http://opendatacommunities.org/id/metropolitan-district-council/walsall,WC63-763,31/12/2015,Childrens,CARE TODAY CHILDRENS SERVICES,18/12/2015,"13,641.30",74036-EXTERNAL RESIDENTIAL CARE-OTH AGENCY PROVISION,INDEPENDENT RESIDENTIAL HOMES,Third Party Payments,Revenue
Walsall Council,http://opendatacommunities.org/id/metropolitan-district-council/walsall,WC63-764,31/12/2015,Childrens,CAREFIRST SERVICES LIMITED,01/12/2015,"1,757.40",76010-ACCOMMODATION AND RELATED COSTS-ASSISTANCE TO S/S CLIENTS,TRANSITION AND LEAVING CARE,Transfer Payments,Revenue
Walsall Council,http://opendatacommunities.org/id/metropolitan-district-council/walsall,WC63-765,31/12/2015,Childrens,CAREFIRST SERVICES LIMITED,01/12/2015,"1,805.26",76010-ACCOMMODATION AND RELATED COSTS-ASSISTANCE TO S/S CLIENTS,TRANSITION AND LEAVING CARE,Transfer Payments,Revenue
Walsall Council,http://opendatacommunities.org/id/metropolitan-district-council/walsall,WC63-766,31/12/2015,Childrens,CAREFIRST SERVICES LIMITED,01/12/2015,"1,885.80",76010-ACCOMMODATION AND RELATED COSTS-ASSISTANCE TO S/S CLIENTS,TRANSITION AND LEAVING CARE,Transfer Payments,Revenue
